Service Area,Service Division,Expense Type,Expense Code,Detailed Expense Type,Payment Date,Transaction Number,Amount Exc Vat,Supplier Name
Children and Young Peoples Services,Head of Early Help Assessment and Safeguarding,Supplies and Services,338076,Services,01-Sep-2017,3329037-LTC0630,"15,452.00",1LIFE MANAGEMENT SOLUTIONS LTD.
Regeneration and Local Services,Direct Services,Supplies and Services,304221,Equipment and Materials,01-Sep-2017,3329044-2481,"1,500.00",A & J GUTHRIE.
Regeneration and Local Services,Direct Services,Third Party Payments,430100,Rendered by Private Contractors,01-Sep-2017,3329044-2482,"4,440.00",A & J GUTHRIE.
Regeneration and Local Services,Direct Services,Third Party Payments,430100,Rendered by Private Contractors,01-Sep-2017,3329044-2491,"2,565.00",A & J GUTHRIE.
Children and Young Peoples Services,Head of Looked After Provision Permanence and Care Leavers,Transport,230005,Contract Hire,01-Sep-2017,3329047-W62/ZC,"2,000.00",AABAT TAXIS.
Children and Young Peoples Services,Head of Looked After Provision Permanence and Care Leavers,Supplies and Services,304259,Equipment and Materials,01-Sep-2017,3329049-36032256-61,"2,881.79",ADT FIRE & SECURITY PLC.
Children and Young Peoples Services,Head of Looked After Provision Permanence and Care Leavers,Supplies and Services,304259,Equipment and Materials,01-Sep-2017,3329049-36035476-61,"1,038.53",ADT FIRE & SECURITY PLC.
Adult and Health Services,EnvironmentHealth & Consumer Protection,Supplies and Services,304999,Equipment and Materials,01-Sep-2017,3329049-36032309-61,"1,042.00",ADT FIRE & SECURITY PLC.
Regeneration and Local Services,Technical Services,Supplies and Services,304221,Equipment and Materials,01-Sep-2017,3329050-25299988,"2,007.90",AGGREGATE INDUSTRIES UK LTD.
Regeneration and Local Services,Technical Services,Supplies and Services,304221,Equipment and Materials,01-Sep-2017,3329050-25299989,"1,770.72",AGGREGATE INDUSTRIES UK LTD.
Regeneration and Local Services,Technical Services,Supplies and Services,304221,Equipment and Materials,01-Sep-2017,3329050-25299990,"1,218.89",AGGREGATE INDUSTRIES UK LTD.
Children and Young Peoples Services,Head of Looked After Provision Permanence and Care Leavers,Supplies and Services,338078,Services,01-Sep-2017,3329052-07027,"1,503.60",ALL EVENTS SECURITY LTD (AES).
Children and Young Peoples Services,Head of Looked After Provision Permanence and Care Leavers,Supplies and Services,338078,Services,01-Sep-2017,3329052-07029,"1,503.60",ALL EVENTS SECURITY LTD (AES).
Children and Young Peoples Services,Head of Looked After Provision Permanence and Care Leavers,Supplies and Services,338078,Services,01-Sep-2017,3329052-07044,"1,503.60",ALL EVENTS SECURITY LTD (AES).
Children and Young Peoples Services,Head of Looked After Provision Permanence and Care Leavers,Supplies and Services,338078,Services,01-Sep-2017,3329052-07058A,"1,503.60",ALL EVENTS SECURITY LTD (AES).
Regeneration and Local Services,Direct Services,Premises,108099,Service Repairs and Maintenance,01-Sep-2017,3329055-28616,635.00,AQUAJET DRAIN CLEANING LTD.
Regeneration and Local Services,Transport and Contracted Services,Third Party Payments,430106,Rendered by Private Contractors,01-Sep-2017,3329056-112658,"42,175.13",ARRIVA NORTH EAST LTD.
Children and Young Peoples Services,Head of Education,Supplies and Services,312009,Newspapers Books and Periodicals,01-Sep-2017,3329057-5474883,618.04,ASKEWS & HOLTS LIBRARY SERVICES LTD.
Children and Young Peoples Services,Head of Education,Supplies and Services,312009,Newspapers Books and Periodicals,01-Sep-2017,3329057-5474989,589.06,ASKEWS & HOLTS LIBRARY SERVICES LTD.
Regeneration and Local Services,Technical Services,Supplies and Services,338027,Services,01-Sep-2017,3329059-17016048,"10,788.00",ATKINS GLOBAL.
Regeneration and Local Services,Direct Services,Third Party Payments,430100,Rendered by Private Contractors,01-Sep-2017,3329063-DCC/2017042A,"1,684.92",BEACON BUILDING & ASSOCIATED SERVICES LTD.
Regeneration and Local Services,Direct Services,Transport,210057,Repair and Maintenance of Vehicles,01-Sep-2017,3329066-15118837,568.50,BELL TRUCK SALES LTD.
Regeneration and Local Services,Economic Development and Housing,Supplies and Services,338066,Services,01-Sep-2017,3329068-6361,"127,911.00",BLOOM PROCUREMENT SERVICES LTD (FORMERLY NEPRO LTD).
Resources,Digital and Customer Services,Supplies and Services,344111,Telephones,01-Sep-2017,3329078-VP90592270M14601,"3,325.54",BRITISH TELECOMMUNICATIONS PLC.
Adult and Health Services,Head of Adults,Supplies and Services,338366,Services,01-Sep-2017,3329080-43224,"1,115.25",CARE ABILITY.
Regeneration and Local Services,Culture & Sport,Supplies and Services,324001,Provisions,01-Sep-2017,3329081-844050336,797.54,CARLSBERG UK LTD.
Regeneration and Local Services,Direct Services,Third Party Payments,430100,Rendered by Private Contractors,01-Sep-2017,3329086-260,725.97,CEILINGS DIRECT LTD.
Regeneration and Local Services,Technical Services,Supplies and Services,304221,Equipment and Materials,01-Sep-2017,3329087-3009844754,842.59,CEMEX UK MATERIALS LTD.
Regeneration and Local Services,Spatial Policy Planning Assets & Environment,Supplies and Services,377015,County Durham Development,01-Sep-2017,3329092-4100569814,575.00,CIRCURAMA.
Regeneration and Local Services,Direct Services,Supplies and Services,304221,Equipment and Materials,01-Sep-2017,3329093-5134,592.00,CITY FABRICATIONS LTD.
Regeneration and Local Services,Direct Services,Third Party Payments,430100,Rendered by Private Contractors,01-Sep-2017,3329093-5126,712.00,CITY FABRICATIONS LTD.
Children and Young Peoples Services,Head of Early Help Assessment and Safeguarding,Supplies and Services,384491,Miscellaneous Expenses,01-Sep-2017,3329100-F193395,924.00,CORECARE FISHBURN LTD.
Children and Young Peoples Services,Head of Early Help Assessment and Safeguarding,Supplies and Services,384491,Miscellaneous Expenses,01-Sep-2017,3329100-NA192807,540.00,CORECARE FISHBURN LTD.
Regeneration and Local Services,Economic Development and Housing,Supplies and Services,304999,Equipment and Materials,01-Sep-2017,3329102-RED-08-2017-213,"1,392.76",CORNFORTH PARTNERSHIP.
Children and Young Peoples Services,Head of Early Help Assessment and Safeguarding,Transport,230005,Contract Hire,01-Sep-2017,3329105-INV-100171,717.32,CROFT BUSINESS SERVICES (UK) LTD T/A CROFT TAXIS.
Children and Young Peoples Services,Head of Early Help Assessment and Safeguarding,Transport,230005,Contract Hire,01-Sep-2017,3329105-INV-100288,521.67,CROFT BUSINESS SERVICES (UK) LTD T/A CROFT TAXIS.
Children and Young Peoples Services,Head of Early Help Assessment and Safeguarding,Transport,230005,Contract Hire,01-Sep-2017,3329105-INV-100344,717.32,CROFT BUSINESS SERVICES (UK) LTD T/A CROFT TAXIS.
Regeneration and Local Services,Technical Services,Third Party Payments,430100,Rendered by Private Contractors,01-Sep-2017,3329106-N521016,640.00,D-DRILL (MASTER DRILLERS) LTD.
Regeneration and Local Services,Technical Services,Third Party Payments,430100,Rendered by Private Contractors,01-Sep-2017,3329106-N521017,640.00,D-DRILL (MASTER DRILLERS) LTD.
Regeneration and Local Services,Technical Services,Third Party Payments,430100,Rendered by Private Contractors,01-Sep-2017,3329106-N521074,640.00,D-DRILL (MASTER DRILLERS) LTD.
Regeneration and Local Services,Technical Services,Third Party Payments,430100,Rendered by Private Contractors,01-Sep-2017,3329106-N521075,640.00,D-DRILL (MASTER DRILLERS) LTD.
Regeneration and Local Services,Technical Services,Third Party Payments,430100,Rendered by Private Contractors,01-Sep-2017,3329106-N521092,640.00,D-DRILL (MASTER DRILLERS) LTD.
Regeneration and Local Services,Technical Services,Third Party Payments,430100,Rendered by Private Contractors,01-Sep-2017,3329106-N521104,640.00,D-DRILL (MASTER DRILLERS) LTD.
Regeneration and Local Services,Direct Services,Third Party Payments,430101,Rendered by Private Contractors,01-Sep-2017,3329111-IV912945,517.55,DIRECT TYRE MANAGEMENT (DTM).
Regeneration and Local Services,Direct Services,Third Party Payments,430101,Rendered by Private Contractors,01-Sep-2017,3329111-IV915706,"1,879.82",DIRECT TYRE MANAGEMENT (DTM).
Regeneration and Local Services,Direct Services,Third Party Payments,430101,Rendered by Private Contractors,01-Sep-2017,3329111-IV915709,"2,315.32",DIRECT TYRE MANAGEMENT (DTM).
Regeneration and Local Services,Direct Services,Premises,108099,Service Repairs and Maintenance,01-Sep-2017,3329119-70996,"9,520.00",EIAT UK LTD.
Regeneration and Local Services,Technical Services,Supplies and Services,338027,Services,01-Sep-2017,3329120-3673,"2,500.00",ELVET CONSTRUCTION CONSULTANTS LTD.
Regeneration and Local Services,Culture & Sport,Supplies and Services,304259,Equipment and Materials,01-Sep-2017,3329122-INV100117,946.00,EVAC & CHAIR INTERNATIONAL LTD.
Adult and Health Services,Head of Adults,Third Party Payments,470101,Purchase of Care,01-Sep-2017,3329128-329,"11,000.00",FOREVER CARE.
Regeneration and Local Services,Direct Services,Supplies and Services,304221,Equipment and Materials,01-Sep-2017,3329133-813222,"1,892.00",GARTEC LTD.
Regeneration and Local Services,Direct Services,Transport,210057,Repair and Maintenance of Vehicles,01-Sep-2017,3329134-109054,557.20,GATESHEAD BEARINGS LTD.
Dedicated Schools Grant,Dedicated Schools Grant,Third Party Payments,410037,Rendered by Other Local Authorities,01-Sep-2017,3329135-110006780,"6,737.65",GATESHEAD COUNCIL.
Regeneration and Local Services,Economic Development and Housing,Premises,106082,Centrally Controlled Rep and Maint,01-Sep-2017,3329138-3303,"1,050.00",GEOWARMTH HEAT PUMPS LTD.
Children and Young Peoples Services,Head of Education,Transfer Payments,510026,School Children,01-Sep-2017,3329139-7589,"1,012.50",GIANT STEPS LTD.
Children and Young Peoples Services,Head of Education,Transfer Payments,510026,School Children,01-Sep-2017,3329139-7590,600.00,GIANT STEPS LTD.
Regeneration and Local Services,Economic Development and Housing,Supplies and Services,304259,Equipment and Materials,01-Sep-2017,3329140-734508,869.52,GLASDON UK LTD.
Regeneration and Local Services,Direct Services,Supplies and Services,304221,Equipment and Materials,01-Sep-2017,3329145-J6233,"6,950.08",GROVE REED.
Regeneration and Local Services,Technical Services,Supplies and Services,338027,Services,01-Sep-2017,3329148-0040236817,"5,580.00",HARTLEPOOL BOROUGH COUNCIL.
Regeneration and Local Services,Direct Services,Supplies and Services,304221,Equipment and Materials,01-Sep-2017,3329151-2811,698.00,HEXHAM MACHINERY CENTRE.
Adult and Health Services,Head of Adults,Third Party Payments,478151,Purchase of Care,01-Sep-2017,3329152-HCL37,"1,823.70",HIGHLEA CARE LTD.
Adult and Health Services,Head of Adults,Third Party Payments,478151,Purchase of Care,01-Sep-2017,3329152-HCL55,"1,884.49",HIGHLEA CARE LTD.
Regeneration and Local Services,Direct Services,Third Party Payments,430100,Rendered by Private Contractors,01-Sep-2017,3329155-69310,791.65,HOGARTH COACHWORKS LTD.
Regeneration and Local Services,Culture & Sport,Premises,106082,Centrally Controlled Rep and Maint,01-Sep-2017,3329159-R16/359,945.00,HYGIENIC CLEANING COMPANY (UK) LTD.
Regeneration and Local Services,Direct Services,Transport,210057,Repair and Maintenance of Vehicles,01-Sep-2017,3329167-179919,909.34,JG PAXTON & SONS LTD.
Regeneration and Local Services,Direct Services,Transport,210057,Repair and Maintenance of Vehicles,01-Sep-2017,3329167-180095,909.34,JG PAXTON & SONS LTD.
Children and Young Peoples Services,Childrens Services Operational Support,Supplies and Services,338026,Services,01-Sep-2017,3329168-17DUR008,"1,080.00",JIM MURDOCH.
Regeneration and Local Services,Technical Services,Employees,040149,Recruitment Instruction and Training,01-Sep-2017,3329173-ECS0129432,540.00,JOINT INDUSTRY BOARD.
Regeneration and Local Services,Technical Services,Supplies and Services,304040,Equipment and Materials,01-Sep-2017,3329175-BII233084,829.00,JT DOVE LTD.
Regeneration and Local Services,Technical Services,Supplies and Services,304221,Equipment and Materials,01-Sep-2017,3329175-BI1226167,"1,310.00",JT DOVE LTD.
Regeneration and Local Services,Technical Services,Supplies and Services,304221,Equipment and Materials,01-Sep-2017,3329175-BII225356,655.00,JT DOVE LTD.
Regeneration and Local Services,Technical Services,Supplies and Services,304221,Equipment and Materials,01-Sep-2017,3329175-BII228763,"1,150.44",JT DOVE LTD.
Regeneration and Local Services,Direct Services,Supplies and Services,304221,Equipment and Materials,01-Sep-2017,3329175-GOI277/D,"3,227.54",JT DOVE LTD.
Regeneration and Local Services,Direct Services,Supplies and Services,304221,Equipment and Materials,01-Sep-2017,3329175-GOI280/D,"2,797.02",JT DOVE LTD.
Regeneration and Local Services,Direct Services,Supplies and Services,304221,Equipment and Materials,01-Sep-2017,3329175-GOI281/D,"3,183.18",JT DOVE LTD.
Regeneration and Local Services,Technical Services,Third Party Payments,430100,Rendered by Private Contractors,01-Sep-2017,3329175-BII233079,507.24,JT DOVE LTD.
Regeneration and Local Services,Technical Services,Stock,926900,Stock in hand-Inventory system,01-Sep-2017,3329175-BII233072,769.10,JT DOVE LTD.
Regeneration and Local Services,Direct Services,Third Party Payments,430100,Rendered by Private Contractors,01-Sep-2017,3329179-4430,"1,034.00",KTD NE LTD.
Regeneration and Local Services,Direct Services,Third Party Payments,430100,Rendered by Private Contractors,01-Sep-2017,3329179-4431,"1,034.00",KTD NE LTD.
Regeneration and Local Services,Direct Services,Third Party Payments,430100,Rendered by Private Contractors,01-Sep-2017,3329179-4445,"1,034.00",KTD NE LTD.
Regeneration and Local Services,Direct Services,Third Party Payments,430100,Rendered by Private Contractors,01-Sep-2017,3329179-4449,"1,034.00",KTD NE LTD.
Regeneration and Local Services,Direct Services,Third Party Payments,430100,Rendered by Private Contractors,01-Sep-2017,3329179-4453,"1,034.00",KTD NE LTD.
Regeneration and Local Services,Technical Services,Third Party Payments,430100,Rendered by Private Contractors,01-Sep-2017,3329183-IN007392,720.00,LINBROOKE SERVICES LTD.
Regeneration and Local Services,Technical Services,Third Party Payments,430100,Rendered by Private Contractors,01-Sep-2017,3329183-IN007393,"2,160.00",LINBROOKE SERVICES LTD.
Regeneration and Local Services,Direct Services,Transport,210057,Repair and Maintenance of Vehicles,01-Sep-2017,3329187-139410,526.50,LONDONDERRY GARAGE (S.E) LTD.
Children and Young Peoples Services,Head of Education,Construction Work,908105,Construction work,01-Sep-2017,3329192-54516,900.00,LUCION ENVIRONMENTAL LLP LTD.
Children and Young Peoples Services,Childrens Services Operational Support,Supplies and Services,338026,Services,01-Sep-2017,3329193-SCS454,892.50,LYNDA GARBUTT T/A SOCIAL CARE SERVICES.
Children and Young Peoples Services,Childrens Services Operational Support,Supplies and Services,338026,Services,01-Sep-2017,3329207-4100588910,835.56,MS JACKIE JAMES.
Children and Young Peoples Services,Head of Education,Third Party Payments,440999,Other Third Party Payments,01-Sep-2017,3329216-4PROJECT2,"5,900.49",NIGEL BROUGH T/A BESPOKE TRAINING SOLUTIONS LTD.
Resources,Financial Services,Supplies and Services,338064,Services,01-Sep-2017,3329219-17976,"27,154.00",NORTH EAST REGIONAL EMPLOYERS ORGANISATION (NEREO).
Regeneration and Local Services,Direct Services,Third Party Payments,430100,Rendered by Private Contractors,01-Sep-2017,3329221-19949,500.68,NORTHBURN TECHNICAL SERVICES LTD.
Regeneration and Local Services,Technical Services,Third Party Payments,430100,Rendered by Private Contractors,01-Sep-2017,3329223-DI20276095,"2,155.23",NORTHERN POWERGRID (NORTHEAST) LTD.
Regeneration and Local Services,Technical Services,Third Party Payments,430100,Rendered by Private Contractors,01-Sep-2017,3329223-DI20276098,"1,888.30",NORTHERN POWERGRID (NORTHEAST) LTD.
Regeneration and Local Services,Technical Services,Supplies and Services,304221,Equipment and Materials,01-Sep-2017,3329224-914054538,533.43,NORTHUMBRIAN WATER LTD.
Regeneration and Local Services,Technical Services,Stock,926900,Stock in hand-Inventory system,01-Sep-2017,3329232-XL207317,520.00,PARK ELECTRICAL DISTRIBUTORS LTD.
Dedicated Schools Grant,Dedicated Schools Grant,Third Party Payments,440080,Other Third Party Payments,01-Sep-2017,3329236-32675,"7,729.50",PERCY HEDLEY FOUNDATION.
Dedicated Schools Grant,Dedicated Schools Grant,Third Party Payments,440080,Other Third Party Payments,01-Sep-2017,3329236-32676,"7,729.50",PERCY HEDLEY FOUNDATION.
Regeneration and Local Services,Technical Services,Third Party Payments,430100,Rendered by Private Contractors,01-Sep-2017,3329237-4883,"4,140.90",PINKNEY BUILDING CONTRACTORS LTD.
Regeneration and Local Services,Economic Development and Housing,Supplies and Services,384700,Miscellaneous Expenses,01-Sep-2017,3329195-RED-08-2017-234,650.00,REDACTED - PAYMENT TO INDIVIDUAL
Regeneration and Local Services,Direct Services,Transport,210057,Repair and Maintenance of Vehicles,01-Sep-2017,3329248-469938,669.50,S JENNINGS LTD.
Transformation and Partnerships,Comms & Information Management,Employees,040001,Recruitment Instruction and Training,01-Sep-2017,3329263-2803042502,643.50,SUNDERLAND CITY COUNCIL.
Regeneration and Local Services,Direct Services,Supplies and Services,304221,Equipment and Materials,01-Sep-2017,3329265-JE01396/TL/NF,690.00,T MANNERS & SONS LTD.
Regeneration and Local Services,Direct Services,Supplies and Services,304221,Equipment and Materials,01-Sep-2017,3329265-JE01398/TL/NF,780.00,T MANNERS & SONS LTD.
Dedicated Schools Grant,Dedicated Schools Grant,Third Party Payments,425005,Rendered by Voluntary Organisations,01-Sep-2017,3329266-509,"13,461.54",TALBOT HOUSE SCHOOL.
Children and Young Peoples Services,Head of Looked After Provision Permanence and Care Leavers,Employees,080025,Agency Staff,01-Sep-2017,3329269-2094001,"1,975.00",TEACHING PERSONNEL LTD.
Regeneration and Local Services,Direct Services,Supplies and Services,328041,Clothing Uniforms and Laundry,01-Sep-2017,3329273-N/IN202953,"3,880.00",THOMAS OWEN & SONS (NEWCASTLE) LTD.
Regeneration and Local Services,Technical Services,Stock,926900,Stock in hand-Inventory system,01-Sep-2017,3329273-N/IN202941,504.00,THOMAS OWEN & SONS (NEWCASTLE) LTD.
Regeneration and Local Services,Technical Services,Stock,926900,Stock in hand-Inventory system,01-Sep-2017,3329273-N/IN202951,"1,149.09",THOMAS OWEN & SONS (NEWCASTLE) LTD.
Children and Young Peoples Services,Head of Education,Third Party Payments,440999,Other Third Party Payments,01-Sep-2017,3329275-4999,"9,853.40",TIN ARTS.
Regeneration and Local Services,Direct Services,Third Party Payments,430121,Rendered by Private Contractors,01-Sep-2017,3329281-2266,"1,941.24",TXM ELECTRICAL MAINTENANCE LTD.
Regeneration and Local Services,Direct Services,Premises,106080,Centrally Controlled Rep and Maint,01-Sep-2017,3329282-DL863436,596.00,TYCO FIRE & INTEGRATED SOLUTIONS (UK) LTD.
Regeneration and Local Services,Direct Services,Premises,108099,Service Repairs and Maintenance,01-Sep-2017,3329282-DL863575,543.50,TYCO FIRE & INTEGRATED SOLUTIONS (UK) LTD.
Regeneration and Local Services,Technical Services,Supplies and Services,304221,Equipment and Materials,01-Sep-2017,3329283-176717,891.50,TYNEDALE ROADSTONE LTD.
Children and Young Peoples Services,Head of Education,Employees,040149,Recruitment Instruction and Training,01-Sep-2017,3329286-91464271,"8,650.00",UNIVERSITY OF NORTHUMBRIA.*
Children and Young Peoples Services,Head of Education,Employees,040149,Recruitment Instruction and Training,01-Sep-2017,3329286-91464272,"9,350.00",UNIVERSITY OF NORTHUMBRIA.*
Children and Young Peoples Services,Head of Education,Employees,040149,Recruitment Instruction and Training,01-Sep-2017,3329286-91464273,"9,700.00",UNIVERSITY OF NORTHUMBRIA.*
Children and Young Peoples Services,Childrens Services Operational Support,Supplies and Services,338091,Services,01-Sep-2017,3329287-56438,"1,500.00",UNIVERSITY OF TEESSIDE.
Resources,Digital and Customer Services,Stock,926900,Stock in hand-Inventory system,01-Sep-2017,3329296-BT64856,569.96,XMA LTD.
Children and Young Peoples Services,Head of Early Help Assessment and Safeguarding,Supplies and Services,384999,Miscellaneous Expenses,04-Sep-2017,3329301-11881260,581.67,ADT FIRE & SECURITY PLC.
Regeneration and Local Services,Technical Services,Supplies and Services,304221,Equipment and Materials,04-Sep-2017,3329303-25306098,"1,254.00",AGGREGATE INDUSTRIES UK LTD.
Regeneration and Local Services,Technical Services,Supplies and Services,304221,Equipment and Materials,04-Sep-2017,3329303-25306099,"1,496.93",AGGREGATE INDUSTRIES UK LTD.
Regeneration and Local Services,Technical Services,Supplies and Services,304221,Equipment and Materials,04-Sep-2017,3329303-25306100,"1,012.63",AGGREGATE INDUSTRIES UK LTD.
Regeneration and Local Services,Technical Services,Supplies and Services,304221,Equipment and Materials,04-Sep-2017,3329303-25312626,"1,248.98",AGGREGATE INDUSTRIES UK LTD.
Regeneration and Local Services,Technical Services,Supplies and Services,304221,Equipment and Materials,04-Sep-2017,3329303-25312627,"1,353.33",AGGREGATE INDUSTRIES UK LTD.
Regeneration and Local Services,Technical Services,Supplies and Services,304221,Equipment and Materials,04-Sep-2017,3329303-25312628,787.40,AGGREGATE INDUSTRIES UK LTD.
Regeneration and Local Services,Culture & Sport,Supplies and Services,338047,Services,04-Sep-2017,3329304-1389,"2,000.00",ALAN FENTIMAN.
Regeneration and Local Services,Culture & Sport,Supplies and Services,304259,Equipment and Materials,04-Sep-2017,3329311-SI321169,517.58,ARK WILDLIFE LTD.
Regeneration and Local Services,Technical Services,Stock,926900,Stock in hand-Inventory system,04-Sep-2017,3329312-SIN359091,867.00,ATF SUPPLIES LTD.
Regeneration and Local Services,Economic Development and Housing,Fees,901002,Professional fees,04-Sep-2017,3329313-17016039,"60,000.00",ATKINS GLOBAL.
Regeneration and Local Services,Technical Services,Third Party Payments,430100,Rendered by Private Contractors,04-Sep-2017,3329315-1717003,"16,107.17",BCE NORTHERN LTD.
Regeneration and Local Services,Technical Services,Supplies and Services,304221,Equipment and Materials,04-Sep-2017,3329317-INV-0206,"2,400.00",BEAVER BRIDGE HIRE LTD.
Regeneration and Local Services,Technical Services,Supplies and Services,304221,Equipment and Materials,04-Sep-2017,3329323-1014759,"2,982.00",BOSTON SEEDS.
Regeneration and Local Services,Technical Services,Third Party Payments,430100,Rendered by Private Contractors,04-Sep-2017,3329324-41745,"4,998.92",BRIDGEWAY CONSULTING LTD.
Regeneration and Local Services,Direct Services,Third Party Payments,430100,Rendered by Private Contractors,04-Sep-2017,3329325-PRI023654,"8,514.00",BROXAP LTD.
Regeneration and Local Services,Transport and Contracted Services,Construction Work,908105,Construction work,04-Sep-2017,3329327-24237,"3,036.02",BUS SHELTERS LTD.
Regeneration and Local Services,Direct Services,Third Party Payments,430100,Rendered by Private Contractors,04-Sep-2017,3329332-3021,"1,980.00",CATHEDRAL LOCK & SAFE SERVICES LTD.
Regeneration and Local Services,Direct Services,Third Party Payments,430100,Rendered by Private Contractors,04-Sep-2017,3329334-257,"1,147.66",CEILINGS DIRECT LTD.
Regeneration and Local Services,Direct Services,Third Party Payments,430100,Rendered by Private Contractors,04-Sep-2017,3329334-258,"2,618.32",CEILINGS DIRECT LTD.
Regeneration and Local Services,Direct Services,Third Party Payments,430100,Rendered by Private Contractors,04-Sep-2017,3329334-259,"4,189.28",CEILINGS DIRECT LTD.
Regeneration and Local Services,Economic Development and Housing,Supplies and Services,338035,Services,04-Sep-2017,3329337-804610318,518.50,CITY & GUILDS OF LONDON INSTITUTE.
Regeneration and Local Services,Culture & Sport,Supplies and Services,324001,Provisions,04-Sep-2017,3329340-9103801175,634.30,COCA-COLA EUROPEAN PARTNERS GREAT BRITAIN LTD (CCEP).
Regeneration and Local Services,Culture & Sport,Income,720810,Fees and Charges,04-Sep-2017,3329342-INV02317,"4,767.58",COMPETITION LINE UK LTD.
Regeneration and Local Services,Culture & Sport,Income,720810,Fees and Charges,04-Sep-2017,3329342-INV02318,"23,026.04",COMPETITION LINE UK LTD.
Regeneration and Local Services,Culture & Sport,Income,720810,Fees and Charges,04-Sep-2017,3329342-PSINV02316,"27,486.25",COMPETITION LINE UK LTD.
Regeneration and Local Services,Culture & Sport,Third Party Payments,430100,Rendered by Private Contractors,04-Sep-2017,3329342-INV02314,"27,377.47",COMPETITION LINE UK LTD.
Regeneration and Local Services,Culture & Sport,Third Party Payments,430100,Rendered by Private Contractors,04-Sep-2017,3329342-PSINV02315,"8,138.02",COMPETITION LINE UK LTD.
Transformation and Partnerships,Partnerships & Community Engagement Div.,Supplies and Services,384199,Miscellaneous Expenses,04-Sep-2017,3329346-170810,500.00,CRAGHEAD COLLIERY BAND.
Children and Young Peoples Services,Head of Early Help Assessment and Safeguarding,Transport,230005,Contract Hire,04-Sep-2017,3329349-INV-100137,717.32,CROFT BUSINESS SERVICES (UK) LTD T/A CROFT TAXIS.
Children and Young Peoples Services,Head of Early Help Assessment and Safeguarding,Transport,230005,Contract Hire,04-Sep-2017,3329349-INV-100196,558.18,CROFT BUSINESS SERVICES (UK) LTD T/A CROFT TAXIS.
Children and Young Peoples Services,Head of Early Help Assessment and Safeguarding,Transport,230005,Contract Hire,04-Sep-2017,3329349-INV-100199,521.67,CROFT BUSINESS SERVICES (UK) LTD T/A CROFT TAXIS.
Children and Young Peoples Services,Head of Early Help Assessment and Safeguarding,Transport,230005,Contract Hire,04-Sep-2017,3329349-INV-99990,518.31,CROFT BUSINESS SERVICES (UK) LTD T/A CROFT TAXIS.
Children and Young Peoples Services,Head of Early Help Assessment and Safeguarding,Transport,230005,Contract Hire,04-Sep-2017,3329349-INV-99998,743.20,CROFT BUSINESS SERVICES (UK) LTD T/A CROFT TAXIS.
Children and Young Peoples Services,Head of Early Help Assessment and Safeguarding,Transport,230005,Contract Hire,04-Sep-2017,3329349-INV-99999,717.32,CROFT BUSINESS SERVICES (UK) LTD T/A CROFT TAXIS.
Regeneration and Local Services,Direct Services,Third Party Payments,430100,Rendered by Private Contractors,04-Sep-2017,3329353-4474,"3,880.00",D STEWART SCAFFOLDING LTD.
Regeneration and Local Services,Technical Services,Third Party Payments,460223,Contract Payments,04-Sep-2017,3329354-3162940,"36,747.00",DARLINGTON BOROUGH COUNCIL.
Regeneration and Local Services,Culture & Sport,Supplies and Services,384199,Miscellaneous Expenses,04-Sep-2017,3329356-2090,604.28,DEREK SMITH.
Children and Young Peoples Services,Head of Education,Construction Work,908105,Construction work,04-Sep-2017,3329359-7065,570.00,DUNELM GEOTECHNICAL & ENVIRONMENTAL LTD.
Transformation and Partnerships,Partnerships & Community Engagement Div.,Transfer Payments,525030,Other,04-Sep-2017,3329360-JUN17/01,"1,000.00",DURHAM COMMUNITY ACTION LTD.
Regeneration and Local Services,Direct Services,Supplies and Services,304221,Equipment and Materials,04-Sep-2017,3329363-059-209497,732.40,EDMUNDSON ELECTRICAL LTD.
Regeneration and Local Services,Direct Services,Supplies and Services,338027,Services,04-Sep-2017,3329366-0000643517,968.00,ESG ASBESTOS LTD.
Children and Young Peoples Services,Head of Education,Supplies and Services,338035,Services,04-Sep-2017,3329371-SI-0000524,"3,525.00",FORSKILLS LTD.
Regeneration and Local Services,Technical Services,Stock,926900,Stock in hand-Inventory system,04-Sep-2017,3329376-06/694710,855.00,GREENHAM TRADING LTD.
Regeneration and Local Services,Technical Services,Supplies and Services,304221,Equipment and Materials,04-Sep-2017,3329379-IN050813,"10,989.14",HILL & SMITH LTD.
Regeneration and Local Services,Spatial Policy Planning Assets & Environment,Construction Work,908105,Construction work,04-Sep-2017,3329380-1535,"22,044.79",HISTORIC PROPERTY RESTORATION LTD.
Regeneration and Local Services,Direct Services,Third Party Payments,430100,Rendered by Private Contractors,04-Sep-2017,3329381-SIN053821,"88,211.40",HODGSON SAYERS LTD.
Adult and Health Services,Commissioning inc Supporting People,Third Party Payments,479111,Purchase of Care,04-Sep-2017,3329382-CES023,"2,833.33",HOMECARE SUPPORT LTD T/A THE HUMAN SUPPORT GROUP.
Regeneration and Local Services,Spatial Policy Planning Assets & Environment,Supplies and Services,342051,Computers and Communications,04-Sep-2017,3329385-108194,"1,200.00",IDOX SOFTWARE LTD.
Regeneration and Local Services,Economic Development and Housing,Premises,106099,Centrally Controlled Rep and Maint,04-Sep-2017,3329386-32446689,641.46,INITIAL WASHROOM SOLUTIONS.
Regeneration and Local Services,Technical Services,Employees,040149,Recruitment Instruction and Training,04-Sep-2017,3329388-0000104532,"2,935.00",INTEGRATED ENVIRONMENTAL SOLUTIONS LTD.
Regeneration and Local Services,Direct Services,Supplies and Services,304259,Equipment and Materials,04-Sep-2017,3329398-14022,"2,820.00",JPS SYSTEMS N E LTD.
Regeneration and Local Services,Technical Services,Stock,926900,Stock in hand-Inventory system,04-Sep-2017,3329400-BII233334,"1,120.00",JT DOVE LTD.
Regeneration and Local Services,Technical Services,Stock,926900,Stock in hand-Inventory system,04-Sep-2017,3329400-STI462811,893.20,JT DOVE LTD.
Regeneration and Local Services,Technical Services,Stock,926900,Stock in hand-Inventory system,04-Sep-2017,3329400-STI463037,854.00,JT DOVE LTD.
Regeneration and Local Services,Technical Services,Stock,926900,Stock in hand-Inventory system,04-Sep-2017,3329400-STI463171,728.96,JT DOVE LTD.
Dedicated Schools Grant,Dedicated Schools Grant,Supplies and Services,304259,Equipment and Materials,04-Sep-2017,3329402-41154,610.00,KAY PICTURES LTD.
Regeneration and Local Services,Culture & Sport,Employees,080030,Agency Staff,04-Sep-2017,3329403-INV1081,890.00,KAYLEIGH LAVERICK T/A THE GARAGE URBAN STYLES.
Regeneration and Local Services,Technical Services,Supplies and Services,304221,Equipment and Materials,04-Sep-2017,3329404-10457,"2,549.00",KEN THOMAS (SITE CLEARANCE LTD).
Regeneration and Local Services,Culture & Sport,Premises,125009,Rents,04-Sep-2017,3329408-U5017,"3,425.00",LANGLEY PARK BUSINESS CENTRE.
Regeneration and Local Services,Technical Services,Stock,926900,Stock in hand-Inventory system,04-Sep-2017,3329413-139542,668.59,LONDONDERRY GARAGE (S.E) LTD.
Regeneration and Local Services,Economic Development and Housing,Cap Exp on Grants & Other Financial Assistance (REFCUS),918401,Capital grants,04-Sep-2017,3329424-RED-09-2017-005,"8,352.00",MORGAN BROS REFURBISHMENTS.
Regeneration and Local Services,Culture & Sport,Supplies and Services,384302,Miscellaneous Expenses,04-Sep-2017,3329426-CPRS2017,"1,600.00",MR I DRUMMOND T/A 3SIXTY.
Regeneration and Local Services,Spatial Policy Planning Assets & Environment,Fees,901002,Professional fees,04-Sep-2017,3329429-603,"1,500.00",NAREC DISTRIBUTED ENERGY LTD.
Regeneration and Local Services,Spatial Policy Planning Assets & Environment,Fees,901002,Professional fees,04-Sep-2017,3329429-605,600.00,NAREC DISTRIBUTED ENERGY LTD.
Adult and Health Services,Head of Adults,Third Party Payments,473101,Purchase of Care,04-Sep-2017,3329431-7742,"2,634.91",NEURAL PATHWAYS.
Adult and Health Services,Head of Adults,Third Party Payments,473101,Purchase of Care,04-Sep-2017,3329431-7803,"2,438.76",NEURAL PATHWAYS.
Adult and Health Services,Head of Adults,Third Party Payments,473101,Purchase of Care,04-Sep-2017,3329431-7865,"1,542.67",NEURAL PATHWAYS.
Regeneration and Local Services,Technical Services,Employees,040149,Recruitment Instruction and Training,04-Sep-2017,3329436-SI-9127,840.00,NORTH EAST ACCESS TRAINING LTD.
Regeneration and Local Services,Direct Services,Debtors,930046,Debtor-leasing,04-Sep-2017,3329437-229245,"37,851.00",NORTH EAST TRUCK & VAN LTD.
Regeneration and Local Services,Direct Services,Debtors,930046,Debtor-leasing,04-Sep-2017,3329437-229246,"37,851.00",NORTH EAST TRUCK & VAN LTD.
Regeneration and Local Services,Economic Development and Housing,Supplies and Services,304259,Equipment and Materials,04-Sep-2017,3329439-983,794.00,NORTHERN ENGINEERING SOLUTIONS LTD (NES).
Regeneration and Local Services,Culture & Sport,Premises,145015,Cleaning and Domestic Supplies,04-Sep-2017,3329442-CN19442859,753.96,OCS GROUP UK LTD T/A CANNON HYGIENE.
Children and Young Peoples Services,Head of Looked After Provision Permanence and Care Leavers,Supplies and Services,338060,Services,04-Sep-2017,3329443-SINCC3F39956,"8,279.00",OFSTED.
Adult and Health Services,Head of Adults,Supplies and Services,338045,Services,04-Sep-2017,3329447-286143,"1,100.00",PARKLANE PLOWDEN CHAMBERS (BARRISTERS).
Resources,Digital and Customer Services,Stock,926900,Stock in hand-Inventory system,04-Sep-2017,3329457-OP/1575309,569.96,PROBRAND LTD.
Regeneration and Local Services,Economic Development and Housing,Cap Exp on Grants & Other Financial Assistance (REFCUS),918401,Capital grants,04-Sep-2017,3329458-RED-09-2017-004,"4,273.00",PROPERTY PROJECTS (NE) LTD.
Children and Young Peoples Services,Head of Education,Construction Work,908105,Construction work,04-Sep-2017,3329466-3502,"7,436.54",SAFE STRIP UK LTD.
Children and Young Peoples Services,Head of Education,Construction Work,908105,Construction work,04-Sep-2017,3329466-3519,"6,708.00",SAFE STRIP UK LTD.
Children and Young Peoples Services,Head of Education,Construction Work,908105,Construction work,04-Sep-2017,3329466-3520,"2,152.00",SAFE STRIP UK LTD.
Children and Young Peoples Services,Head of Education,Construction Work,908105,Construction work,04-Sep-2017,3329466-3521,"5,348.00",SAFE STRIP UK LTD.
Regeneration and Local Services,Technical Services,Third Party Payments,430100,Rendered by Private Contractors,04-Sep-2017,3329468-1253,"1,026.00",SCHMUCK WHORLTON LTD.
Regeneration and Local Services,Direct Services,Supplies and Services,304221,Equipment and Materials,04-Sep-2017,3329471-CD970539335,"2,093.32",SHERRIFF AMENITY.
Regeneration and Local Services,Technical Services,Supplies and Services,304221,Equipment and Materials,04-Sep-2017,3329474-239635,"1,115.00",SIGNPOST SOLUTIONS LTD.
Regeneration and Local Services,Technical Services,Supplies and Services,304221,Equipment and Materials,04-Sep-2017,3329475-74226,"1,029.74",SIMMONSIGNS LTD.
Regeneration and Local Services,Technical Services,Supplies and Services,304221,Equipment and Materials,04-Sep-2017,3329475-74498,"1,189.05",SIMMONSIGNS LTD.
Resources,Digital and Customer Services,Supplies and Services,342033,Computers and Communications,04-Sep-2017,3329478-INV01690881,"5,000.00",SOFTCAT LTD.
Regeneration and Local Services,Technical Services,Stock,926900,Stock in hand-Inventory system,04-Sep-2017,3329479-SI17006260,760.00,SOLON SECURITY LTD.
Regeneration and Local Services,Direct Services,Supplies and Services,304221,Equipment and Materials,04-Sep-2017,3329482-5897,"18,361.20",ST ASTIER LTD.
Adult and Health Services,Head of Adults,Third Party Payments,470101,Purchase of Care,04-Sep-2017,3329484-6288,"6,264.00",ST OSWALD`S HOSPICE.
Regeneration and Local Services,Technical Services,Supplies and Services,304221,Equipment and Materials,04-Sep-2017,3329487-096831,"1,194.00",STONEGRAVE AGGREGATES LTD.
Regeneration and Local Services,Technical Services,Supplies and Services,304221,Equipment and Materials,04-Sep-2017,3329487-096878,"1,055.40",STONEGRAVE AGGREGATES LTD.
Resources,Digital and Customer Services,Supplies and Services,342225,Computers and Communications,04-Sep-2017,3329490-126343,"3,106.64",SWITCHSHOP LTD.
Regeneration and Local Services,Direct Services,Supplies and Services,304221,Equipment and Materials,04-Sep-2017,3329491-2453568,"2,250.72",T CROSSLING & CO LTD.
Dedicated Schools Grant,Dedicated Schools Grant,Third Party Payments,425005,Rendered by Voluntary Organisations,04-Sep-2017,3329492-508,"9,615.38",TALBOT HOUSE SCHOOL.
Regeneration and Local Services,Technical Services,Supplies and Services,304221,Equipment and Materials,04-Sep-2017,3329493-9036694837,750.80,TARMAC TRADING LTD.
Regeneration and Local Services,Technical Services,Supplies and Services,304221,Equipment and Materials,04-Sep-2017,3329493-9036695832,"2,475.24",TARMAC TRADING LTD.
Regeneration and Local Services,Technical Services,Stock,926900,Stock in hand-Inventory system,04-Sep-2017,3329493-9036702062,695.45,TARMAC TRADING LTD.
Regeneration and Local Services,Direct Services,Third Party Payments,430100,Rendered by Private Contractors,04-Sep-2017,3329498-0000100901,"1,471.94",THE SEKURA GROUP.
Adult and Health Services,Head of Adults,Third Party Payments,478151,Purchase of Care,04-Sep-2017,3329500-TNX-INV-0000003304,840.00,THERA NORTH.
Regeneration and Local Services,Technical Services,Stock,926900,Stock in hand-Inventory system,04-Sep-2017,3329501-N/IN202789,"1,871.80",THOMAS OWEN & SONS (NEWCASTLE) LTD.
Regeneration and Local Services,Technical Services,Stock,926900,Stock in hand-Inventory system,04-Sep-2017,3329505-100205,"1,212.48",TOTAL RENTAL SOLUTIONS.
Regeneration and Local Services,Transport and Contracted Services,Supplies and Services,304259,Equipment and Materials,04-Sep-2017,3329508-3IN/10303598,"12,865.00",TUNSTALL HEALTHCARE (UK) LTD.
Regeneration and Local Services,Direct Services,Third Party Payments,430121,Rendered by Private Contractors,04-Sep-2017,3329510-2265,"1,495.00",TXM ELECTRICAL MAINTENANCE LTD.
Regeneration and Local Services,Technical Services,Supplies and Services,304221,Equipment and Materials,04-Sep-2017,3329511-176738,713.94,TYNEDALE ROADSTONE LTD.
Regeneration and Local Services,Technical Services,Supplies and Services,304221,Equipment and Materials,04-Sep-2017,3329511-176739,874.78,TYNEDALE ROADSTONE LTD.
Regeneration and Local Services,Technical Services,Supplies and Services,304221,Equipment and Materials,04-Sep-2017,3329511-176740,803.57,TYNEDALE ROADSTONE LTD.
Regeneration and Local Services,Technical Services,Supplies and Services,304221,Equipment and Materials,04-Sep-2017,3329511-176741,793.92,TYNEDALE ROADSTONE LTD.
Regeneration and Local Services,Technical Services,Supplies and Services,304221,Equipment and Materials,04-Sep-2017,3329511-176742,649.25,TYNEDALE ROADSTONE LTD.
Regeneration and Local Services,Technical Services,Supplies and Services,304221,Equipment and Materials,04-Sep-2017,3329511-176743,790.63,TYNEDALE ROADSTONE LTD.
Regeneration and Local Services,Technical Services,Supplies and Services,304221,Equipment and Materials,04-Sep-2017,3329511-176826,730.00,TYNEDALE ROADSTONE LTD.
Regeneration and Local Services,Technical Services,Supplies and Services,304221,Equipment and Materials,04-Sep-2017,3329511-176827,646.40,TYNEDALE ROADSTONE LTD.
Regeneration and Local Services,Technical Services,Supplies and Services,342215,Computers and Communications,04-Sep-2017,3329512-36670,"3,494.43",UK TELEMATICS LTD.
Regeneration and Local Services,Direct Services,Supplies and Services,304221,Equipment and Materials,04-Sep-2017,3329513-INV-0356,"2,650.00",UK VENTILATION LTD.
Regeneration and Local Services,Direct Services,Third Party Payments,430100,Rendered by Private Contractors,04-Sep-2017,3329513-INV-0354,"2,203.50",UK VENTILATION LTD.
Regeneration and Local Services,Direct Services,Third Party Payments,430100,Rendered by Private Contractors,04-Sep-2017,3329513-INV-0355,"5,880.00",UK VENTILATION LTD.
Children and Young Peoples Services,Head of Education,Supplies and Services,304259,Equipment and Materials,04-Sep-2017,3329515-SI-0212,"5,000.00",VIDEO ENHANCED OBSERVATION LTD (VEO).
Regeneration and Local Services,Culture & Sport,Supplies and Services,304259,Equipment and Materials,04-Sep-2017,3329519-AT1029,"1,895.00",WALLY ANDERSON T/A ALL TECHNIC.
Regeneration and Local Services,Direct Services,Fees,901002,Professional fees,04-Sep-2017,3329520-655058,"2,339.50",WARD HADAWAY.
Regeneration and Local Services,Direct Services,Supplies and Services,304221,Equipment and Materials,04-Sep-2017,3329525-45151415,696.16,WOLSELEY UK LTD.
Regeneration and Local Services,Technical Services,Stock,926900,Stock in hand-Inventory system,04-Sep-2017,3329528-145156916,"15,911.00",ZG LIGHTING (UK) LTD.
Regeneration and Local Services,Direct Services,Premises,108099,Service Repairs and Maintenance,05-Sep-2017,3330245-974,660.00,AA GARDENING & LANDSCAPING SERVICES.
Adult and Health Services,Head of Adults,Third Party Payments,478101,Purchase of Care,05-Sep-2017,3330491-1735520H,"3,104.64",ACCEPT CARE LTD.
Adult and Health Services,Head of Adults,Third Party Payments,478101,Purchase of Care,05-Sep-2017,3330491-1735621H,"3,304.60",ACCEPT CARE LTD.
Adult and Health Services,Head of Adults,Third Party Payments,478101,Purchase of Care,05-Sep-2017,3330491-1735682H,"4,431.92",ACCEPT CARE LTD.
Adult and Health Services,Head of Adults,Third Party Payments,478101,Purchase of Care,05-Sep-2017,3330491-1735802H,"3,198.72",ACCEPT CARE LTD.
Adult and Health Services,Head of Adults,Third Party Payments,478101,Purchase of Care,05-Sep-2017,3330491-1736044H,877.56,ACCEPT CARE LTD.
Adult and Health Services,Head of Adults,Third Party Payments,478101,Purchase of Care,05-Sep-2017,3330491-1736110H,"4,987.04",ACCEPT CARE LTD.
Adult and Health Services,Head of Adults,Third Party Payments,478101,Purchase of Care,05-Sep-2017,3330491-1736139H,877.56,ACCEPT CARE LTD.
Adult and Health Services,Head of Adults,Third Party Payments,478101,Purchase of Care,05-Sep-2017,3330491-1736148H,"1,166.88",ACCEPT CARE LTD.
Adult and Health Services,Head of Adults,Third Party Payments,478101,Purchase of Care,05-Sep-2017,3330491-1736149H,877.56,ACCEPT CARE LTD.
Adult and Health Services,Head of Adults,Third Party Payments,478101,Purchase of Care,05-Sep-2017,3330491-1736236H,877.56,ACCEPT CARE LTD.
Adult and Health Services,Head of Adults,Third Party Payments,478101,Purchase of Care,05-Sep-2017,3330491-1736274H,"4,396.12",ACCEPT CARE LTD.
Adult and Health Services,Head of Adults,Third Party Payments,478101,Purchase of Care,05-Sep-2017,3330491-1736276H,982.76,ACCEPT CARE LTD.
Adult and Health Services,Head of Adults,Third Party Payments,478101,Purchase of Care,05-Sep-2017,3330491-1736283H,"3,357.52",ACCEPT CARE LTD.
Adult and Health Services,Head of Adults,Third Party Payments,478101,Purchase of Care,05-Sep-2017,3330491-1736366H,"4,458.80",ACCEPT CARE LTD.
Adult and Health Services,Head of Adults,Third Party Payments,478101,Purchase of Care,05-Sep-2017,3330491-1736369H,877.56,ACCEPT CARE LTD.
Adult and Health Services,Head of Adults,Third Party Payments,478101,Purchase of Care,05-Sep-2017,3330491-1736585H,"6,204.68",ACCEPT CARE LTD.
Adult and Health Services,Head of Adults,Third Party Payments,478101,Purchase of Care,05-Sep-2017,3330491-1736792H,"5,506.32",ACCEPT CARE LTD.
Adult and Health Services,Head of Adults,Third Party Payments,478101,Purchase of Care,05-Sep-2017,3330491-1736817H,"2,444.28",ACCEPT CARE LTD.
Adult and Health Services,Head of Adults,Third Party Payments,478101,Purchase of Care,05-Sep-2017,3330491-1736880H,"6,096.80",ACCEPT CARE LTD.
Adult and Health Services,Head of Adults,Third Party Payments,478101,Purchase of Care,05-Sep-2017,3330491-1736899H,"4,637.84",ACCEPT CARE LTD.
Adult and Health Services,Head of Adults,Third Party Payments,478101,Purchase of Care,05-Sep-2017,3330491-1737000H,"2,675.88",ACCEPT CARE LTD.
Adult and Health Services,Head of Adults,Third Party Payments,478101,Purchase of Care,05-Sep-2017,3330491-1737022H,"4,969.12",ACCEPT CARE LTD.
Adult and Health Services,Head of Adults,Third Party Payments,478101,Purchase of Care,05-Sep-2017,3330491-1737051H,877.56,ACCEPT CARE LTD.
Adult and Health Services,Head of Adults,Third Party Payments,478101,Purchase of Care,05-Sep-2017,3330491-1737066H,"3,939.48",ACCEPT CARE LTD.
Adult and Health Services,Head of Adults,Third Party Payments,478101,Purchase of Care,05-Sep-2017,3330491-1737133H,"2,267.88",ACCEPT CARE LTD.
Adult and Health Services,Head of Adults,Third Party Payments,478101,Purchase of Care,05-Sep-2017,3330491-1737135H,"3,239.04",ACCEPT CARE LTD.
Adult and Health Services,Head of Adults,Third Party Payments,478101,Purchase of Care,05-Sep-2017,3330491-1737235H,"6,473.28",ACCEPT CARE LTD.
Adult and Health Services,Head of Adults,Third Party Payments,478101,Purchase of Care,05-Sep-2017,3330491-1737240H,"11,782.60",ACCEPT CARE LTD.
Adult and Health Services,Head of Adults,Third Party Payments,478101,Purchase of Care,05-Sep-2017,3330491-1737244H,877.56,ACCEPT CARE LTD.
Adult and Health Services,Head of Adults,Third Party Payments,478101,Purchase of Care,05-Sep-2017,3330491-1737250H,"3,395.84",ACCEPT CARE LTD.
Adult and Health Services,Head of Adults,Third Party Payments,478101,Purchase of Care,05-Sep-2017,3330491-1737323H,"3,632.16",ACCEPT CARE LTD.
Adult and Health Services,Head of Adults,Third Party Payments,478101,Purchase of Care,05-Sep-2017,3330491-1737330H,"6,473.28",ACCEPT CARE LTD.
Adult and Health Services,Head of Adults,Third Party Payments,478101,Purchase of Care,05-Sep-2017,3330491-1737446H,"2,654.40",ACCEPT CARE LTD.
Adult and Health Services,Head of Adults,Third Party Payments,478101,Purchase of Care,05-Sep-2017,3330491-1737512H,"1,715.48",ACCEPT CARE LTD.
Adult and Health Services,Head of Adults,Third Party Payments,478101,Purchase of Care,05-Sep-2017,3330491-1737923H,"4,421.76",ACCEPT CARE LTD.
Adult and Health Services,Head of Adults,Third Party Payments,478101,Purchase of Care,05-Sep-2017,3330491-1738007H,"1,515.80",ACCEPT CARE LTD.
Adult and Health Services,Head of Adults,Third Party Payments,478101,Purchase of Care,05-Sep-2017,3330491-1738164H,877.56,ACCEPT CARE LTD.
Adult and Health Services,Head of Adults,Third Party Payments,478101,Purchase of Care,05-Sep-2017,3330491-1738167H,877.56,ACCEPT CARE LTD.
Adult and Health Services,Head of Adults,Third Party Payments,478101,Purchase of Care,05-Sep-2017,3330491-1738592H,"5,094.48",ACCEPT CARE LTD.
Adult and Health Services,Head of Adults,Third Party Payments,478101,Purchase of Care,05-Sep-2017,3330491-1738651H,"1,377.28",ACCEPT CARE LTD.
Adult and Health Services,Head of Adults,Third Party Payments,478101,Purchase of Care,05-Sep-2017,3330491-1738684H,"6,259.40",ACCEPT CARE LTD.
Adult and Health Services,Head of Adults,Third Party Payments,478101,Purchase of Care,05-Sep-2017,3330491-1738972H,"1,158.52",ACCEPT CARE LTD.
Adult and Health Services,Head of Adults,Third Party Payments,478101,Purchase of Care,05-Sep-2017,3330491-1739041H,"3,223.24",ACCEPT CARE LTD.
Adult and Health Services,Head of Adults,Third Party Payments,478101,Purchase of Care,05-Sep-2017,3330491-1740248H,"1,515.80",ACCEPT CARE LTD.
Adult and Health Services,Head of Adults,Third Party Payments,478101,Purchase of Care,05-Sep-2017,3330491-1740373H,877.56,ACCEPT CARE LTD.
Adult and Health Services,Head of Adults,Third Party Payments,478101,Purchase of Care,05-Sep-2017,3330491-1740698H,"5,546.96",ACCEPT CARE LTD.
Adult and Health Services,Head of Adults,Third Party Payments,478101,Purchase of Care,05-Sep-2017,3330491-1740752H,"1,185.40",ACCEPT CARE LTD.
Adult and Health Services,Head of Adults,Third Party Payments,478101,Purchase of Care,05-Sep-2017,3330491-1740770H,877.56,ACCEPT CARE LTD.
Adult and Health Services,Head of Adults,Third Party Payments,478101,Purchase of Care,05-Sep-2017,3330491-1741234H,877.56,ACCEPT CARE LTD.
Adult and Health Services,Head of Adults,Third Party Payments,478101,Purchase of Care,05-Sep-2017,3330491-1741381H,"1,939.28",ACCEPT CARE LTD.
Adult and Health Services,Head of Adults,Third Party Payments,478101,Purchase of Care,05-Sep-2017,3330491-1741513H,"1,730.68",ACCEPT CARE LTD.
Adult and Health Services,Head of Adults,Third Party Payments,478101,Purchase of Care,05-Sep-2017,3330491-1741843H,877.56,ACCEPT CARE LTD.
Adult and Health Services,Head of Adults,Third Party Payments,478101,Purchase of Care,05-Sep-2017,3330491-1741867H,877.56,ACCEPT CARE LTD.
Adult and Health Services,Head of Adults,Transfer Payments,515201,Social Services Clients,05-Sep-2017,3330492-1737390H,863.32,ACCOUNTABILITY CLIENT ACCOUNT NO 1.
Adult and Health Services,Head of Adults,Transfer Payments,515201,Social Services Clients,05-Sep-2017,3330494-1741534H,"1,108.40",ACCOUNTABILITY CLIENT ACCOUNT NO 1.
Adult and Health Services,Head of Adults,Transfer Payments,515201,Social Services Clients,05-Sep-2017,3330495-1740969H,723.84,ACCOUNTABILITY CLIENT ACCOUNT NO 1.
Children and Young Peoples Services,Head of Early Help Assessment and Safeguarding,Transfer Payments,515201,Social Services Clients,05-Sep-2017,3330497-1740433H,844.00,ACCOUNTABILITY CLIENT ACCOUNT NO 1.
Adult and Health Services,Head of Adults,Transfer Payments,515201,Social Services Clients,05-Sep-2017,3330500-1740214H,950.04,ACCOUNTABILITY CLIENT ACCOUNT NO 1.
Children and Young Peoples Services,Head of Early Help Assessment and Safeguarding,Transfer Payments,515201,Social Services Clients,05-Sep-2017,3330501-1741496H,"1,146.48",ACCOUNTABILITY CLIENT ACCOUNT NO 1.
Adult and Health Services,Head of Adults,Transfer Payments,515201,Social Services Clients,05-Sep-2017,3330502-1738361H,791.72,ACCOUNTABILITY CLIENT ACCOUNT NO 1.
Adult and Health Services,Head of Adults,Transfer Payments,515201,Social Services Clients,05-Sep-2017,3330503-1736854H,874.64,ACCOUNTABILITY CLIENT ACCOUNT NO 1.
Adult and Health Services,Head of Adults,Transfer Payments,515201,Social Services Clients,05-Sep-2017,3330504-1736545H,"1,877.28",ACCOUNTABILITY CLIENT ACCOUNT NO 1.
Adult and Health Services,Head of Adults,Transfer Payments,515201,Social Services Clients,05-Sep-2017,3330505-1736445H,800.00,ACCOUNTABILITY CLIENT ACCOUNT NO 1.
Adult and Health Services,Head of Adults,Transfer Payments,515201,Social Services Clients,05-Sep-2017,3330506-1736936H,640.00,ACCOUNTABILITY CLIENT ACCOUNT NO 1.
Adult and Health Services,Head of Adults,Transfer Payments,515201,Social Services Clients,05-Sep-2017,3330509-1739170H,"3,132.00",ACCOUNTABILITY CLIENT ACCOUNT NO 1.
Adult and Health Services,Head of Adults,Transfer Payments,515201,Social Services Clients,05-Sep-2017,3330510-1736716H,800.00,ACCOUNTABILITY CLIENT ACCOUNT NO 1.
Adult and Health Services,Head of Adults,Transfer Payments,515201,Social Services Clients,05-Sep-2017,3330511-1736997H,"1,229.16",ACCOUNTABILITY CLIENT ACCOUNT NO 1.
Adult and Health Services,Head of Adults,Transfer Payments,515201,Social Services Clients,05-Sep-2017,3330512-1735949H,901.68,ACCOUNTABILITY CLIENT ACCOUNT NO 1.
Adult and Health Services,Head of Adults,Transfer Payments,515201,Social Services Clients,05-Sep-2017,3330516-1736422H,"1,220.00",ACCOUNTABILITY CLIENT ACCOUNT NO 1.
Adult and Health Services,Head of Adults,Transfer Payments,515201,Social Services Clients,05-Sep-2017,3330525-1741603H,"2,482.52",ACCOUNTABILITY CLIENT ACCOUNT NO 1.
Adult and Health Services,Head of Adults,Transfer Payments,515201,Social Services Clients,05-Sep-2017,3330527-1738132H,788.48,ACCOUNTABILITY CLIENT ACCOUNT NO 1.
Children and Young Peoples Services,Head of Early Help Assessment and Safeguarding,Transfer Payments,515201,Social Services Clients,05-Sep-2017,3330529-1740982H,600.00,ACCOUNTABILITY CLIENT ACCOUNT NO 1.
Adult and Health Services,Head of Adults,Transfer Payments,515201,Social Services Clients,05-Sep-2017,3330534-1738982H,"1,006.60",ACCOUNTABILITY CLIENT ACCOUNT NO 1.
Adult and Health Services,Head of Adults,Transfer Payments,515201,Social Services Clients,05-Sep-2017,3330535-1737472H,"1,288.12",ACCOUNTABILITY CLIENT ACCOUNT NO 1.
Adult and Health Services,Head of Adults,Transfer Payments,515201,Social Services Clients,05-Sep-2017,3330536-1738645H,829.40,ACCOUNTABILITY CLIENT ACCOUNT NO 1.
Adult and Health Services,Head of Adults,Transfer Payments,515201,Social Services Clients,05-Sep-2017,3330537-1738937H,759.60,ACCOUNTABILITY CLIENT ACCOUNT NO 1.
Adult and Health Services,Head of Adults,Transfer Payments,515201,Social Services Clients,05-Sep-2017,3330540-1740352H,506.40,ACCOUNTABILITY CLIENT ACCOUNT NO 1.
Children and Young Peoples Services,Head of Early Help Assessment and Safeguarding,Transfer Payments,515201,Social Services Clients,05-Sep-2017,3330545-1740199H,540.00,ACCOUNTABILITY CLIENT ACCOUNT NO 1.
Adult and Health Services,Head of Adults,Transfer Payments,515201,Social Services Clients,05-Sep-2017,3330547-1740520H,"1,115.92",ACCOUNTABILITY CLIENT ACCOUNT NO 1.
Adult and Health Services,Head of Adults,Transfer Payments,515201,Social Services Clients,05-Sep-2017,3330548-1741225H,633.36,ACCOUNTABILITY CLIENT ACCOUNT NO 1.
Adult and Health Services,Head of Adults,Transfer Payments,515201,Social Services Clients,05-Sep-2017,3330549-1741288H,"2,307.24",ACCOUNTABILITY CLIENT ACCOUNT NO 1.
Adult and Health Services,Head of Adults,Transfer Payments,515201,Social Services Clients,05-Sep-2017,3330550-1741198H,691.28,ACCOUNTABILITY CLIENT ACCOUNT NO 1.
Adult and Health Services,Head of Adults,Transfer Payments,515201,Social Services Clients,05-Sep-2017,3330551-1735881H,595.68,ACCOUNTABILITY CLIENT ACCOUNT NO 1.
Adult and Health Services,Head of Adults,Transfer Payments,515201,Social Services Clients,05-Sep-2017,3330552-1739174H,562.08,ACCOUNTABILITY CLIENT ACCOUNT NO 1.
Children and Young Peoples Services,Head of Early Help Assessment and Safeguarding,Transfer Payments,515201,Social Services Clients,05-Sep-2017,3330553-1741074H,600.00,ACCOUNTABILITY CLIENT ACCOUNT NO 1.
Children and Young Peoples Services,Head of Early Help Assessment and Safeguarding,Transfer Payments,515201,Social Services Clients,05-Sep-2017,3330554-1740886H,"1,770.00",ACCOUNTABILITY CLIENT ACCOUNT NO 1.
Adult and Health Services,Head of Adults,Transfer Payments,515201,Social Services Clients,05-Sep-2017,3330555-1738807H,701.04,ACCOUNTABILITY CLIENT ACCOUNT NO 1.
Adult and Health Services,Head of Adults,Transfer Payments,515201,Social Services Clients,05-Sep-2017,3330557-1737516H,687.44,ACCOUNTABILITY CLIENT ACCOUNT NO 1.
Adult and Health Services,Head of Adults,Transfer Payments,515201,Social Services Clients,05-Sep-2017,3330558-1740730H,"2,605.44",ACCOUNTABILITY CLIENT ACCOUNT NO 1.
Adult and Health Services,Head of Adults,Transfer Payments,515201,Social Services Clients,05-Sep-2017,3330560-1736202H,"1,616.52",ACCOUNTABILITY CLIENT ACCOUNT NO 1.
Adult and Health Services,Head of Adults,Transfer Payments,515201,Social Services Clients,05-Sep-2017,3330561-1735964H,588.12,ACCOUNTABILITY CLIENT ACCOUNT NO 1.
Adult and Health Services,Head of Adults,Transfer Payments,515210,Social Services Clients,05-Sep-2017,3330499-1738128H,"3,178.12",ACCOUNTABILITY CLIENT ACCOUNT NO 1.
Adult and Health Services,Head of Adults,Transfer Payments,515210,Social Services Clients,05-Sep-2017,3330520-1737747H,"1,402.44",ACCOUNTABILITY CLIENT ACCOUNT NO 1.
Adult and Health Services,Head of Adults,Transfer Payments,515210,Social Services Clients,05-Sep-2017,3330524-1738556H,"2,060.96",ACCOUNTABILITY CLIENT ACCOUNT NO 1.
Adult and Health Services,Head of Adults,Transfer Payments,515210,Social Services Clients,05-Sep-2017,3330539-1741285H,"4,071.60",ACCOUNTABILITY CLIENT ACCOUNT NO 1.
Adult and Health Services,Head of Adults,Transfer Payments,515210,Social Services Clients,05-Sep-2017,3330546-1737784H,"2,107.92",ACCOUNTABILITY CLIENT ACCOUNT NO 1.
Adult and Health Services,Head of Adults,Transfer Payments,515211,Social Services Clients,05-Sep-2017,3330507-1735485H,656.00,ACCOUNTABILITY CLIENT ACCOUNT NO 1.
Adult and Health Services,Head of Adults,Transfer Payments,515211,Social Services Clients,05-Sep-2017,3330515-1737150H,998.80,ACCOUNTABILITY CLIENT ACCOUNT NO 1.
Adult and Health Services,Head of Adults,Transfer Payments,515211,Social Services Clients,05-Sep-2017,3330517-1736462H,975.88,ACCOUNTABILITY CLIENT ACCOUNT NO 1.
Adult and Health Services,Head of Adults,Transfer Payments,515211,Social Services Clients,05-Sep-2017,3330518-1737179H,522.00,ACCOUNTABILITY CLIENT ACCOUNT NO 1.
Adult and Health Services,Head of Adults,Transfer Payments,515211,Social Services Clients,05-Sep-2017,3330519-1737187H,"2,214.40",ACCOUNTABILITY CLIENT ACCOUNT NO 1.
Adult and Health Services,Head of Adults,Transfer Payments,515211,Social Services Clients,05-Sep-2017,3330522-1736708H,964.00,ACCOUNTABILITY CLIENT ACCOUNT NO 1.
Adult and Health Services,Head of Adults,Transfer Payments,515211,Social Services Clients,05-Sep-2017,3330523-1736266H,"1,662.52",ACCOUNTABILITY CLIENT ACCOUNT NO 1.
Adult and Health Services,Head of Adults,Transfer Payments,515211,Social Services Clients,05-Sep-2017,3330526-1737264H,"1,124.80",ACCOUNTABILITY CLIENT ACCOUNT NO 1.
Adult and Health Services,Head of Adults,Transfer Payments,515211,Social Services Clients,05-Sep-2017,3330531-1736729H,"3,829.92",ACCOUNTABILITY CLIENT ACCOUNT NO 1.
Adult and Health Services,Head of Adults,Transfer Payments,515209,Social Services Clients,05-Sep-2017,3330517-1736462D,690.69,ACCOUNTABILITY CLIENT ACCOUNT NO 1.
Adult and Health Services,Head of Adults,Transfer Payments,515201,Social Services Clients,05-Sep-2017,3330562-1738344H,"3,635.96",ACCOUNTABILITY CLIENT ACCOUNT NO 2.
Adult and Health Services,Head of Adults,Transfer Payments,515201,Social Services Clients,05-Sep-2017,3330564-1736289H,616.72,ACCOUNTABILITY CLIENT ACCOUNT NO 2.
Adult and Health Services,Head of Adults,Transfer Payments,515201,Social Services Clients,05-Sep-2017,3330565-1741105H,515.24,ACCOUNTABILITY CLIENT ACCOUNT NO 2.
Adult and Health Services,Head of Adults,Transfer Payments,515201,Social Services Clients,05-Sep-2017,3330570-1738341H,960.24,ACCOUNTABILITY CLIENT ACCOUNT NO 2.
Children and Young Peoples Services,Head of Early Help Assessment and Safeguarding,Transfer Payments,515201,Social Services Clients,05-Sep-2017,3330571-1740777H,660.00,ACCOUNTABILITY CLIENT ACCOUNT NO 2.
Adult and Health Services,Head of Adults,Transfer Payments,515201,Social Services Clients,05-Sep-2017,3330575-1739218H,"2,100.00",ACCOUNTABILITY CLIENT ACCOUNT NO 2.
Adult and Health Services,Head of Adults,Transfer Payments,515201,Social Services Clients,05-Sep-2017,3330576-1740907H,749.44,ACCOUNTABILITY CLIENT ACCOUNT NO 2.
Adult and Health Services,Head of Adults,Transfer Payments,515201,Social Services Clients,05-Sep-2017,3330577-1738990H,644.04,ACCOUNTABILITY CLIENT ACCOUNT NO 2.
Adult and Health Services,Head of Adults,Transfer Payments,515201,Social Services Clients,05-Sep-2017,3330578-1741726H,519.16,ACCOUNTABILITY CLIENT ACCOUNT NO 2.
Adult and Health Services,Head of Adults,Transfer Payments,515201,Social Services Clients,05-Sep-2017,3330579-1738124H,702.60,ACCOUNTABILITY CLIENT ACCOUNT NO 2.
Adult and Health Services,Head of Adults,Transfer Payments,515201,Social Services Clients,05-Sep-2017,3330581-1740959H,562.08,ACCOUNTABILITY CLIENT ACCOUNT NO 2.
Adult and Health Services,Head of Adults,Transfer Payments,515201,Social Services Clients,05-Sep-2017,3330583-1738408H,726.04,ACCOUNTABILITY CLIENT ACCOUNT NO 2.
Adult and Health Services,Head of Adults,Transfer Payments,515201,Social Services Clients,05-Sep-2017,3330584-1740761H,679.20,ACCOUNTABILITY CLIENT ACCOUNT NO 2.
Adult and Health Services,Head of Adults,Transfer Payments,515201,Social Services Clients,05-Sep-2017,3330588-1738451H,"1,767.04",ACCOUNTABILITY CLIENT ACCOUNT NO 2.
Adult and Health Services,Head of Adults,Transfer Payments,515201,Social Services Clients,05-Sep-2017,3330589-1739018H,608.92,ACCOUNTABILITY CLIENT ACCOUNT NO 2.
Adult and Health Services,Head of Adults,Transfer Payments,515201,Social Services Clients,05-Sep-2017,3330590-1738924H,"1,183.52",ACCOUNTABILITY CLIENT ACCOUNT NO 2.
Adult and Health Services,Head of Adults,Transfer Payments,515201,Social Services Clients,05-Sep-2017,3330591-1741479H,655.76,ACCOUNTABILITY CLIENT ACCOUNT NO 2.
Adult and Health Services,Head of Adults,Transfer Payments,515210,Social Services Clients,05-Sep-2017,3330580-1736215H,"1,498.88",ACCOUNTABILITY CLIENT ACCOUNT NO 2.
Adult and Health Services,Head of Adults,Transfer Payments,515209,Social Services Clients,05-Sep-2017,3330581-1740959D,"1,800.00",ACCOUNTABILITY CLIENT ACCOUNT NO 2.
Children and Young Peoples Services,Head of Looked After Provision Permanence and Care Leavers,Third Party Payments,425040,Rendered by Voluntary Organisations,05-Sep-2017,3330861-1740019H,"2,920.12",ACORN CARE (NE) LTD T/A ACORN FOSTERING SERVICES.
Children and Young Peoples Services,Head of Looked After Provision Permanence and Care Leavers,Third Party Payments,425040,Rendered by Voluntary Organisations,05-Sep-2017,3330861-1740607H,"3,500.00",ACORN CARE (NE) LTD T/A ACORN FOSTERING SERVICES.
Children and Young Peoples Services,Head of Looked After Provision Permanence and Care Leavers,Third Party Payments,425040,Rendered by Voluntary Organisations,05-Sep-2017,3330861-1740712H,"2,800.00",ACORN CARE (NE) LTD T/A ACORN FOSTERING SERVICES.
Children and Young Peoples Services,Head of Looked After Provision Permanence and Care Leavers,Third Party Payments,425040,Rendered by Voluntary Organisations,05-Sep-2017,3330863-1739647H,938.61,ACORN HOUSE (FOSTERING SERVICES) LTD.
Children and Young Peoples Services,Head of Looked After Provision Permanence and Care Leavers,Third Party Payments,425040,Rendered by Voluntary Organisations,05-Sep-2017,3330863-1741771H,"2,920.12",ACORN HOUSE (FOSTERING SERVICES) LTD.
Children and Young Peoples Services,Head of Looked After Provision Permanence and Care Leavers,Third Party Payments,425040,Rendered by Voluntary Organisations,05-Sep-2017,3330864-1740692H,"2,920.12",ACTION FOR CHILDREN.
Adult and Health Services,Head of Adults,Third Party Payments,472101,Purchase of Care,05-Sep-2017,3330865-1736055H,686.80,ACTION ON HEARING LOSS.
Transformation and Partnerships,Partnerships & Community Engagement Div.,Supplies and Services,384199,Miscellaneous Expenses,05-Sep-2017,3330249-2289,"2,926.00",ALAN HILLARY EVENTS LTD.
Adult and Health Services,Head of Adults,Third Party Payments,472101,Purchase of Care,05-Sep-2017,3330894-1736596H,"4,536.00",ALLIED HEALTHCARE GROUP LTD.
Regeneration and Local Services,Culture & Sport,Supplies and Services,384199,Miscellaneous Expenses,05-Sep-2017,3330253-2017-248-141-001589,"8,002.00",AMERICAN EXPRESS SERVICES EUROPE LTD.
Adult and Health Services,Head of Adults,Third Party Payments,478101,Purchase of Care,05-Sep-2017,3330917-1735528H,"6,434.72",AUTISM CARE UK (4) LTD.
Adult and Health Services,Head of Adults,Third Party Payments,478101,Purchase of Care,05-Sep-2017,3330917-1735928H,"3,872.24",AUTISM CARE UK (4) LTD.
Adult and Health Services,Head of Adults,Third Party Payments,478101,Purchase of Care,05-Sep-2017,3330917-1736739H,"2,988.64",AUTISM CARE UK (4) LTD.
Adult and Health Services,Head of Adults,Third Party Payments,478101,Purchase of Care,05-Sep-2017,3330917-1736941H,"4,608.64",AUTISM CARE UK (4) LTD.
Adult and Health Services,Head of Adults,Third Party Payments,478101,Purchase of Care,05-Sep-2017,3330917-1736989H,"3,872.24",AUTISM CARE UK (4) LTD.
Adult and Health Services,Head of Adults,Third Party Payments,478101,Purchase of Care,05-Sep-2017,3330917-1737121H,"2,456.52",AUTISM CARE UK (4) LTD.
Adult and Health Services,Head of Adults,Third Party Payments,478101,Purchase of Care,05-Sep-2017,3330917-1737219H,"3,872.24",AUTISM CARE UK (4) LTD.
Adult and Health Services,Head of Adults,Third Party Payments,478101,Purchase of Care,05-Sep-2017,3330917-1737231H,"3,872.24",AUTISM CARE UK (4) LTD.
Adult and Health Services,Head of Adults,Third Party Payments,478101,Purchase of Care,05-Sep-2017,3330917-1737232H,"3,872.24",AUTISM CARE UK (4) LTD.
Adult and Health Services,Head of Adults,Third Party Payments,478101,Purchase of Care,05-Sep-2017,3330917-1737401H,"2,456.52",AUTISM CARE UK (4) LTD.
Adult and Health Services,Head of Adults,Third Party Payments,478101,Purchase of Care,05-Sep-2017,3330917-1737925H,"7,090.48",AUTISM CARE UK (4) LTD.
Adult and Health Services,Head of Adults,Third Party Payments,478101,Purchase of Care,05-Sep-2017,3330917-1738835H,"6,248.68",AUTISM CARE UK (4) LTD.
Children and Young Peoples Services,Head of Looked After Provision Permanence and Care Leavers,Third Party Payments,425040,Rendered by Voluntary Organisations,05-Sep-2017,3330919-1738744H,"2,404.92",BARNARDOS BELIEVE IN CHILDREN.
Children and Young Peoples Services,Head of Looked After Provision Permanence and Care Leavers,Third Party Payments,425040,Rendered by Voluntary Organisations,05-Sep-2017,3330919-1739532H,"3,280.20",BARNARDOS BELIEVE IN CHILDREN.
Children and Young Peoples Services,Head of Looked After Provision Permanence and Care Leavers,Third Party Payments,425040,Rendered by Voluntary Organisations,05-Sep-2017,3330919-1739641H,"3,920.00",BARNARDOS BELIEVE IN CHILDREN.
Children and Young Peoples Services,Head of Looked After Provision Permanence and Care Leavers,Third Party Payments,425040,Rendered by Voluntary Organisations,05-Sep-2017,3330919-1739762H,"2,920.12",BARNARDOS BELIEVE IN CHILDREN.
Children and Young Peoples Services,Head of Looked After Provision Permanence and Care Leavers,Third Party Payments,425040,Rendered by Voluntary Organisations,05-Sep-2017,3330919-1739808H,"3,280.20",BARNARDOS BELIEVE IN CHILDREN.
Children and Young Peoples Services,Head of Looked After Provision Permanence and Care Leavers,Third Party Payments,425040,Rendered by Voluntary Organisations,05-Sep-2017,3330919-1739991H,"3,280.20",BARNARDOS BELIEVE IN CHILDREN.
Children and Young Peoples Services,Head of Looked After Provision Permanence and Care Leavers,Third Party Payments,425040,Rendered by Voluntary Organisations,05-Sep-2017,3330919-1740316H,"2,800.00",BARNARDOS BELIEVE IN CHILDREN.
Children and Young Peoples Services,Head of Looked After Provision Permanence and Care Leavers,Third Party Payments,425040,Rendered by Voluntary Organisations,05-Sep-2017,3330919-1740346H,"2,800.00",BARNARDOS BELIEVE IN CHILDREN.
Children and Young Peoples Services,Head of Looked After Provision Permanence and Care Leavers,Third Party Payments,425040,Rendered by Voluntary Organisations,05-Sep-2017,3330919-1740695H,"2,800.00",BARNARDOS BELIEVE IN CHILDREN.
Children and Young Peoples Services,Head of Looked After Provision Permanence and Care Leavers,Third Party Payments,425040,Rendered by Voluntary Organisations,05-Sep-2017,3330919-1741386H,"3,600.24",BARNARDOS BELIEVE IN CHILDREN.
Children and Young Peoples Services,Head of Looked After Provision Permanence and Care Leavers,Third Party Payments,425040,Rendered by Voluntary Organisations,05-Sep-2017,3330919-1741688H,"2,800.00",BARNARDOS BELIEVE IN CHILDREN.
Children and Young Peoples Services,Head of Looked After Provision Permanence and Care Leavers,Third Party Payments,425040,Rendered by Voluntary Organisations,05-Sep-2017,3330919-1741721H,"2,920.12",BARNARDOS BELIEVE IN CHILDREN.
Regeneration and Local Services,Culture & Sport,Supplies and Services,384700,Miscellaneous Expenses,05-Sep-2017,3330272-30120484,500.00,BLACKPOOL BOROUGH COUNCIL.
Adult and Health Services,Public Health,Third Party Payments,460802,Contract Payments,05-Sep-2017,3330281-FYR53/JUL2017/EOHC,903.26,BOOTS THE CHEMISTS LTD.*
Resources,Legal & Democratic Services,Employees,057013,Insurance and Medical fees,05-Sep-2017,3330290-3593,"1,656.37",BRADLEY HALL LTD.
Adult and Health Services,Head of Adults,Third Party Payments,470101,Purchase of Care,05-Sep-2017,3330295-138/18,"1,480.00",BUTTERWICK HOSPICE RETAIL LTD.
Children and Young Peoples Services,Head of Early Help Assessment and Safeguarding,Third Party Payments,425020,Rendered by Voluntary Organisations,05-Sep-2017,3330295-119/17-JULY2017,"1,480.00",BUTTERWICK HOSPICE RETAIL LTD.
Children and Young Peoples Services,Head of Early Help Assessment and Safeguarding,Third Party Payments,425020,Rendered by Voluntary Organisations,05-Sep-2017,3330295-121/18,740.00,BUTTERWICK HOSPICE RETAIL LTD.
Children and Young Peoples Services,Head of Early Help Assessment and Safeguarding,Third Party Payments,425020,Rendered by Voluntary Organisations,05-Sep-2017,3330295-124/18,"1,480.00",BUTTERWICK HOSPICE RETAIL LTD.
Children and Young Peoples Services,Head of Early Help Assessment and Safeguarding,Third Party Payments,425020,Rendered by Voluntary Organisations,05-Sep-2017,3330295-126/18,740.00,BUTTERWICK HOSPICE RETAIL LTD.
Children and Young Peoples Services,Head of Early Help Assessment and Safeguarding,Third Party Payments,425020,Rendered by Voluntary Organisations,05-Sep-2017,3330295-128/18,"1,480.00",BUTTERWICK HOSPICE RETAIL LTD.
Children and Young Peoples Services,Head of Early Help Assessment and Safeguarding,Third Party Payments,425020,Rendered by Voluntary Organisations,05-Sep-2017,3330295-135/18,"1,110.00",BUTTERWICK HOSPICE RETAIL LTD.
Children and Young Peoples Services,Head of Early Help Assessment and Safeguarding,Third Party Payments,425020,Rendered by Voluntary Organisations,05-Sep-2017,3330295-136/18,"1,480.00",BUTTERWICK HOSPICE RETAIL LTD.
Children and Young Peoples Services,Head of Early Help Assessment and Safeguarding,Third Party Payments,425020,Rendered by Voluntary Organisations,05-Sep-2017,3330295-137/18,"1,850.00",BUTTERWICK HOSPICE RETAIL LTD.
Children and Young Peoples Services,Head of Early Help Assessment and Safeguarding,Third Party Payments,425020,Rendered by Voluntary Organisations,05-Sep-2017,3330295-139/18,"3,700.00",BUTTERWICK HOSPICE RETAIL LTD.
Adult and Health Services,Head of Adults,Supplies and Services,338366,Services,05-Sep-2017,3330296-42827,"1,411.05",CARE ABILITY.
Adult and Health Services,Head of Adults,Supplies and Services,338366,Services,05-Sep-2017,3330296-42828,"1,162.35",CARE ABILITY.
Adult and Health Services,Head of Adults,Supplies and Services,338366,Services,05-Sep-2017,3330296-42829,"1,417.00",CARE ABILITY.
Adult and Health Services,Head of Adults,Third Party Payments,472101,Purchase of Care,05-Sep-2017,3330952-1737362H,664.08,CASTLE CARE TEESDALE LTD.
Adult and Health Services,Head of Adults,Third Party Payments,472101,Purchase of Care,05-Sep-2017,3330952-1737423H,541.04,CASTLE CARE TEESDALE LTD.
Adult and Health Services,Head of Adults,Third Party Payments,472101,Purchase of Care,05-Sep-2017,3330952-1737430H,845.68,CASTLE CARE TEESDALE LTD.
Adult and Health Services,Head of Adults,Third Party Payments,472101,Purchase of Care,05-Sep-2017,3330952-1737888H,732.00,CASTLE CARE TEESDALE LTD.
Adult and Health Services,Head of Adults,Third Party Payments,472101,Purchase of Care,05-Sep-2017,3330952-1738048H,606.96,CASTLE CARE TEESDALE LTD.
Adult and Health Services,Head of Adults,Third Party Payments,472101,Purchase of Care,05-Sep-2017,3330952-1738153H,572.88,CASTLE CARE TEESDALE LTD.
Adult and Health Services,Head of Adults,Third Party Payments,472101,Purchase of Care,05-Sep-2017,3330952-1738482H,552.32,CASTLE CARE TEESDALE LTD.
Adult and Health Services,Head of Adults,Third Party Payments,472101,Purchase of Care,05-Sep-2017,3330952-1739023H,636.52,CASTLE CARE TEESDALE LTD.
Adult and Health Services,Head of Adults,Third Party Payments,472101,Purchase of Care,05-Sep-2017,3330952-1740526H,701.40,CASTLE CARE TEESDALE LTD.
Adult and Health Services,Head of Adults,Third Party Payments,472101,Purchase of Care,05-Sep-2017,3330952-1740696H,"1,839.52",CASTLE CARE TEESDALE LTD.
Adult and Health Services,Head of Adults,Third Party Payments,472101,Purchase of Care,05-Sep-2017,3330952-1741038H,"1,309.44",CASTLE CARE TEESDALE LTD.
Adult and Health Services,Head of Adults,Third Party Payments,472101,Purchase of Care,05-Sep-2017,3330952-1741385H,750.20,CASTLE CARE TEESDALE LTD.
Adult and Health Services,Head of Adults,Third Party Payments,472101,Purchase of Care,05-Sep-2017,3330952-1741684H,"1,014.04",CASTLE CARE TEESDALE LTD.
Adult and Health Services,Head of Adults,Third Party Payments,472101,Purchase of Care,05-Sep-2017,3330952-1742300H,943.76,CASTLE CARE TEESDALE LTD.
Regeneration and Local Services,Direct Services,Third Party Payments,430100,Rendered by Private Contractors,05-Sep-2017,3330297-3024,671.60,CATHEDRAL LOCK & SAFE SERVICES LTD.
Children and Young Peoples Services,Head of Looked After Provision Permanence and Care Leavers,Third Party Payments,425040,Rendered by Voluntary Organisations,05-Sep-2017,3330960-1739771H,"2,920.12",CHILDRENS FAMILY TRUST.
Children and Young Peoples Services,Head of Looked After Provision Permanence and Care Leavers,Third Party Payments,425040,Rendered by Voluntary Organisations,05-Sep-2017,3330960-1740065H,"2,800.00",CHILDRENS FAMILY TRUST.
Children and Young Peoples Services,Head of Looked After Provision Permanence and Care Leavers,Third Party Payments,425040,Rendered by Voluntary Organisations,05-Sep-2017,3330960-1740369H,"2,920.12",CHILDRENS FAMILY TRUST.
Children and Young Peoples Services,Head of Looked After Provision Permanence and Care Leavers,Third Party Payments,425040,Rendered by Voluntary Organisations,05-Sep-2017,3330960-1740435H,"2,800.00",CHILDRENS FAMILY TRUST.
Adult and Health Services,Head of Adults,Third Party Payments,478101,Purchase of Care,05-Sep-2017,3330964-1736183H,"3,956.40",CHOICES COMMUNITY CARE SERVICES LTD.
Adult and Health Services,Head of Adults,Third Party Payments,478101,Purchase of Care,05-Sep-2017,3330964-1737429H,"3,850.80",CHOICES COMMUNITY CARE SERVICES LTD.
Adult and Health Services,Head of Adults,Third Party Payments,478101,Purchase of Care,05-Sep-2017,3330964-1737456H,"3,982.80",CHOICES COMMUNITY CARE SERVICES LTD.
Adult and Health Services,Head of Adults,Third Party Payments,478101,Purchase of Care,05-Sep-2017,3330964-1737918H,"4,299.60",CHOICES COMMUNITY CARE SERVICES LTD.
Adult and Health Services,Head of Adults,Third Party Payments,440062,Other Third Party Payments,05-Sep-2017,3330982-1738655H,"1,473.12",COMFORT CALL LTD.
Adult and Health Services,Head of Adults,Third Party Payments,472101,Purchase of Care,05-Sep-2017,3330982-1735506H,728.61,COMFORT CALL LTD.
Adult and Health Services,Head of Adults,Third Party Payments,472101,Purchase of Care,05-Sep-2017,3330982-1735545H,509.24,COMFORT CALL LTD.
Adult and Health Services,Head of Adults,Third Party Payments,472101,Purchase of Care,05-Sep-2017,3330982-1735601H,"1,875.50",COMFORT CALL LTD.
Adult and Health Services,Head of Adults,Third Party Payments,472101,Purchase of Care,05-Sep-2017,3330982-1735630H,613.80,COMFORT CALL LTD.
Adult and Health Services,Head of Adults,Third Party Payments,472101,Purchase of Care,05-Sep-2017,3330982-1735648H,536.52,COMFORT CALL LTD.
Adult and Health Services,Head of Adults,Third Party Payments,472101,Purchase of Care,05-Sep-2017,3330982-1735672H,645.62,COMFORT CALL LTD.
Adult and Health Services,Head of Adults,Third Party Payments,472101,Purchase of Care,05-Sep-2017,3330982-1736107H,"1,132.12",COMFORT CALL LTD.
Adult and Health Services,Head of Adults,Third Party Payments,472101,Purchase of Care,05-Sep-2017,3330982-1736128H,"1,705.00",COMFORT CALL LTD.
Adult and Health Services,Head of Adults,Third Party Payments,472101,Purchase of Care,05-Sep-2017,3330982-1736553H,"1,268.52",COMFORT CALL LTD.
Adult and Health Services,Head of Adults,Third Party Payments,472101,Purchase of Care,05-Sep-2017,3330982-1736719H,"2,591.60",COMFORT CALL LTD.
Adult and Health Services,Head of Adults,Third Party Payments,472101,Purchase of Care,05-Sep-2017,3330982-1737198H,750.20,COMFORT CALL LTD.
Adult and Health Services,Head of Adults,Third Party Payments,472101,Purchase of Care,05-Sep-2017,3330982-1737480H,886.60,COMFORT CALL LTD.
Adult and Health Services,Head of Adults,Third Party Payments,472101,Purchase of Care,05-Sep-2017,3330982-1737483H,795.67,COMFORT CALL LTD.
Adult and Health Services,Head of Adults,Third Party Payments,472101,Purchase of Care,05-Sep-2017,3330982-1737494H,504.68,COMFORT CALL LTD.
Adult and Health Services,Head of Adults,Third Party Payments,472101,Purchase of Care,05-Sep-2017,3330982-1737507H,"1,564.04",COMFORT CALL LTD.
Adult and Health Services,Head of Adults,Third Party Payments,472101,Purchase of Care,05-Sep-2017,3330982-1737520H,611.52,COMFORT CALL LTD.
Adult and Health Services,Head of Adults,Third Party Payments,472101,Purchase of Care,05-Sep-2017,3330982-1737537H,514.91,COMFORT CALL LTD.
Adult and Health Services,Head of Adults,Third Party Payments,472101,Purchase of Care,05-Sep-2017,3330982-1737557H,797.94,COMFORT CALL LTD.
Adult and Health Services,Head of Adults,Third Party Payments,472101,Purchase of Care,05-Sep-2017,3330982-1737567H,"1,027.55",COMFORT CALL LTD.
Adult and Health Services,Head of Adults,Third Party Payments,472101,Purchase of Care,05-Sep-2017,3330982-1737571H,763.84,COMFORT CALL LTD.
Adult and Health Services,Head of Adults,Third Party Payments,472101,Purchase of Care,05-Sep-2017,3330982-1737590H,505.83,COMFORT CALL LTD.
Adult and Health Services,Head of Adults,Third Party Payments,472101,Purchase of Care,05-Sep-2017,3330982-1737619H,"1,486.76",COMFORT CALL LTD.
Adult and Health Services,Head of Adults,Third Party Payments,472101,Purchase of Care,05-Sep-2017,3330982-1737632H,716.10,COMFORT CALL LTD.
Adult and Health Services,Head of Adults,Third Party Payments,472101,Purchase of Care,05-Sep-2017,3330982-1737640H,613.80,COMFORT CALL LTD.
Adult and Health Services,Head of Adults,Third Party Payments,472101,Purchase of Care,05-Sep-2017,3330982-1737643H,"1,304.89",COMFORT CALL LTD.
Adult and Health Services,Head of Adults,Third Party Payments,472101,Purchase of Care,05-Sep-2017,3330982-1737653H,736.56,COMFORT CALL LTD.
Adult and Health Services,Head of Adults,Third Party Payments,472101,Purchase of Care,05-Sep-2017,3330982-1737664H,"1,718.64",COMFORT CALL LTD.
Adult and Health Services,Head of Adults,Third Party Payments,472101,Purchase of Care,05-Sep-2017,3330982-1737668H,757.04,COMFORT CALL LTD.
Adult and Health Services,Head of Adults,Third Party Payments,472101,Purchase of Care,05-Sep-2017,3330982-1737683H,"1,623.16",COMFORT CALL LTD.
Adult and Health Services,Head of Adults,Third Party Payments,472101,Purchase of Care,05-Sep-2017,3330982-1737684H,547.88,COMFORT CALL LTD.
Adult and Health Services,Head of Adults,Third Party Payments,472101,Purchase of Care,05-Sep-2017,3330982-1737752H,"1,018.44",COMFORT CALL LTD.
Adult and Health Services,Head of Adults,Third Party Payments,472101,Purchase of Care,05-Sep-2017,3330982-1737810H,568.32,COMFORT CALL LTD.
Adult and Health Services,Head of Adults,Third Party Payments,472101,Purchase of Care,05-Sep-2017,3330982-1737869H,722.92,COMFORT CALL LTD.
Adult and Health Services,Head of Adults,Third Party Payments,472101,Purchase of Care,05-Sep-2017,3330982-1737870H,836.60,COMFORT CALL LTD.
Adult and Health Services,Head of Adults,Third Party Payments,472101,Purchase of Care,05-Sep-2017,3330982-1737878H,"1,579.96",COMFORT CALL LTD.
Adult and Health Services,Head of Adults,Third Party Payments,472101,Purchase of Care,05-Sep-2017,3330982-1737886H,"1,104.84",COMFORT CALL LTD.
Adult and Health Services,Head of Adults,Third Party Payments,472101,Purchase of Care,05-Sep-2017,3330982-1737887H,838.86,COMFORT CALL LTD.
Adult and Health Services,Head of Adults,Third Party Payments,472101,Purchase of Care,05-Sep-2017,3330982-1737908H,763.84,COMFORT CALL LTD.
Adult and Health Services,Head of Adults,Third Party Payments,472101,Purchase of Care,05-Sep-2017,3330982-1737980H,668.36,COMFORT CALL LTD.
Adult and Health Services,Head of Adults,Third Party Payments,472101,Purchase of Care,05-Sep-2017,3330982-1738006H,688.82,COMFORT CALL LTD.
Adult and Health Services,Head of Adults,Third Party Payments,472101,Purchase of Care,05-Sep-2017,3330982-1738064H,513.77,COMFORT CALL LTD.
Adult and Health Services,Head of Adults,Third Party Payments,472101,Purchase of Care,05-Sep-2017,3330982-1738086H,636.52,COMFORT CALL LTD.
Adult and Health Services,Head of Adults,Third Party Payments,472101,Purchase of Care,05-Sep-2017,3330982-1738096H,"1,514.04",COMFORT CALL LTD.
Adult and Health Services,Head of Adults,Third Party Payments,472101,Purchase of Care,05-Sep-2017,3330982-1738113H,787.71,COMFORT CALL LTD.
Adult and Health Services,Head of Adults,Third Party Payments,472101,Purchase of Care,05-Sep-2017,3330982-1738158H,"1,518.59",COMFORT CALL LTD.
Adult and Health Services,Head of Adults,Third Party Payments,472101,Purchase of Care,05-Sep-2017,3330982-1738193H,"1,196.91",COMFORT CALL LTD.
Adult and Health Services,Head of Adults,Third Party Payments,472101,Purchase of Care,05-Sep-2017,3330982-1738305H,780.89,COMFORT CALL LTD.
Adult and Health Services,Head of Adults,Third Party Payments,472101,Purchase of Care,05-Sep-2017,3330982-1738320H,786.56,COMFORT CALL LTD.
Adult and Health Services,Head of Adults,Third Party Payments,472101,Purchase of Care,05-Sep-2017,3330982-1738443H,531.96,COMFORT CALL LTD.
Adult and Health Services,Head of Adults,Third Party Payments,472101,Purchase of Care,05-Sep-2017,3330982-1738609H,688.82,COMFORT CALL LTD.
Adult and Health Services,Head of Adults,Third Party Payments,472101,Purchase of Care,05-Sep-2017,3330982-1738658H,543.32,COMFORT CALL LTD.
Adult and Health Services,Head of Adults,Third Party Payments,472101,Purchase of Care,05-Sep-2017,3330982-1738788H,"1,163.95",COMFORT CALL LTD.
Adult and Health Services,Head of Adults,Third Party Payments,472101,Purchase of Care,05-Sep-2017,3330982-1738874H,762.71,COMFORT CALL LTD.
Adult and Health Services,Head of Adults,Third Party Payments,472101,Purchase of Care,05-Sep-2017,3330982-1738912H,954.80,COMFORT CALL LTD.
Adult and Health Services,Head of Adults,Third Party Payments,472101,Purchase of Care,05-Sep-2017,3330982-1738998H,"1,364.00",COMFORT CALL LTD.
Adult and Health Services,Head of Adults,Third Party Payments,472101,Purchase of Care,05-Sep-2017,3330982-1739046H,562.65,COMFORT CALL LTD.
Adult and Health Services,Head of Adults,Third Party Payments,472101,Purchase of Care,05-Sep-2017,3330982-1739053H,620.62,COMFORT CALL LTD.
Adult and Health Services,Head of Adults,Third Party Payments,472101,Purchase of Care,05-Sep-2017,3330982-1739068H,500.13,COMFORT CALL LTD.
Adult and Health Services,Head of Adults,Third Party Payments,472101,Purchase of Care,05-Sep-2017,3330982-1739448H,634.26,COMFORT CALL LTD.
Adult and Health Services,Head of Adults,Third Party Payments,472101,Purchase of Care,05-Sep-2017,3330982-1739461H,545.60,COMFORT CALL LTD.
Adult and Health Services,Head of Adults,Third Party Payments,472101,Purchase of Care,05-Sep-2017,3330982-1739530H,531.96,COMFORT CALL LTD.
Adult and Health Services,Head of Adults,Third Party Payments,472101,Purchase of Care,05-Sep-2017,3330982-1739543H,668.36,COMFORT CALL LTD.
Adult and Health Services,Head of Adults,Third Party Payments,472101,Purchase of Care,05-Sep-2017,3330982-1739547H,606.98,COMFORT CALL LTD.
Adult and Health Services,Head of Adults,Third Party Payments,472101,Purchase of Care,05-Sep-2017,3330982-1739569H,"1,645.88",COMFORT CALL LTD.
Adult and Health Services,Head of Adults,Third Party Payments,472101,Purchase of Care,05-Sep-2017,3330982-1739603H,595.62,COMFORT CALL LTD.
Adult and Health Services,Head of Adults,Third Party Payments,472101,Purchase of Care,05-Sep-2017,3330982-1739623H,600.16,COMFORT CALL LTD.
Adult and Health Services,Head of Adults,Third Party Payments,472101,Purchase of Care,05-Sep-2017,3330982-1739756H,668.36,COMFORT CALL LTD.
Adult and Health Services,Head of Adults,Third Party Payments,472101,Purchase of Care,05-Sep-2017,3330982-1739814H,744.53,COMFORT CALL LTD.
Adult and Health Services,Head of Adults,Third Party Payments,472101,Purchase of Care,05-Sep-2017,3330982-1739823H,566.06,COMFORT CALL LTD.
Adult and Health Services,Head of Adults,Third Party Payments,472101,Purchase of Care,05-Sep-2017,3330982-1739861H,682.00,COMFORT CALL LTD.
Adult and Health Services,Head of Adults,Third Party Payments,472101,Purchase of Care,05-Sep-2017,3330982-1739905H,618.36,COMFORT CALL LTD.
Adult and Health Services,Head of Adults,Third Party Payments,472101,Purchase of Care,05-Sep-2017,3330982-1739911H,791.12,COMFORT CALL LTD.
Adult and Health Services,Head of Adults,Third Party Payments,472101,Purchase of Care,05-Sep-2017,3330982-1739975H,509.24,COMFORT CALL LTD.
Adult and Health Services,Head of Adults,Third Party Payments,472101,Purchase of Care,05-Sep-2017,3330982-1740010H,"1,273.08",COMFORT CALL LTD.
Adult and Health Services,Head of Adults,Third Party Payments,472101,Purchase of Care,05-Sep-2017,3330982-1740011H,641.08,COMFORT CALL LTD.
Adult and Health Services,Head of Adults,Third Party Payments,472101,Purchase of Care,05-Sep-2017,3330982-1740285H,563.80,COMFORT CALL LTD.
Adult and Health Services,Head of Adults,Third Party Payments,472101,Purchase of Care,05-Sep-2017,3330982-1740298H,531.97,COMFORT CALL LTD.
Adult and Health Services,Head of Adults,Third Party Payments,472101,Purchase of Care,05-Sep-2017,3330982-1740303H,659.26,COMFORT CALL LTD.
Adult and Health Services,Head of Adults,Third Party Payments,472101,Purchase of Care,05-Sep-2017,3330982-1740320H,"1,464.04",COMFORT CALL LTD.
Adult and Health Services,Head of Adults,Third Party Payments,472101,Purchase of Care,05-Sep-2017,3330982-1740332H,"1,568.60",COMFORT CALL LTD.
Adult and Health Services,Head of Adults,Third Party Payments,472101,Purchase of Care,05-Sep-2017,3330982-1740343H,705.86,COMFORT CALL LTD.
Adult and Health Services,Head of Adults,Third Party Payments,472101,Purchase of Care,05-Sep-2017,3330982-1740464H,"1,311.71",COMFORT CALL LTD.
Adult and Health Services,Head of Adults,Third Party Payments,472101,Purchase of Care,05-Sep-2017,3330982-1740513H,700.20,COMFORT CALL LTD.
Adult and Health Services,Head of Adults,Third Party Payments,472101,Purchase of Care,05-Sep-2017,3330982-1740517H,691.08,COMFORT CALL LTD.
Adult and Health Services,Head of Adults,Third Party Payments,472101,Purchase of Care,05-Sep-2017,3330982-1740556H,643.35,COMFORT CALL LTD.
Adult and Health Services,Head of Adults,Third Party Payments,472101,Purchase of Care,05-Sep-2017,3330982-1740637H,559.24,COMFORT CALL LTD.
Adult and Health Services,Head of Adults,Third Party Payments,472101,Purchase of Care,05-Sep-2017,3330982-1740807H,852.50,COMFORT CALL LTD.
Adult and Health Services,Head of Adults,Third Party Payments,472101,Purchase of Care,05-Sep-2017,3330982-1740865H,"1,432.20",COMFORT CALL LTD.
Adult and Health Services,Head of Adults,Third Party Payments,472101,Purchase of Care,05-Sep-2017,3330982-1740869H,552.42,COMFORT CALL LTD.
Adult and Health Services,Head of Adults,Third Party Payments,472101,Purchase of Care,05-Sep-2017,3330982-1741076H,982.08,COMFORT CALL LTD.
Adult and Health Services,Head of Adults,Third Party Payments,472101,Purchase of Care,05-Sep-2017,3330982-1741168H,791.12,COMFORT CALL LTD.
Adult and Health Services,Head of Adults,Third Party Payments,472101,Purchase of Care,05-Sep-2017,3330982-1741179H,536.50,COMFORT CALL LTD.
Adult and Health Services,Head of Adults,Third Party Payments,472101,Purchase of Care,05-Sep-2017,3330982-1741229H,828.64,COMFORT CALL LTD.
Adult and Health Services,Head of Adults,Third Party Payments,472101,Purchase of Care,05-Sep-2017,3330982-1741290H,743.38,COMFORT CALL LTD.
Adult and Health Services,Head of Adults,Third Party Payments,472101,Purchase of Care,05-Sep-2017,3330982-1741299H,631.98,COMFORT CALL LTD.
Adult and Health Services,Head of Adults,Third Party Payments,472101,Purchase of Care,05-Sep-2017,3330982-1741308H,"1,075.28",COMFORT CALL LTD.
Adult and Health Services,Head of Adults,Third Party Payments,472101,Purchase of Care,05-Sep-2017,3330982-1741494H,627.44,COMFORT CALL LTD.
Adult and Health Services,Head of Adults,Third Party Payments,472101,Purchase of Care,05-Sep-2017,3330982-1741628H,733.15,COMFORT CALL LTD.
Adult and Health Services,Head of Adults,Third Party Payments,472101,Purchase of Care,05-Sep-2017,3330982-1741647H,709.28,COMFORT CALL LTD.
Adult and Health Services,Head of Adults,Third Party Payments,472101,Purchase of Care,05-Sep-2017,3330982-1741735H,566.06,COMFORT CALL LTD.
Adult and Health Services,Head of Adults,Third Party Payments,472101,Purchase of Care,05-Sep-2017,3330982-1741802H,695.64,COMFORT CALL LTD.
Adult and Health Services,Head of Adults,Third Party Payments,472101,Purchase of Care,05-Sep-2017,3330982-1741885H,744.52,COMFORT CALL LTD.
Adult and Health Services,Head of Adults,Third Party Payments,472101,Purchase of Care,05-Sep-2017,3330982-1741899H,813.84,COMFORT CALL LTD.
Adult and Health Services,Head of Adults,Third Party Payments,472101,Purchase of Care,05-Sep-2017,3330982-1741980H,593.33,COMFORT CALL LTD.
Adult and Health Services,Head of Adults,Third Party Payments,472101,Purchase of Care,05-Sep-2017,3330982-1742044H,838.86,COMFORT CALL LTD.
Adult and Health Services,Head of Adults,Third Party Payments,472101,Purchase of Care,05-Sep-2017,3330982-1742047H,"1,207.14",COMFORT CALL LTD.
Adult and Health Services,Head of Adults,Third Party Payments,472101,Purchase of Care,05-Sep-2017,3330982-1742066H,757.02,COMFORT CALL LTD.
Adult and Health Services,Head of Adults,Third Party Payments,472101,Purchase of Care,05-Sep-2017,3330983-1739319H,677.44,COMMUNITY CARE NORTH EAST.
Adult and Health Services,Head of Adults,Third Party Payments,472101,Purchase of Care,05-Sep-2017,3330983-1739479H,"1,414.00",COMMUNITY CARE NORTH EAST.
Adult and Health Services,Head of Adults,Third Party Payments,472101,Purchase of Care,05-Sep-2017,3330983-1740482H,954.80,COMMUNITY CARE NORTH EAST.
Adult and Health Services,Head of Adults,Third Party Payments,472101,Purchase of Care,05-Sep-2017,3330983-1740851H,636.52,COMMUNITY CARE NORTH EAST.
Adult and Health Services,Head of Adults,Third Party Payments,478101,Purchase of Care,05-Sep-2017,3330984-1736075H,"5,812.36",COMMUNITY INTEGRATED CARE LTD.
Adult and Health Services,Head of Adults,Third Party Payments,478101,Purchase of Care,05-Sep-2017,3330984-1736109H,"4,444.72",COMMUNITY INTEGRATED CARE LTD.
Adult and Health Services,Head of Adults,Third Party Payments,478101,Purchase of Care,05-Sep-2017,3330984-1736157H,"4,377.76",COMMUNITY INTEGRATED CARE LTD.
Adult and Health Services,Head of Adults,Third Party Payments,478101,Purchase of Care,05-Sep-2017,3330984-1736192H,"1,078.36",COMMUNITY INTEGRATED CARE LTD.
Adult and Health Services,Head of Adults,Third Party Payments,478101,Purchase of Care,05-Sep-2017,3330984-1736308H,"4,734.00",COMMUNITY INTEGRATED CARE LTD.
Adult and Health Services,Head of Adults,Third Party Payments,478101,Purchase of Care,05-Sep-2017,3330984-1736311H,"5,891.23",COMMUNITY INTEGRATED CARE LTD.
Adult and Health Services,Head of Adults,Third Party Payments,478101,Purchase of Care,05-Sep-2017,3330984-1736312H,"5,812.36",COMMUNITY INTEGRATED CARE LTD.
Adult and Health Services,Head of Adults,Third Party Payments,478101,Purchase of Care,05-Sep-2017,3330984-1736313H,"3,419.00",COMMUNITY INTEGRATED CARE LTD.
Adult and Health Services,Head of Adults,Third Party Payments,478101,Purchase of Care,05-Sep-2017,3330984-1736315H,"3,419.00",COMMUNITY INTEGRATED CARE LTD.
Adult and Health Services,Head of Adults,Third Party Payments,478101,Purchase of Care,05-Sep-2017,3330984-1736372H,"6,109.44",COMMUNITY INTEGRATED CARE LTD.
Adult and Health Services,Head of Adults,Third Party Payments,478101,Purchase of Care,05-Sep-2017,3330984-1736379H,"4,418.44",COMMUNITY INTEGRATED CARE LTD.
Adult and Health Services,Head of Adults,Third Party Payments,478101,Purchase of Care,05-Sep-2017,3330984-1736393H,"4,377.76",COMMUNITY INTEGRATED CARE LTD.
Adult and Health Services,Head of Adults,Third Party Payments,478101,Purchase of Care,05-Sep-2017,3330984-1736396H,"4,734.00",COMMUNITY INTEGRATED CARE LTD.
Adult and Health Services,Head of Adults,Third Party Payments,478101,Purchase of Care,05-Sep-2017,3330984-1736397H,"4,734.00",COMMUNITY INTEGRATED CARE LTD.
Adult and Health Services,Head of Adults,Third Party Payments,478101,Purchase of Care,05-Sep-2017,3330984-1736430H,"7,127.32",COMMUNITY INTEGRATED CARE LTD.
Adult and Health Services,Head of Adults,Third Party Payments,478101,Purchase of Care,05-Sep-2017,3330984-1736441H,930.16,COMMUNITY INTEGRATED CARE LTD.
Adult and Health Services,Head of Adults,Third Party Payments,478101,Purchase of Care,05-Sep-2017,3330984-1736479H,"1,140.56",COMMUNITY INTEGRATED CARE LTD.
Adult and Health Services,Head of Adults,Third Party Payments,478101,Purchase of Care,05-Sep-2017,3330984-1736495H,"7,600.72",COMMUNITY INTEGRATED CARE LTD.
Adult and Health Services,Head of Adults,Third Party Payments,478101,Purchase of Care,05-Sep-2017,3330984-1736511H,"4,734.00",COMMUNITY INTEGRATED CARE LTD.
Adult and Health Services,Head of Adults,Third Party Payments,478101,Purchase of Care,05-Sep-2017,3330984-1736555H,544.40,COMMUNITY INTEGRATED CARE LTD.
Adult and Health Services,Head of Adults,Third Party Payments,478101,Purchase of Care,05-Sep-2017,3330984-1736591H,"3,419.00",COMMUNITY INTEGRATED CARE LTD.
Adult and Health Services,Head of Adults,Third Party Payments,478101,Purchase of Care,05-Sep-2017,3330984-1736604H,"4,377.76",COMMUNITY INTEGRATED CARE LTD.
Adult and Health Services,Head of Adults,Third Party Payments,478101,Purchase of Care,05-Sep-2017,3330984-1736712H,"1,140.56",COMMUNITY INTEGRATED CARE LTD.
Adult and Health Services,Head of Adults,Third Party Payments,478101,Purchase of Care,05-Sep-2017,3330984-1736730H,785.52,COMMUNITY INTEGRATED CARE LTD.
Adult and Health Services,Head of Adults,Third Party Payments,478101,Purchase of Care,05-Sep-2017,3330984-1736762H,798.68,COMMUNITY INTEGRATED CARE LTD.
Adult and Health Services,Head of Adults,Third Party Payments,478101,Purchase of Care,05-Sep-2017,3330984-1736947H,"4,377.76",COMMUNITY INTEGRATED CARE LTD.
Adult and Health Services,Head of Adults,Third Party Payments,478101,Purchase of Care,05-Sep-2017,3330984-1736951H,"4,444.72",COMMUNITY INTEGRATED CARE LTD.
Adult and Health Services,Head of Adults,Third Party Payments,478101,Purchase of Care,05-Sep-2017,3330984-1737123H,"1,087.96",COMMUNITY INTEGRATED CARE LTD.
Adult and Health Services,Head of Adults,Third Party Payments,478101,Purchase of Care,05-Sep-2017,3330984-1737417H,"3,315.60",COMMUNITY INTEGRATED CARE LTD.
Adult and Health Services,Head of Adults,Third Party Payments,478101,Purchase of Care,05-Sep-2017,3330984-1737615H,"7,790.52",COMMUNITY INTEGRATED CARE LTD.
Adult and Health Services,Head of Adults,Third Party Payments,478101,Purchase of Care,05-Sep-2017,3330984-1737855H,667.16,COMMUNITY INTEGRATED CARE LTD.
Adult and Health Services,Head of Adults,Third Party Payments,478101,Purchase of Care,05-Sep-2017,3330984-1738209H,"6,915.16",COMMUNITY INTEGRATED CARE LTD.
Adult and Health Services,Head of Adults,Third Party Payments,478101,Purchase of Care,05-Sep-2017,3330984-1738227H,544.40,COMMUNITY INTEGRATED CARE LTD.
Adult and Health Services,Head of Adults,Third Party Payments,478101,Purchase of Care,05-Sep-2017,3330984-1738612H,588.28,COMMUNITY INTEGRATED CARE LTD.
Adult and Health Services,Head of Adults,Third Party Payments,478101,Purchase of Care,05-Sep-2017,3330984-1738793H,"8,129.08",COMMUNITY INTEGRATED CARE LTD.
Adult and Health Services,Head of Adults,Third Party Payments,478101,Purchase of Care,05-Sep-2017,3330984-1739016H,667.16,COMMUNITY INTEGRATED CARE LTD.
Adult and Health Services,Head of Adults,Third Party Payments,478101,Purchase of Care,05-Sep-2017,3330984-1739039H,"4,734.04",COMMUNITY INTEGRATED CARE LTD.
Adult and Health Services,Head of Adults,Third Party Payments,478101,Purchase of Care,05-Sep-2017,3330984-1739215H,"4,628.80",COMMUNITY INTEGRATED CARE LTD.
Adult and Health Services,Head of Adults,Third Party Payments,478101,Purchase of Care,05-Sep-2017,3330984-1739483H,575.12,COMMUNITY INTEGRATED CARE LTD.
Adult and Health Services,Head of Adults,Third Party Payments,478101,Purchase of Care,05-Sep-2017,3330984-1740364H,824.96,COMMUNITY INTEGRATED CARE LTD.
Adult and Health Services,Head of Adults,Third Party Payments,478101,Purchase of Care,05-Sep-2017,3330984-1740739H,667.16,COMMUNITY INTEGRATED CARE LTD.
Adult and Health Services,Head of Adults,Third Party Payments,478101,Purchase of Care,05-Sep-2017,3330984-1741156H,824.96,COMMUNITY INTEGRATED CARE LTD.
Adult and Health Services,Head of Adults,Third Party Payments,478101,Purchase of Care,05-Sep-2017,3330984-1741390H,667.16,COMMUNITY INTEGRATED CARE LTD.
Adult and Health Services,Head of Adults,Third Party Payments,478101,Purchase of Care,05-Sep-2017,3330984-1741578H,877.56,COMMUNITY INTEGRATED CARE LTD.
Adult and Health Services,Head of Adults,Third Party Payments,478101,Purchase of Care,05-Sep-2017,3330984-1741594H,"2,653.40",COMMUNITY INTEGRATED CARE LTD.
Children and Young Peoples Services,Head of Looked After Provision Permanence and Care Leavers,Third Party Payments,425040,Rendered by Voluntary Organisations,05-Sep-2017,3330985-1741764H,"10,500.00",COMPASS FOSTERING NORTH LTD.
Regeneration and Local Services,Economic Development and Housing,Supplies and Services,384700,Miscellaneous Expenses,05-Sep-2017,3330306-RED-09-2017-022,"1,000.00",COUNTY DURHAM FURNITURE HELP SCHEME (CDFHS).
Adult and Health Services,Head of Adults,Third Party Payments,472101,Purchase of Care,05-Sep-2017,3330988-1722897H,720.00,CREATIVE SUPPORT LTD.
Adult and Health Services,Head of Adults,Third Party Payments,472101,Purchase of Care,05-Sep-2017,3330988-1736769H,720.00,CREATIVE SUPPORT LTD.
Adult and Health Services,Head of Adults,Third Party Payments,478101,Purchase of Care,05-Sep-2017,3330988-1721526H,"3,372.80",CREATIVE SUPPORT LTD.
Adult and Health Services,Head of Adults,Third Party Payments,478101,Purchase of Care,05-Sep-2017,3330988-1721547H,"7,311.36",CREATIVE SUPPORT LTD.
Adult and Health Services,Head of Adults,Third Party Payments,478101,Purchase of Care,05-Sep-2017,3330988-1721720H,"12,185.60",CREATIVE SUPPORT LTD.
Adult and Health Services,Head of Adults,Third Party Payments,478101,Purchase of Care,05-Sep-2017,3330988-1721749H,"3,693.76",CREATIVE SUPPORT LTD.
Adult and Health Services,Head of Adults,Third Party Payments,478101,Purchase of Care,05-Sep-2017,3330988-1721801H,876.68,CREATIVE SUPPORT LTD.
Adult and Health Services,Head of Adults,Third Party Payments,478101,Purchase of Care,05-Sep-2017,3330988-1721904H,876.68,CREATIVE SUPPORT LTD.
Adult and Health Services,Head of Adults,Third Party Payments,478101,Purchase of Care,05-Sep-2017,3330988-1722311H,"7,235.20",CREATIVE SUPPORT LTD.
Adult and Health Services,Head of Adults,Third Party Payments,478101,Purchase of Care,05-Sep-2017,3330988-1723116H,"4,358.00",CREATIVE SUPPORT LTD.
Adult and Health Services,Head of Adults,Third Party Payments,478101,Purchase of Care,05-Sep-2017,3330988-1723434H,"2,075.24",CREATIVE SUPPORT LTD.
Adult and Health Services,Head of Adults,Third Party Payments,478101,Purchase of Care,05-Sep-2017,3330988-1723677H,"3,332.00",CREATIVE SUPPORT LTD.
Adult and Health Services,Head of Adults,Third Party Payments,478101,Purchase of Care,05-Sep-2017,3330988-1723714H,"4,721.92",CREATIVE SUPPORT LTD.
Adult and Health Services,Head of Adults,Third Party Payments,478101,Purchase of Care,05-Sep-2017,3330988-1723901H,"2,393.60",CREATIVE SUPPORT LTD.
Adult and Health Services,Head of Adults,Third Party Payments,478101,Purchase of Care,05-Sep-2017,3330988-1724033H,"10,053.12",CREATIVE SUPPORT LTD.
Adult and Health Services,Head of Adults,Third Party Payments,478101,Purchase of Care,05-Sep-2017,3330988-1724096H,"3,726.80",CREATIVE SUPPORT LTD.
Adult and Health Services,Head of Adults,Third Party Payments,478101,Purchase of Care,05-Sep-2017,3330988-1724270H,"4,680.60",CREATIVE SUPPORT LTD.
Adult and Health Services,Head of Adults,Third Party Payments,478101,Purchase of Care,05-Sep-2017,3330988-1724524H,"3,050.32",CREATIVE SUPPORT LTD.
Adult and Health Services,Head of Adults,Third Party Payments,478101,Purchase of Care,05-Sep-2017,3330988-1724697H,"5,140.80",CREATIVE SUPPORT LTD.
Adult and Health Services,Head of Adults,Third Party Payments,478101,Purchase of Care,05-Sep-2017,3330988-1725290H,876.68,CREATIVE SUPPORT LTD.
Adult and Health Services,Head of Adults,Third Party Payments,478101,Purchase of Care,05-Sep-2017,3330988-1735412H,"3,372.80",CREATIVE SUPPORT LTD.
Adult and Health Services,Head of Adults,Third Party Payments,478101,Purchase of Care,05-Sep-2017,3330988-1735435H,"7,311.36",CREATIVE SUPPORT LTD.
Adult and Health Services,Head of Adults,Third Party Payments,478101,Purchase of Care,05-Sep-2017,3330988-1735612H,"12,185.60",CREATIVE SUPPORT LTD.
Adult and Health Services,Head of Adults,Third Party Payments,478101,Purchase of Care,05-Sep-2017,3330988-1735641H,"3,693.76",CREATIVE SUPPORT LTD.
Adult and Health Services,Head of Adults,Third Party Payments,478101,Purchase of Care,05-Sep-2017,3330988-1735691H,876.68,CREATIVE SUPPORT LTD.
Adult and Health Services,Head of Adults,Third Party Payments,478101,Purchase of Care,05-Sep-2017,3330988-1735787H,876.68,CREATIVE SUPPORT LTD.
Adult and Health Services,Head of Adults,Third Party Payments,478101,Purchase of Care,05-Sep-2017,3330988-1736185H,"7,235.20",CREATIVE SUPPORT LTD.
Adult and Health Services,Head of Adults,Third Party Payments,478101,Purchase of Care,05-Sep-2017,3330988-1736995H,"4,358.00",CREATIVE SUPPORT LTD.
Adult and Health Services,Head of Adults,Third Party Payments,478101,Purchase of Care,05-Sep-2017,3330988-1737311H,"2,075.24",CREATIVE SUPPORT LTD.
Adult and Health Services,Head of Adults,Third Party Payments,478101,Purchase of Care,05-Sep-2017,3330988-1737556H,"3,332.00",CREATIVE SUPPORT LTD.
Adult and Health Services,Head of Adults,Third Party Payments,478101,Purchase of Care,05-Sep-2017,3330988-1737591H,"4,721.92",CREATIVE SUPPORT LTD.
Adult and Health Services,Head of Adults,Third Party Payments,478101,Purchase of Care,05-Sep-2017,3330988-1737778H,"2,393.60",CREATIVE SUPPORT LTD.
Adult and Health Services,Head of Adults,Third Party Payments,478101,Purchase of Care,05-Sep-2017,3330988-1737899H,"10,053.12",CREATIVE SUPPORT LTD.
Adult and Health Services,Head of Adults,Third Party Payments,478101,Purchase of Care,05-Sep-2017,3330988-1737962H,"3,726.80",CREATIVE SUPPORT LTD.
Adult and Health Services,Head of Adults,Third Party Payments,478101,Purchase of Care,05-Sep-2017,3330988-1738135H,"4,680.60",CREATIVE SUPPORT LTD.
Adult and Health Services,Head of Adults,Third Party Payments,478101,Purchase of Care,05-Sep-2017,3330988-1738394H,"3,050.32",CREATIVE SUPPORT LTD.
Adult and Health Services,Head of Adults,Third Party Payments,478101,Purchase of Care,05-Sep-2017,3330988-1738570H,"5,140.80",CREATIVE SUPPORT LTD.
Adult and Health Services,Head of Adults,Third Party Payments,478101,Purchase of Care,05-Sep-2017,3330988-1739158H,876.68,CREATIVE SUPPORT LTD.
Adult and Health Services,Head of Adults,Third Party Payments,472101,Purchase of Care,05-Sep-2017,3330989-1736243H,559.24,CRESCENT HOMECARE LTD.
Adult and Health Services,Head of Adults,Third Party Payments,472101,Purchase of Care,05-Sep-2017,3330989-1736303H,"1,067.33",CRESCENT HOMECARE LTD.
Adult and Health Services,Head of Adults,Third Party Payments,472101,Purchase of Care,05-Sep-2017,3330989-1736347H,595.61,CRESCENT HOMECARE LTD.
Adult and Health Services,Head of Adults,Third Party Payments,472101,Purchase of Care,05-Sep-2017,3330989-1736636H,604.71,CRESCENT HOMECARE LTD.
Adult and Health Services,Head of Adults,Third Party Payments,472101,Purchase of Care,05-Sep-2017,3330989-1736682H,600.16,CRESCENT HOMECARE LTD.
Adult and Health Services,Head of Adults,Third Party Payments,472101,Purchase of Care,05-Sep-2017,3330989-1736734H,763.84,CRESCENT HOMECARE LTD.
Adult and Health Services,Head of Adults,Third Party Payments,472101,Purchase of Care,05-Sep-2017,3330989-1737061H,572.88,CRESCENT HOMECARE LTD.
Adult and Health Services,Head of Adults,Third Party Payments,472101,Purchase of Care,05-Sep-2017,3330989-1737139H,658.32,CRESCENT HOMECARE LTD.
Adult and Health Services,Head of Adults,Third Party Payments,472101,Purchase of Care,05-Sep-2017,3330989-1737220H,777.48,CRESCENT HOMECARE LTD.
Adult and Health Services,Head of Adults,Third Party Payments,472101,Purchase of Care,05-Sep-2017,3330989-1737256H,"1,707.60",CRESCENT HOMECARE LTD.
Adult and Health Services,Head of Adults,Third Party Payments,472101,Purchase of Care,05-Sep-2017,3330989-1737715H,863.88,CRESCENT HOMECARE LTD.
Adult and Health Services,Head of Adults,Third Party Payments,472101,Purchase of Care,05-Sep-2017,3330989-1737970H,727.48,CRESCENT HOMECARE LTD.
Adult and Health Services,Head of Adults,Third Party Payments,472101,Purchase of Care,05-Sep-2017,3330989-1738119H,719.51,CRESCENT HOMECARE LTD.
Adult and Health Services,Head of Adults,Third Party Payments,472101,Purchase of Care,05-Sep-2017,3330989-1738134H,791.12,CRESCENT HOMECARE LTD.
Adult and Health Services,Head of Adults,Third Party Payments,472101,Purchase of Care,05-Sep-2017,3330989-1738171H,716.91,CRESCENT HOMECARE LTD.
Adult and Health Services,Head of Adults,Third Party Payments,472101,Purchase of Care,05-Sep-2017,3330989-1738508H,770.66,CRESCENT HOMECARE LTD.
Adult and Health Services,Head of Adults,Third Party Payments,472101,Purchase of Care,05-Sep-2017,3330989-1738551H,968.44,CRESCENT HOMECARE LTD.
Adult and Health Services,Head of Adults,Third Party Payments,472101,Purchase of Care,05-Sep-2017,3330989-1738642H,"1,964.16",CRESCENT HOMECARE LTD.
Adult and Health Services,Head of Adults,Third Party Payments,472101,Purchase of Care,05-Sep-2017,3330989-1738772H,531.97,CRESCENT HOMECARE LTD.
Adult and Health Services,Head of Adults,Third Party Payments,472101,Purchase of Care,05-Sep-2017,3330989-1738810H,800.20,CRESCENT HOMECARE LTD.
Adult and Health Services,Head of Adults,Third Party Payments,472101,Purchase of Care,05-Sep-2017,3330989-1738985H,763.84,CRESCENT HOMECARE LTD.
Adult and Health Services,Head of Adults,Third Party Payments,472101,Purchase of Care,05-Sep-2017,3330989-1739149H,578.57,CRESCENT HOMECARE LTD.
Adult and Health Services,Head of Adults,Third Party Payments,472101,Purchase of Care,05-Sep-2017,3330989-1739390H,536.52,CRESCENT HOMECARE LTD.
Adult and Health Services,Head of Adults,Third Party Payments,472101,Purchase of Care,05-Sep-2017,3330989-1739463H,859.32,CRESCENT HOMECARE LTD.
Adult and Health Services,Head of Adults,Third Party Payments,472101,Purchase of Care,05-Sep-2017,3330989-1739466H,531.96,CRESCENT HOMECARE LTD.
Adult and Health Services,Head of Adults,Third Party Payments,472101,Purchase of Care,05-Sep-2017,3330989-1739636H,"1,609.52",CRESCENT HOMECARE LTD.
Adult and Health Services,Head of Adults,Third Party Payments,472101,Purchase of Care,05-Sep-2017,3330989-1739844H,757.02,CRESCENT HOMECARE LTD.
Adult and Health Services,Head of Adults,Third Party Payments,472101,Purchase of Care,05-Sep-2017,3330989-1739878H,600.16,CRESCENT HOMECARE LTD.
Adult and Health Services,Head of Adults,Third Party Payments,472101,Purchase of Care,05-Sep-2017,3330989-1739947H,"1,127.57",CRESCENT HOMECARE LTD.
Adult and Health Services,Head of Adults,Third Party Payments,472101,Purchase of Care,05-Sep-2017,3330989-1740139H,527.40,CRESCENT HOMECARE LTD.
Adult and Health Services,Head of Adults,Third Party Payments,472101,Purchase of Care,05-Sep-2017,3330989-1740154H,"1,145.76",CRESCENT HOMECARE LTD.
Adult and Health Services,Head of Adults,Third Party Payments,472101,Purchase of Care,05-Sep-2017,3330989-1740251H,504.68,CRESCENT HOMECARE LTD.
Adult and Health Services,Head of Adults,Third Party Payments,472101,Purchase of Care,05-Sep-2017,3330989-1740457H,566.06,CRESCENT HOMECARE LTD.
Adult and Health Services,Head of Adults,Third Party Payments,472101,Purchase of Care,05-Sep-2017,3330989-1740636H,586.52,CRESCENT HOMECARE LTD.
Adult and Health Services,Head of Adults,Third Party Payments,472101,Purchase of Care,05-Sep-2017,3330989-1740715H,552.42,CRESCENT HOMECARE LTD.
Adult and Health Services,Head of Adults,Third Party Payments,472101,Purchase of Care,05-Sep-2017,3330989-1740947H,584.24,CRESCENT HOMECARE LTD.
Adult and Health Services,Head of Adults,Third Party Payments,472101,Purchase of Care,05-Sep-2017,3330989-1741036H,622.88,CRESCENT HOMECARE LTD.
Adult and Health Services,Head of Adults,Third Party Payments,472101,Purchase of Care,05-Sep-2017,3330989-1741121H,531.97,CRESCENT HOMECARE LTD.
Adult and Health Services,Head of Adults,Third Party Payments,472101,Purchase of Care,05-Sep-2017,3330989-1741270H,"1,609.52",CRESCENT HOMECARE LTD.
Adult and Health Services,Head of Adults,Third Party Payments,472101,Purchase of Care,05-Sep-2017,3330989-1741296H,572.88,CRESCENT HOMECARE LTD.
Adult and Health Services,Head of Adults,Third Party Payments,472101,Purchase of Care,05-Sep-2017,3330989-1741300H,500.14,CRESCENT HOMECARE LTD.
Adult and Health Services,Head of Adults,Third Party Payments,472101,Purchase of Care,05-Sep-2017,3330989-1741507H,705.87,CRESCENT HOMECARE LTD.
Adult and Health Services,Head of Adults,Third Party Payments,472101,Purchase of Care,05-Sep-2017,3330989-1741627H,572.88,CRESCENT HOMECARE LTD.
Adult and Health Services,Head of Adults,Third Party Payments,472101,Purchase of Care,05-Sep-2017,3330989-1741636H,729.74,CRESCENT HOMECARE LTD.
Adult and Health Services,Head of Adults,Third Party Payments,472101,Purchase of Care,05-Sep-2017,3330989-1741751H,845.68,CRESCENT HOMECARE LTD.
Adult and Health Services,Head of Adults,Third Party Payments,472101,Purchase of Care,05-Sep-2017,3330989-1741825H,763.84,CRESCENT HOMECARE LTD.
Adult and Health Services,Head of Adults,Third Party Payments,472101,Purchase of Care,05-Sep-2017,3330989-1742031H,654.72,CRESCENT HOMECARE LTD.
Adult and Health Services,Head of Adults,Third Party Payments,440062,Other Third Party Payments,05-Sep-2017,3330991-1738449H,"1,036.64",DALE CARE LTD.
Adult and Health Services,Head of Adults,Third Party Payments,440062,Other Third Party Payments,05-Sep-2017,3330991-1739663H,"1,241.24",DALE CARE LTD.
Adult and Health Services,Head of Adults,Third Party Payments,440062,Other Third Party Payments,05-Sep-2017,3330991-1739848H,504.68,DALE CARE LTD.
Children and Young Peoples Services,Head of Early Help Assessment and Safeguarding,Third Party Payments,440062,Other Third Party Payments,05-Sep-2017,3330991-1739951H,"1,282.16",DALE CARE LTD.
Children and Young Peoples Services,Head of Early Help Assessment and Safeguarding,Third Party Payments,440062,Other Third Party Payments,05-Sep-2017,3330991-1740882H,"1,459.48",DALE CARE LTD.
Children and Young Peoples Services,Head of Early Help Assessment and Safeguarding,Third Party Payments,440062,Other Third Party Payments,05-Sep-2017,3330991-1741329H,531.96,DALE CARE LTD.
Adult and Health Services,Commissioning inc Supporting People,Third Party Payments,472113,Purchase of Care,05-Sep-2017,3330991-1739714H,"1,708.92",DALE CARE LTD.
Adult and Health Services,Head of Adults,Third Party Payments,472101,Purchase of Care,05-Sep-2017,3330991-1735398H,"1,302.62",DALE CARE LTD.
Adult and Health Services,Head of Adults,Third Party Payments,472101,Purchase of Care,05-Sep-2017,3330991-1735410H,"1,263.96",DALE CARE LTD.
Adult and Health Services,Head of Adults,Third Party Payments,472101,Purchase of Care,05-Sep-2017,3330991-1735418H,559.24,DALE CARE LTD.
Adult and Health Services,Head of Adults,Third Party Payments,472101,Purchase of Care,05-Sep-2017,3330991-1735456H,"1,899.37",DALE CARE LTD.
Adult and Health Services,Head of Adults,Third Party Payments,472101,Purchase of Care,05-Sep-2017,3330991-1735467H,527.40,DALE CARE LTD.
Adult and Health Services,Head of Adults,Third Party Payments,472101,Purchase of Care,05-Sep-2017,3330991-1735484H,"1,582.24",DALE CARE LTD.
Adult and Health Services,Head of Adults,Third Party Payments,472101,Purchase of Care,05-Sep-2017,3330991-1735492H,572.88,DALE CARE LTD.
Adult and Health Services,Head of Adults,Third Party Payments,472101,Purchase of Care,05-Sep-2017,3330991-1735507H,"1,285.57",DALE CARE LTD.
Adult and Health Services,Head of Adults,Third Party Payments,472101,Purchase of Care,05-Sep-2017,3330991-1735508H,"1,132.11",DALE CARE LTD.
Adult and Health Services,Head of Adults,Third Party Payments,472101,Purchase of Care,05-Sep-2017,3330991-1735511H,504.68,DALE CARE LTD.
Adult and Health Services,Head of Adults,Third Party Payments,472101,Purchase of Care,05-Sep-2017,3330991-1735526H,519.46,DALE CARE LTD.
Adult and Health Services,Head of Adults,Third Party Payments,472101,Purchase of Care,05-Sep-2017,3330991-1735559H,984.35,DALE CARE LTD.
Adult and Health Services,Head of Adults,Third Party Payments,472101,Purchase of Care,05-Sep-2017,3330991-1735567H,859.32,DALE CARE LTD.
Adult and Health Services,Head of Adults,Third Party Payments,472101,Purchase of Care,05-Sep-2017,3330991-1735573H,"1,118.48",DALE CARE LTD.
Adult and Health Services,Head of Adults,Third Party Payments,472101,Purchase of Care,05-Sep-2017,3330991-1735588H,959.34,DALE CARE LTD.
Adult and Health Services,Head of Adults,Third Party Payments,472101,Purchase of Care,05-Sep-2017,3330991-1735590H,566.06,DALE CARE LTD.
Adult and Health Services,Head of Adults,Third Party Payments,472101,Purchase of Care,05-Sep-2017,3330991-1735611H,636.52,DALE CARE LTD.
Adult and Health Services,Head of Adults,Third Party Payments,472101,Purchase of Care,05-Sep-2017,3330991-1735656H,572.88,DALE CARE LTD.
Adult and Health Services,Head of Adults,Third Party Payments,472101,Purchase of Care,05-Sep-2017,3330991-1735713H,581.97,DALE CARE LTD.
Adult and Health Services,Head of Adults,Third Party Payments,472101,Purchase of Care,05-Sep-2017,3330991-1735730H,636.52,DALE CARE LTD.
Adult and Health Services,Head of Adults,Third Party Payments,472101,Purchase of Care,05-Sep-2017,3330991-1735779H,"2,341.14",DALE CARE LTD.
Adult and Health Services,Head of Adults,Third Party Payments,472101,Purchase of Care,05-Sep-2017,3330991-1735812H,596.75,DALE CARE LTD.
Adult and Health Services,Head of Adults,Third Party Payments,472101,Purchase of Care,05-Sep-2017,3330991-1735841H,563.80,DALE CARE LTD.
Adult and Health Services,Head of Adults,Third Party Payments,472101,Purchase of Care,05-Sep-2017,3330991-1735860H,"1,527.68",DALE CARE LTD.
Adult and Health Services,Head of Adults,Third Party Payments,472101,Purchase of Care,05-Sep-2017,3330991-1735868H,518.32,DALE CARE LTD.
Adult and Health Services,Head of Adults,Third Party Payments,472101,Purchase of Care,05-Sep-2017,3330991-1735869H,518.32,DALE CARE LTD.
Adult and Health Services,Head of Adults,Third Party Payments,472101,Purchase of Care,05-Sep-2017,3330991-1735874H,632.00,DALE CARE LTD.
Adult and Health Services,Head of Adults,Third Party Payments,472101,Purchase of Care,05-Sep-2017,3330991-1735880H,763.84,DALE CARE LTD.
Adult and Health Services,Head of Adults,Third Party Payments,472101,Purchase of Care,05-Sep-2017,3330991-1735898H,586.53,DALE CARE LTD.
Adult and Health Services,Head of Adults,Third Party Payments,472101,Purchase of Care,05-Sep-2017,3330991-1735902H,636.52,DALE CARE LTD.
Adult and Health Services,Head of Adults,Third Party Payments,472101,Purchase of Care,05-Sep-2017,3330991-1735909H,"1,747.07",DALE CARE LTD.
Adult and Health Services,Head of Adults,Third Party Payments,472101,Purchase of Care,05-Sep-2017,3330991-1735924H,"1,773.20",DALE CARE LTD.
Adult and Health Services,Head of Adults,Third Party Payments,472101,Purchase of Care,05-Sep-2017,3330991-1735938H,736.56,DALE CARE LTD.
Adult and Health Services,Head of Adults,Third Party Payments,472101,Purchase of Care,05-Sep-2017,3330991-1735943H,"1,175.31",DALE CARE LTD.
Adult and Health Services,Head of Adults,Third Party Payments,472101,Purchase of Care,05-Sep-2017,3330991-1735971H,961.62,DALE CARE LTD.
Adult and Health Services,Head of Adults,Third Party Payments,472101,Purchase of Care,05-Sep-2017,3330991-1735973H,"1,734.55",DALE CARE LTD.
Adult and Health Services,Head of Adults,Third Party Payments,472101,Purchase of Care,05-Sep-2017,3330991-1735991H,505.83,DALE CARE LTD.
Adult and Health Services,Head of Adults,Third Party Payments,472101,Purchase of Care,05-Sep-2017,3330991-1735993H,736.56,DALE CARE LTD.
Adult and Health Services,Head of Adults,Third Party Payments,472101,Purchase of Care,05-Sep-2017,3330991-1735997H,707.00,DALE CARE LTD.
Adult and Health Services,Head of Adults,Third Party Payments,472101,Purchase of Care,05-Sep-2017,3330991-1736000H,620.64,DALE CARE LTD.
Adult and Health Services,Head of Adults,Third Party Payments,472101,Purchase of Care,05-Sep-2017,3330991-1736001H,620.64,DALE CARE LTD.
Adult and Health Services,Head of Adults,Third Party Payments,472101,Purchase of Care,05-Sep-2017,3330991-1736003H,591.08,DALE CARE LTD.
Adult and Health Services,Head of Adults,Third Party Payments,472101,Purchase of Care,05-Sep-2017,3330991-1736007H,636.52,DALE CARE LTD.
Adult and Health Services,Head of Adults,Third Party Payments,472101,Purchase of Care,05-Sep-2017,3330991-1736015H,537.65,DALE CARE LTD.
Adult and Health Services,Head of Adults,Third Party Payments,472101,Purchase of Care,05-Sep-2017,3330991-1736021H,509.24,DALE CARE LTD.
Adult and Health Services,Head of Adults,Third Party Payments,472101,Purchase of Care,05-Sep-2017,3330991-1736029H,519.46,DALE CARE LTD.
Adult and Health Services,Head of Adults,Third Party Payments,472101,Purchase of Care,05-Sep-2017,3330991-1736030H,784.30,DALE CARE LTD.
Adult and Health Services,Head of Adults,Third Party Payments,472101,Purchase of Care,05-Sep-2017,3330991-1736040H,559.24,DALE CARE LTD.
Adult and Health Services,Head of Adults,Third Party Payments,472101,Purchase of Care,05-Sep-2017,3330991-1736059H,736.56,DALE CARE LTD.
Adult and Health Services,Head of Adults,Third Party Payments,472101,Purchase of Care,05-Sep-2017,3330991-1736062H,975.26,DALE CARE LTD.
Adult and Health Services,Head of Adults,Third Party Payments,472101,Purchase of Care,05-Sep-2017,3330991-1736068H,"1,636.80",DALE CARE LTD.
Adult and Health Services,Head of Adults,Third Party Payments,472101,Purchase of Care,05-Sep-2017,3330991-1736164H,691.08,DALE CARE LTD.
Adult and Health Services,Head of Adults,Third Party Payments,472101,Purchase of Care,05-Sep-2017,3330991-1736245H,572.88,DALE CARE LTD.
Adult and Health Services,Head of Adults,Third Party Payments,472101,Purchase of Care,05-Sep-2017,3330991-1736296H,"1,599.29",DALE CARE LTD.
Adult and Health Services,Head of Adults,Third Party Payments,472101,Purchase of Care,05-Sep-2017,3330991-1736351H,641.08,DALE CARE LTD.
Adult and Health Services,Head of Adults,Third Party Payments,472101,Purchase of Care,05-Sep-2017,3330991-1736584H,613.80,DALE CARE LTD.
Adult and Health Services,Head of Adults,Third Party Payments,472101,Purchase of Care,05-Sep-2017,3330991-1736631H,600.16,DALE CARE LTD.
Adult and Health Services,Head of Adults,Third Party Payments,472101,Purchase of Care,05-Sep-2017,3330991-1736687H,641.07,DALE CARE LTD.
Adult and Health Services,Head of Adults,Third Party Payments,472101,Purchase of Care,05-Sep-2017,3330991-1736706H,"1,477.68",DALE CARE LTD.
Adult and Health Services,Head of Adults,Third Party Payments,472101,Purchase of Care,05-Sep-2017,3330991-1736746H,763.84,DALE CARE LTD.
Adult and Health Services,Head of Adults,Third Party Payments,472101,Purchase of Care,05-Sep-2017,3330991-1736861H,"1,032.08",DALE CARE LTD.
Adult and Health Services,Head of Adults,Third Party Payments,472101,Purchase of Care,05-Sep-2017,3330991-1736879H,876.68,DALE CARE LTD.
Adult and Health Services,Head of Adults,Third Party Payments,472101,Purchase of Care,05-Sep-2017,3330991-1736885H,589.93,DALE CARE LTD.
Adult and Health Services,Head of Adults,Third Party Payments,472101,Purchase of Care,05-Sep-2017,3330991-1736888H,741.12,DALE CARE LTD.
Adult and Health Services,Head of Adults,Third Party Payments,472101,Purchase of Care,05-Sep-2017,3330991-1736907H,"1,582.24",DALE CARE LTD.
Adult and Health Services,Head of Adults,Third Party Payments,472101,Purchase of Care,05-Sep-2017,3330991-1736929H,"1,573.14",DALE CARE LTD.
Adult and Health Services,Head of Adults,Third Party Payments,472101,Purchase of Care,05-Sep-2017,3330991-1736978H,"1,636.80",DALE CARE LTD.
Adult and Health Services,Head of Adults,Third Party Payments,472101,Purchase of Care,05-Sep-2017,3330991-1736984H,"1,749.33",DALE CARE LTD.
Adult and Health Services,Head of Adults,Third Party Payments,472101,Purchase of Care,05-Sep-2017,3330991-1737017H,832.04,DALE CARE LTD.
Adult and Health Services,Head of Adults,Third Party Payments,472101,Purchase of Care,05-Sep-2017,3330991-1737053H,586.52,DALE CARE LTD.
Adult and Health Services,Head of Adults,Third Party Payments,472101,Purchase of Care,05-Sep-2017,3330991-1737087H,822.96,DALE CARE LTD.
Adult and Health Services,Head of Adults,Third Party Payments,472101,Purchase of Care,05-Sep-2017,3330991-1737090H,502.42,DALE CARE LTD.
Adult and Health Services,Head of Adults,Third Party Payments,472101,Purchase of Care,05-Sep-2017,3330991-1737125H,586.52,DALE CARE LTD.
Adult and Health Services,Head of Adults,Third Party Payments,472101,Purchase of Care,05-Sep-2017,3330991-1737129H,"1,527.68",DALE CARE LTD.
Adult and Health Services,Head of Adults,Third Party Payments,472101,Purchase of Care,05-Sep-2017,3330991-1737226H,845.69,DALE CARE LTD.
Adult and Health Services,Head of Adults,Third Party Payments,472101,Purchase of Care,05-Sep-2017,3330991-1737229H,745.64,DALE CARE LTD.
Adult and Health Services,Head of Adults,Third Party Payments,472101,Purchase of Care,05-Sep-2017,3330991-1737278H,692.22,DALE CARE LTD.
Adult and Health Services,Head of Adults,Third Party Payments,472101,Purchase of Care,05-Sep-2017,3330991-1737301H,600.16,DALE CARE LTD.
Adult and Health Services,Head of Adults,Third Party Payments,472101,Purchase of Care,05-Sep-2017,3330991-1737306H,780.89,DALE CARE LTD.
Adult and Health Services,Head of Adults,Third Party Payments,472101,Purchase of Care,05-Sep-2017,3330991-1737320H,536.52,DALE CARE LTD.
Adult and Health Services,Head of Adults,Third Party Payments,472101,Purchase of Care,05-Sep-2017,3330991-1737335H,654.72,DALE CARE LTD.
Adult and Health Services,Head of Adults,Third Party Payments,472101,Purchase of Care,05-Sep-2017,3330991-1737337H,"1,295.80",DALE CARE LTD.
Adult and Health Services,Head of Adults,Third Party Payments,472101,Purchase of Care,05-Sep-2017,3330991-1737398H,645.63,DALE CARE LTD.
Adult and Health Services,Head of Adults,Third Party Payments,472101,Purchase of Care,05-Sep-2017,3330991-1737415H,800.20,DALE CARE LTD.
Adult and Health Services,Head of Adults,Third Party Payments,472101,Purchase of Care,05-Sep-2017,3330991-1737432H,572.88,DALE CARE LTD.
Adult and Health Services,Head of Adults,Third Party Payments,472101,Purchase of Care,05-Sep-2017,3330991-1737436H,686.56,DALE CARE LTD.
Adult and Health Services,Head of Adults,Third Party Payments,472101,Purchase of Care,05-Sep-2017,3330991-1737441H,"1,868.68",DALE CARE LTD.
Adult and Health Services,Head of Adults,Third Party Payments,472101,Purchase of Care,05-Sep-2017,3330991-1737450H,758.17,DALE CARE LTD.
Adult and Health Services,Head of Adults,Third Party Payments,472101,Purchase of Care,05-Sep-2017,3330991-1737459H,631.98,DALE CARE LTD.
Adult and Health Services,Head of Adults,Third Party Payments,472101,Purchase of Care,05-Sep-2017,3330991-1737711H,527.40,DALE CARE LTD.
Adult and Health Services,Head of Adults,Third Party Payments,472101,Purchase of Care,05-Sep-2017,3330991-1737720H,766.10,DALE CARE LTD.
Adult and Health Services,Head of Adults,Third Party Payments,472101,Purchase of Care,05-Sep-2017,3330991-1737755H,663.80,DALE CARE LTD.
Adult and Health Services,Head of Adults,Third Party Payments,472101,Purchase of Care,05-Sep-2017,3330991-1737762H,"1,168.49",DALE CARE LTD.
Adult and Health Services,Head of Adults,Third Party Payments,472101,Purchase of Care,05-Sep-2017,3330991-1737802H,650.16,DALE CARE LTD.
Adult and Health Services,Head of Adults,Third Party Payments,472101,Purchase of Care,05-Sep-2017,3330991-1737883H,677.44,DALE CARE LTD.
Adult and Health Services,Head of Adults,Third Party Payments,472101,Purchase of Care,05-Sep-2017,3330991-1737994H,"1,204.86",DALE CARE LTD.
Adult and Health Services,Head of Adults,Third Party Payments,472101,Purchase of Care,05-Sep-2017,3330991-1738016H,625.16,DALE CARE LTD.
Adult and Health Services,Head of Adults,Third Party Payments,472101,Purchase of Care,05-Sep-2017,3330991-1738037H,542.19,DALE CARE LTD.
Adult and Health Services,Head of Adults,Third Party Payments,472101,Purchase of Care,05-Sep-2017,3330991-1738062H,636.52,DALE CARE LTD.
Adult and Health Services,Head of Adults,Third Party Payments,472101,Purchase of Care,05-Sep-2017,3330991-1738077H,668.36,DALE CARE LTD.
Adult and Health Services,Head of Adults,Third Party Payments,472101,Purchase of Care,05-Sep-2017,3330991-1738080H,"1,018.44",DALE CARE LTD.
Adult and Health Services,Head of Adults,Third Party Payments,472101,Purchase of Care,05-Sep-2017,3330991-1738084H,755.48,DALE CARE LTD.
Adult and Health Services,Head of Adults,Third Party Payments,472101,Purchase of Care,05-Sep-2017,3330991-1738087H,"1,309.44",DALE CARE LTD.
Adult and Health Services,Head of Adults,Third Party Payments,472101,Purchase of Care,05-Sep-2017,3330991-1738088H,700.20,DALE CARE LTD.
Adult and Health Services,Head of Adults,Third Party Payments,472101,Purchase of Care,05-Sep-2017,3330991-1738123H,671.77,DALE CARE LTD.
Adult and Health Services,Head of Adults,Third Party Payments,472101,Purchase of Care,05-Sep-2017,3330991-1738140H,763.84,DALE CARE LTD.
Adult and Health Services,Head of Adults,Third Party Payments,472101,Purchase of Care,05-Sep-2017,3330991-1738172H,"1,698.18",DALE CARE LTD.
Adult and Health Services,Head of Adults,Third Party Payments,472101,Purchase of Care,05-Sep-2017,3330991-1738184H,722.93,DALE CARE LTD.
Adult and Health Services,Head of Adults,Third Party Payments,472101,Purchase of Care,05-Sep-2017,3330991-1738202H,900.24,DALE CARE LTD.
Adult and Health Services,Head of Adults,Third Party Payments,472101,Purchase of Care,05-Sep-2017,3330991-1738214H,572.88,DALE CARE LTD.
Adult and Health Services,Head of Adults,Third Party Payments,472101,Purchase of Care,05-Sep-2017,3330991-1738222H,933.24,DALE CARE LTD.
Adult and Health Services,Head of Adults,Third Party Payments,472101,Purchase of Care,05-Sep-2017,3330991-1738261H,504.68,DALE CARE LTD.
Adult and Health Services,Head of Adults,Third Party Payments,472101,Purchase of Care,05-Sep-2017,3330991-1738266H,538.78,DALE CARE LTD.
Adult and Health Services,Head of Adults,Third Party Payments,472101,Purchase of Care,05-Sep-2017,3330991-1738271H,600.16,DALE CARE LTD.
Adult and Health Services,Head of Adults,Third Party Payments,472101,Purchase of Care,05-Sep-2017,3330991-1738287H,"1,216.23",DALE CARE LTD.
Adult and Health Services,Head of Adults,Third Party Payments,472101,Purchase of Care,05-Sep-2017,3330991-1738317H,"3,890.52",DALE CARE LTD.
Adult and Health Services,Head of Adults,Third Party Payments,472101,Purchase of Care,05-Sep-2017,3330991-1738339H,930.93,DALE CARE LTD.
Adult and Health Services,Head of Adults,Third Party Payments,472101,Purchase of Care,05-Sep-2017,3330991-1738346H,536.52,DALE CARE LTD.
Adult and Health Services,Head of Adults,Third Party Payments,472101,Purchase of Care,05-Sep-2017,3330991-1738358H,552.42,DALE CARE LTD.
Adult and Health Services,Head of Adults,Third Party Payments,472101,Purchase of Care,05-Sep-2017,3330991-1738372H,"1,231.01",DALE CARE LTD.
Adult and Health Services,Head of Adults,Third Party Payments,472101,Purchase of Care,05-Sep-2017,3330991-1738377H,727.46,DALE CARE LTD.
Adult and Health Services,Head of Adults,Third Party Payments,472101,Purchase of Care,05-Sep-2017,3330991-1738385H,600.16,DALE CARE LTD.
Adult and Health Services,Head of Adults,Third Party Payments,472101,Purchase of Care,05-Sep-2017,3330991-1738386H,632.00,DALE CARE LTD.
Adult and Health Services,Head of Adults,Third Party Payments,472101,Purchase of Care,05-Sep-2017,3330991-1738427H,663.80,DALE CARE LTD.
Adult and Health Services,Head of Adults,Third Party Payments,472101,Purchase of Care,05-Sep-2017,3330991-1738436H,"1,004.34",DALE CARE LTD.
Adult and Health Services,Head of Adults,Third Party Payments,472101,Purchase of Care,05-Sep-2017,3330991-1738438H,600.16,DALE CARE LTD.
Adult and Health Services,Head of Adults,Third Party Payments,472101,Purchase of Care,05-Sep-2017,3330991-1738447H,709.28,DALE CARE LTD.
Adult and Health Services,Head of Adults,Third Party Payments,472101,Purchase of Care,05-Sep-2017,3330991-1738498H,859.32,DALE CARE LTD.
Adult and Health Services,Head of Adults,Third Party Payments,472101,Purchase of Care,05-Sep-2017,3330991-1738510H,702.46,DALE CARE LTD.
Adult and Health Services,Head of Adults,Third Party Payments,472101,Purchase of Care,05-Sep-2017,3330991-1738523H,572.88,DALE CARE LTD.
Adult and Health Services,Head of Adults,Third Party Payments,472101,Purchase of Care,05-Sep-2017,3330991-1738563H,591.08,DALE CARE LTD.
Adult and Health Services,Head of Adults,Third Party Payments,472101,Purchase of Care,05-Sep-2017,3330991-1738579H,504.68,DALE CARE LTD.
Adult and Health Services,Head of Adults,Third Party Payments,472101,Purchase of Care,05-Sep-2017,3330991-1738583H,736.56,DALE CARE LTD.
Adult and Health Services,Head of Adults,Third Party Payments,472101,Purchase of Care,05-Sep-2017,3330991-1738608H,533.09,DALE CARE LTD.
Adult and Health Services,Head of Adults,Third Party Payments,472101,Purchase of Care,05-Sep-2017,3330991-1738616H,695.64,DALE CARE LTD.
Adult and Health Services,Head of Adults,Third Party Payments,472101,Purchase of Care,05-Sep-2017,3330991-1738622H,743.38,DALE CARE LTD.
Adult and Health Services,Head of Adults,Third Party Payments,472101,Purchase of Care,05-Sep-2017,3330991-1738623H,"1,183.27",DALE CARE LTD.
Adult and Health Services,Head of Adults,Third Party Payments,472101,Purchase of Care,05-Sep-2017,3330991-1738654H,988.90,DALE CARE LTD.
Adult and Health Services,Head of Adults,Third Party Payments,472101,Purchase of Care,05-Sep-2017,3330991-1738659H,553.57,DALE CARE LTD.
Adult and Health Services,Head of Adults,Third Party Payments,472101,Purchase of Care,05-Sep-2017,3330991-1738740H,"1,200.32",DALE CARE LTD.
Adult and Health Services,Head of Adults,Third Party Payments,472101,Purchase of Care,05-Sep-2017,3330991-1738796H,927.52,DALE CARE LTD.
Adult and Health Services,Head of Adults,Third Party Payments,472101,Purchase of Care,05-Sep-2017,3330991-1738855H,686.56,DALE CARE LTD.
Adult and Health Services,Head of Adults,Third Party Payments,472101,Purchase of Care,05-Sep-2017,3330991-1738862H,750.20,DALE CARE LTD.
Adult and Health Services,Head of Adults,Third Party Payments,472101,Purchase of Care,05-Sep-2017,3330991-1738872H,872.96,DALE CARE LTD.
Adult and Health Services,Head of Adults,Third Party Payments,472101,Purchase of Care,05-Sep-2017,3330991-1738884H,558.11,DALE CARE LTD.
Adult and Health Services,Head of Adults,Third Party Payments,472101,Purchase of Care,05-Sep-2017,3330991-1738894H,684.23,DALE CARE LTD.
Adult and Health Services,Head of Adults,Third Party Payments,472101,Purchase of Care,05-Sep-2017,3330991-1738906H,521.20,DALE CARE LTD.
Adult and Health Services,Head of Adults,Third Party Payments,472101,Purchase of Care,05-Sep-2017,3330991-1738908H,509.24,DALE CARE LTD.
Adult and Health Services,Head of Adults,Third Party Payments,472101,Purchase of Care,05-Sep-2017,3330991-1738943H,759.28,DALE CARE LTD.
Adult and Health Services,Head of Adults,Third Party Payments,472101,Purchase of Care,05-Sep-2017,3330991-1738957H,"1,074.64",DALE CARE LTD.
Adult and Health Services,Head of Adults,Third Party Payments,472101,Purchase of Care,05-Sep-2017,3330991-1738962H,"2,181.60",DALE CARE LTD.
Adult and Health Services,Head of Adults,Third Party Payments,472101,Purchase of Care,05-Sep-2017,3330991-1738991H,759.28,DALE CARE LTD.
Adult and Health Services,Head of Adults,Third Party Payments,472101,Purchase of Care,05-Sep-2017,3330991-1739006H,581.96,DALE CARE LTD.
Adult and Health Services,Head of Adults,Third Party Payments,472101,Purchase of Care,05-Sep-2017,3330991-1739052H,606.98,DALE CARE LTD.
Adult and Health Services,Head of Adults,Third Party Payments,472101,Purchase of Care,05-Sep-2017,3330991-1739104H,695.64,DALE CARE LTD.
Adult and Health Services,Head of Adults,Third Party Payments,472101,Purchase of Care,05-Sep-2017,3330991-1739107H,804.76,DALE CARE LTD.
Adult and Health Services,Head of Adults,Third Party Payments,472101,Purchase of Care,05-Sep-2017,3330991-1739108H,791.12,DALE CARE LTD.
Adult and Health Services,Head of Adults,Third Party Payments,472101,Purchase of Care,05-Sep-2017,3330991-1739120H,572.88,DALE CARE LTD.
Adult and Health Services,Head of Adults,Third Party Payments,472101,Purchase of Care,05-Sep-2017,3330991-1739125H,572.88,DALE CARE LTD.
Adult and Health Services,Head of Adults,Third Party Payments,472101,Purchase of Care,05-Sep-2017,3330991-1739162H,884.34,DALE CARE LTD.
Adult and Health Services,Head of Adults,Third Party Payments,472101,Purchase of Care,05-Sep-2017,3330991-1739181H,675.18,DALE CARE LTD.
Adult and Health Services,Head of Adults,Third Party Payments,472101,Purchase of Care,05-Sep-2017,3330991-1739189H,686.56,DALE CARE LTD.
Adult and Health Services,Head of Adults,Third Party Payments,472101,Purchase of Care,05-Sep-2017,3330991-1739199H,550.14,DALE CARE LTD.
Adult and Health Services,Head of Adults,Third Party Payments,472101,Purchase of Care,05-Sep-2017,3330991-1739217H,550.15,DALE CARE LTD.
Adult and Health Services,Head of Adults,Third Party Payments,472101,Purchase of Care,05-Sep-2017,3330991-1739237H,566.06,DALE CARE LTD.
Adult and Health Services,Head of Adults,Third Party Payments,472101,Purchase of Care,05-Sep-2017,3330991-1739241H,695.64,DALE CARE LTD.
Adult and Health Services,Head of Adults,Third Party Payments,472101,Purchase of Care,05-Sep-2017,3330991-1739277H,842.27,DALE CARE LTD.
Adult and Health Services,Head of Adults,Third Party Payments,472101,Purchase of Care,05-Sep-2017,3330991-1739297H,552.42,DALE CARE LTD.
Adult and Health Services,Head of Adults,Third Party Payments,472101,Purchase of Care,05-Sep-2017,3330991-1739316H,500.12,DALE CARE LTD.
Adult and Health Services,Head of Adults,Third Party Payments,472101,Purchase of Care,05-Sep-2017,3330991-1739381H,545.60,DALE CARE LTD.
Adult and Health Services,Head of Adults,Third Party Payments,472101,Purchase of Care,05-Sep-2017,3330991-1739383H,763.84,DALE CARE LTD.
Adult and Health Services,Head of Adults,Third Party Payments,472101,Purchase of Care,05-Sep-2017,3330991-1739404H,572.88,DALE CARE LTD.
Adult and Health Services,Head of Adults,Third Party Payments,472101,Purchase of Care,05-Sep-2017,3330991-1739406H,581.97,DALE CARE LTD.
Adult and Health Services,Head of Adults,Third Party Payments,472101,Purchase of Care,05-Sep-2017,3330991-1739417H,757.02,DALE CARE LTD.
Adult and Health Services,Head of Adults,Third Party Payments,472101,Purchase of Care,05-Sep-2017,3330991-1739419H,543.34,DALE CARE LTD.
Adult and Health Services,Head of Adults,Third Party Payments,472101,Purchase of Care,05-Sep-2017,3330991-1739426H,536.51,DALE CARE LTD.
Adult and Health Services,Head of Adults,Third Party Payments,472101,Purchase of Care,05-Sep-2017,3330991-1739434H,"1,009.36",DALE CARE LTD.
Adult and Health Services,Head of Adults,Third Party Payments,472101,Purchase of Care,05-Sep-2017,3330991-1739438H,"1,464.04",DALE CARE LTD.
Adult and Health Services,Head of Adults,Third Party Payments,472101,Purchase of Care,05-Sep-2017,3330991-1739475H,954.80,DALE CARE LTD.
Adult and Health Services,Head of Adults,Third Party Payments,472101,Purchase of Care,05-Sep-2017,3330991-1739477H,788.20,DALE CARE LTD.
Adult and Health Services,Head of Adults,Third Party Payments,472101,Purchase of Care,05-Sep-2017,3330991-1739484H,572.88,DALE CARE LTD.
Adult and Health Services,Head of Adults,Third Party Payments,472101,Purchase of Care,05-Sep-2017,3330991-1739485H,"1,263.96",DALE CARE LTD.
Adult and Health Services,Head of Adults,Third Party Payments,472101,Purchase of Care,05-Sep-2017,3330991-1739535H,668.36,DALE CARE LTD.
Adult and Health Services,Head of Adults,Third Party Payments,472101,Purchase of Care,05-Sep-2017,3330991-1739549H,817.27,DALE CARE LTD.
Adult and Health Services,Head of Adults,Third Party Payments,472101,Purchase of Care,05-Sep-2017,3330991-1739583H,682.00,DALE CARE LTD.
Adult and Health Services,Head of Adults,Third Party Payments,472101,Purchase of Care,05-Sep-2017,3330991-1739584H,693.38,DALE CARE LTD.
Adult and Health Services,Head of Adults,Third Party Payments,472101,Purchase of Care,05-Sep-2017,3330991-1739615H,777.48,DALE CARE LTD.
Adult and Health Services,Head of Adults,Third Party Payments,472101,Purchase of Care,05-Sep-2017,3330991-1739659H,"1,391.28",DALE CARE LTD.
Adult and Health Services,Head of Adults,Third Party Payments,472101,Purchase of Care,05-Sep-2017,3330991-1739666H,677.45,DALE CARE LTD.
Adult and Health Services,Head of Adults,Third Party Payments,472101,Purchase of Care,05-Sep-2017,3330991-1739672H,586.52,DALE CARE LTD.
Adult and Health Services,Head of Adults,Third Party Payments,472101,Purchase of Care,05-Sep-2017,3330991-1739709H,753.61,DALE CARE LTD.
Adult and Health Services,Head of Adults,Third Party Payments,472101,Purchase of Care,05-Sep-2017,3330991-1739733H,763.84,DALE CARE LTD.
Adult and Health Services,Head of Adults,Third Party Payments,472101,Purchase of Care,05-Sep-2017,3330991-1739740H,641.08,DALE CARE LTD.
Adult and Health Services,Head of Adults,Third Party Payments,472101,Purchase of Care,05-Sep-2017,3330991-1739742H,"1,536.77",DALE CARE LTD.
Adult and Health Services,Head of Adults,Third Party Payments,472101,Purchase of Care,05-Sep-2017,3330991-1739755H,"1,193.50",DALE CARE LTD.
Adult and Health Services,Head of Adults,Third Party Payments,472101,Purchase of Care,05-Sep-2017,3330991-1739768H,542.19,DALE CARE LTD.
Adult and Health Services,Head of Adults,Third Party Payments,472101,Purchase of Care,05-Sep-2017,3330991-1739769H,999.13,DALE CARE LTD.
Adult and Health Services,Head of Adults,Third Party Payments,472101,Purchase of Care,05-Sep-2017,3330991-1739772H,691.08,DALE CARE LTD.
Adult and Health Services,Head of Adults,Third Party Payments,472101,Purchase of Care,05-Sep-2017,3330991-1739866H,691.08,DALE CARE LTD.
Adult and Health Services,Head of Adults,Third Party Payments,472101,Purchase of Care,05-Sep-2017,3330991-1739899H,"1,063.92",DALE CARE LTD.
Adult and Health Services,Head of Adults,Third Party Payments,472101,Purchase of Care,05-Sep-2017,3330991-1739956H,622.88,DALE CARE LTD.
Adult and Health Services,Head of Adults,Third Party Payments,472101,Purchase of Care,05-Sep-2017,3330991-1739999H,"1,005.95",DALE CARE LTD.
Adult and Health Services,Head of Adults,Third Party Payments,472101,Purchase of Care,05-Sep-2017,3330991-1740014H,"1,159.40",DALE CARE LTD.
Adult and Health Services,Head of Adults,Third Party Payments,472101,Purchase of Care,05-Sep-2017,3330991-1740055H,663.80,DALE CARE LTD.
Adult and Health Services,Head of Adults,Third Party Payments,472101,Purchase of Care,05-Sep-2017,3330991-1740056H,572.88,DALE CARE LTD.
Adult and Health Services,Head of Adults,Third Party Payments,472101,Purchase of Care,05-Sep-2017,3330991-1740061H,650.16,DALE CARE LTD.
Adult and Health Services,Head of Adults,Third Party Payments,472101,Purchase of Care,05-Sep-2017,3330991-1740064H,677.44,DALE CARE LTD.
Adult and Health Services,Head of Adults,Third Party Payments,472101,Purchase of Care,05-Sep-2017,3330991-1740082H,795.68,DALE CARE LTD.
Adult and Health Services,Head of Adults,Third Party Payments,472101,Purchase of Care,05-Sep-2017,3330991-1740123H,603.57,DALE CARE LTD.
Adult and Health Services,Head of Adults,Third Party Payments,472101,Purchase of Care,05-Sep-2017,3330991-1740164H,656.99,DALE CARE LTD.
Adult and Health Services,Head of Adults,Third Party Payments,472101,Purchase of Care,05-Sep-2017,3330991-1740166H,663.80,DALE CARE LTD.
Adult and Health Services,Head of Adults,Third Party Payments,472101,Purchase of Care,05-Sep-2017,3330991-1740173H,876.37,DALE CARE LTD.
Adult and Health Services,Head of Adults,Third Party Payments,472101,Purchase of Care,05-Sep-2017,3330991-1740185H,772.92,DALE CARE LTD.
Adult and Health Services,Head of Adults,Third Party Payments,472101,Purchase of Care,05-Sep-2017,3330991-1740187H,818.40,DALE CARE LTD.
Adult and Health Services,Head of Adults,Third Party Payments,472101,Purchase of Care,05-Sep-2017,3330991-1740189H,709.28,DALE CARE LTD.
Adult and Health Services,Head of Adults,Third Party Payments,472101,Purchase of Care,05-Sep-2017,3330991-1740190H,502.42,DALE CARE LTD.
Adult and Health Services,Head of Adults,Third Party Payments,472101,Purchase of Care,05-Sep-2017,3330991-1740194H,"1,329.90",DALE CARE LTD.
Adult and Health Services,Head of Adults,Third Party Payments,472101,Purchase of Care,05-Sep-2017,3330991-1740196H,801.35,DALE CARE LTD.
Adult and Health Services,Head of Adults,Third Party Payments,472101,Purchase of Care,05-Sep-2017,3330991-1740220H,"1,595.88",DALE CARE LTD.
Adult and Health Services,Head of Adults,Third Party Payments,472101,Purchase of Care,05-Sep-2017,3330991-1740281H,791.12,DALE CARE LTD.
Adult and Health Services,Head of Adults,Third Party Payments,472101,Purchase of Care,05-Sep-2017,3330991-1740296H,596.74,DALE CARE LTD.
Adult and Health Services,Head of Adults,Third Party Payments,472101,Purchase of Care,05-Sep-2017,3330991-1740300H,"1,481.83",DALE CARE LTD.
Adult and Health Services,Head of Adults,Third Party Payments,472101,Purchase of Care,05-Sep-2017,3330991-1740301H,668.36,DALE CARE LTD.
Adult and Health Services,Head of Adults,Third Party Payments,472101,Purchase of Care,05-Sep-2017,3330991-1740302H,715.08,DALE CARE LTD.
Adult and Health Services,Head of Adults,Third Party Payments,472101,Purchase of Care,05-Sep-2017,3330991-1740330H,568.32,DALE CARE LTD.
Adult and Health Services,Head of Adults,Third Party Payments,472101,Purchase of Care,05-Sep-2017,3330991-1740336H,636.52,DALE CARE LTD.
Adult and Health Services,Head of Adults,Third Party Payments,472101,Purchase of Care,05-Sep-2017,3330991-1740348H,509.24,DALE CARE LTD.
Adult and Health Services,Head of Adults,Third Party Payments,472101,Purchase of Care,05-Sep-2017,3330991-1740407H,802.50,DALE CARE LTD.
Adult and Health Services,Head of Adults,Third Party Payments,472101,Purchase of Care,05-Sep-2017,3330991-1740412H,625.17,DALE CARE LTD.
Adult and Health Services,Head of Adults,Third Party Payments,472101,Purchase of Care,05-Sep-2017,3330991-1740461H,"1,906.19",DALE CARE LTD.
Adult and Health Services,Head of Adults,Third Party Payments,472101,Purchase of Care,05-Sep-2017,3330991-1740473H,845.68,DALE CARE LTD.
Adult and Health Services,Head of Adults,Third Party Payments,472101,Purchase of Care,05-Sep-2017,3330991-1740481H,609.25,DALE CARE LTD.
Adult and Health Services,Head of Adults,Third Party Payments,472101,Purchase of Care,05-Sep-2017,3330991-1740486H,763.84,DALE CARE LTD.
Adult and Health Services,Head of Adults,Third Party Payments,472101,Purchase of Care,05-Sep-2017,3330991-1740512H,859.32,DALE CARE LTD.
Adult and Health Services,Head of Adults,Third Party Payments,472101,Purchase of Care,05-Sep-2017,3330991-1740521H,555.83,DALE CARE LTD.
Adult and Health Services,Head of Adults,Third Party Payments,472101,Purchase of Care,05-Sep-2017,3330991-1740541H,580.85,DALE CARE LTD.
Adult and Health Services,Head of Adults,Third Party Payments,472101,Purchase of Care,05-Sep-2017,3330991-1740554H,627.44,DALE CARE LTD.
Adult and Health Services,Head of Adults,Third Party Payments,472101,Purchase of Care,05-Sep-2017,3330991-1740569H,568.32,DALE CARE LTD.
Adult and Health Services,Head of Adults,Third Party Payments,472101,Purchase of Care,05-Sep-2017,3330991-1740578H,522.88,DALE CARE LTD.
Adult and Health Services,Head of Adults,Third Party Payments,472101,Purchase of Care,05-Sep-2017,3330991-1740601H,609.26,DALE CARE LTD.
Adult and Health Services,Head of Adults,Third Party Payments,472101,Purchase of Care,05-Sep-2017,3330991-1740602H,745.64,DALE CARE LTD.
Adult and Health Services,Head of Adults,Third Party Payments,472101,Purchase of Care,05-Sep-2017,3330991-1740623H,561.51,DALE CARE LTD.
Adult and Health Services,Head of Adults,Third Party Payments,472101,Purchase of Care,05-Sep-2017,3330991-1740628H,545.60,DALE CARE LTD.
Adult and Health Services,Head of Adults,Third Party Payments,472101,Purchase of Care,05-Sep-2017,3330991-1740644H,675.18,DALE CARE LTD.
Adult and Health Services,Head of Adults,Third Party Payments,472101,Purchase of Care,05-Sep-2017,3330991-1740646H,716.09,DALE CARE LTD.
Adult and Health Services,Head of Adults,Third Party Payments,472101,Purchase of Care,05-Sep-2017,3330991-1740647H,784.30,DALE CARE LTD.
Adult and Health Services,Head of Adults,Third Party Payments,472101,Purchase of Care,05-Sep-2017,3330991-1740650H,518.32,DALE CARE LTD.
Adult and Health Services,Head of Adults,Third Party Payments,472101,Purchase of Care,05-Sep-2017,3330991-1740654H,"1,313.98",DALE CARE LTD.
Adult and Health Services,Head of Adults,Third Party Payments,472101,Purchase of Care,05-Sep-2017,3330991-1740659H,701.32,DALE CARE LTD.
Adult and Health Services,Head of Adults,Third Party Payments,472101,Purchase of Care,05-Sep-2017,3330991-1740676H,536.52,DALE CARE LTD.
Adult and Health Services,Head of Adults,Third Party Payments,472101,Purchase of Care,05-Sep-2017,3330991-1740682H,636.52,DALE CARE LTD.
Adult and Health Services,Head of Adults,Third Party Payments,472101,Purchase of Care,05-Sep-2017,3330991-1740684H,604.71,DALE CARE LTD.
Adult and Health Services,Head of Adults,Third Party Payments,472101,Purchase of Care,05-Sep-2017,3330991-1740686H,559.24,DALE CARE LTD.
Adult and Health Services,Head of Adults,Third Party Payments,472101,Purchase of Care,05-Sep-2017,3330991-1740691H,845.68,DALE CARE LTD.
Adult and Health Services,Head of Adults,Third Party Payments,472101,Purchase of Care,05-Sep-2017,3330991-1740725H,"1,080.97",DALE CARE LTD.
Adult and Health Services,Head of Adults,Third Party Payments,472101,Purchase of Care,05-Sep-2017,3330991-1740726H,644.49,DALE CARE LTD.
Adult and Health Services,Head of Adults,Third Party Payments,472101,Purchase of Care,05-Sep-2017,3330991-1740744H,"1,708.41",DALE CARE LTD.
Adult and Health Services,Head of Adults,Third Party Payments,472101,Purchase of Care,05-Sep-2017,3330991-1740751H,"1,994.85",DALE CARE LTD.
Adult and Health Services,Head of Adults,Third Party Payments,472101,Purchase of Care,05-Sep-2017,3330991-1740766H,636.52,DALE CARE LTD.
Adult and Health Services,Head of Adults,Third Party Payments,472101,Purchase of Care,05-Sep-2017,3330991-1740809H,691.08,DALE CARE LTD.
Adult and Health Services,Head of Adults,Third Party Payments,472101,Purchase of Care,05-Sep-2017,3330991-1740817H,872.64,DALE CARE LTD.
Adult and Health Services,Head of Adults,Third Party Payments,472101,Purchase of Care,05-Sep-2017,3330991-1740845H,545.60,DALE CARE LTD.
Adult and Health Services,Head of Adults,Third Party Payments,472101,Purchase of Care,05-Sep-2017,3330991-1740856H,872.96,DALE CARE LTD.
Adult and Health Services,Head of Adults,Third Party Payments,472101,Purchase of Care,05-Sep-2017,3330991-1740858H,688.82,DALE CARE LTD.
Adult and Health Services,Head of Adults,Third Party Payments,472101,Purchase of Care,05-Sep-2017,3330991-1740880H,672.90,DALE CARE LTD.
Adult and Health Services,Head of Adults,Third Party Payments,472101,Purchase of Care,05-Sep-2017,3330991-1740895H,636.52,DALE CARE LTD.
Adult and Health Services,Head of Adults,Third Party Payments,472101,Purchase of Care,05-Sep-2017,3330991-1740903H,913.88,DALE CARE LTD.
Adult and Health Services,Head of Adults,Third Party Payments,472101,Purchase of Care,05-Sep-2017,3330991-1740911H,527.40,DALE CARE LTD.
Adult and Health Services,Head of Adults,Third Party Payments,472101,Purchase of Care,05-Sep-2017,3330991-1740926H,636.52,DALE CARE LTD.
Adult and Health Services,Head of Adults,Third Party Payments,472101,Purchase of Care,05-Sep-2017,3330991-1740927H,"1,714.09",DALE CARE LTD.
Adult and Health Services,Head of Adults,Third Party Payments,472101,Purchase of Care,05-Sep-2017,3330991-1740933H,784.30,DALE CARE LTD.
Adult and Health Services,Head of Adults,Third Party Payments,472101,Purchase of Care,05-Sep-2017,3330991-1740953H,"1,245.80",DALE CARE LTD.
Adult and Health Services,Head of Adults,Third Party Payments,472101,Purchase of Care,05-Sep-2017,3330991-1740964H,600.16,DALE CARE LTD.
Adult and Health Services,Head of Adults,Third Party Payments,472101,Purchase of Care,05-Sep-2017,3330991-1740967H,636.52,DALE CARE LTD.
Adult and Health Services,Head of Adults,Third Party Payments,472101,Purchase of Care,05-Sep-2017,3330991-1741009H,682.00,DALE CARE LTD.
Adult and Health Services,Head of Adults,Third Party Payments,472101,Purchase of Care,05-Sep-2017,3330991-1741019H,"1,050.40",DALE CARE LTD.
Adult and Health Services,Head of Adults,Third Party Payments,472101,Purchase of Care,05-Sep-2017,3330991-1741030H,827.48,DALE CARE LTD.
Adult and Health Services,Head of Adults,Third Party Payments,472101,Purchase of Care,05-Sep-2017,3330991-1741058H,728.60,DALE CARE LTD.
Adult and Health Services,Head of Adults,Third Party Payments,472101,Purchase of Care,05-Sep-2017,3330991-1741073H,501.27,DALE CARE LTD.
Adult and Health Services,Head of Adults,Third Party Payments,472101,Purchase of Care,05-Sep-2017,3330991-1741085H,654.72,DALE CARE LTD.
Adult and Health Services,Head of Adults,Third Party Payments,472101,Purchase of Care,05-Sep-2017,3330991-1741087H,"1,145.76",DALE CARE LTD.
Adult and Health Services,Head of Adults,Third Party Payments,472101,Purchase of Care,05-Sep-2017,3330991-1741096H,799.92,DALE CARE LTD.
Adult and Health Services,Head of Adults,Third Party Payments,472101,Purchase of Care,05-Sep-2017,3330991-1741100H,945.34,DALE CARE LTD.
Adult and Health Services,Head of Adults,Third Party Payments,472101,Purchase of Care,05-Sep-2017,3330991-1741112H,763.84,DALE CARE LTD.
Adult and Health Services,Head of Adults,Third Party Payments,472101,Purchase of Care,05-Sep-2017,3330991-1741118H,832.04,DALE CARE LTD.
Adult and Health Services,Head of Adults,Third Party Payments,472101,Purchase of Care,05-Sep-2017,3330991-1741123H,525.15,DALE CARE LTD.
Adult and Health Services,Head of Adults,Third Party Payments,472101,Purchase of Care,05-Sep-2017,3330991-1741142H,"1,964.16",DALE CARE LTD.
Adult and Health Services,Head of Adults,Third Party Payments,472101,Purchase of Care,05-Sep-2017,3330991-1741167H,742.23,DALE CARE LTD.
Adult and Health Services,Head of Adults,Third Party Payments,472101,Purchase of Care,05-Sep-2017,3330991-1741173H,"1,386.72",DALE CARE LTD.
Adult and Health Services,Head of Adults,Third Party Payments,472101,Purchase of Care,05-Sep-2017,3330991-1741190H,"1,675.44",DALE CARE LTD.
Adult and Health Services,Head of Adults,Third Party Payments,472101,Purchase of Care,05-Sep-2017,3330991-1741213H,581.96,DALE CARE LTD.
Adult and Health Services,Head of Adults,Third Party Payments,472101,Purchase of Care,05-Sep-2017,3330991-1741254H,891.16,DALE CARE LTD.
Adult and Health Services,Head of Adults,Third Party Payments,472101,Purchase of Care,05-Sep-2017,3330991-1741256H,695.64,DALE CARE LTD.
Adult and Health Services,Head of Adults,Third Party Payments,472101,Purchase of Care,05-Sep-2017,3330991-1741262H,604.72,DALE CARE LTD.
Adult and Health Services,Head of Adults,Third Party Payments,472101,Purchase of Care,05-Sep-2017,3330991-1741267H,"1,643.62",DALE CARE LTD.
Adult and Health Services,Head of Adults,Third Party Payments,472101,Purchase of Care,05-Sep-2017,3330991-1741280H,604.72,DALE CARE LTD.
Adult and Health Services,Head of Adults,Third Party Payments,472101,Purchase of Care,05-Sep-2017,3330991-1741326H,"2,223.32",DALE CARE LTD.
Adult and Health Services,Head of Adults,Third Party Payments,472101,Purchase of Care,05-Sep-2017,3330991-1741327H,982.08,DALE CARE LTD.
Adult and Health Services,Head of Adults,Third Party Payments,472101,Purchase of Care,05-Sep-2017,3330991-1741339H,"1,082.72",DALE CARE LTD.
Adult and Health Services,Head of Adults,Third Party Payments,472101,Purchase of Care,05-Sep-2017,3330991-1741342H,538.78,DALE CARE LTD.
Adult and Health Services,Head of Adults,Third Party Payments,472101,Purchase of Care,05-Sep-2017,3330991-1741382H,504.68,DALE CARE LTD.
Adult and Health Services,Head of Adults,Third Party Payments,472101,Purchase of Care,05-Sep-2017,3330991-1741399H,632.00,DALE CARE LTD.
Adult and Health Services,Head of Adults,Third Party Payments,472101,Purchase of Care,05-Sep-2017,3330991-1741431H,620.61,DALE CARE LTD.
Adult and Health Services,Head of Adults,Third Party Payments,472101,Purchase of Care,05-Sep-2017,3330991-1741439H,696.84,DALE CARE LTD.
Adult and Health Services,Head of Adults,Third Party Payments,472101,Purchase of Care,05-Sep-2017,3330991-1741448H,"1,201.53",DALE CARE LTD.
Adult and Health Services,Head of Adults,Third Party Payments,472101,Purchase of Care,05-Sep-2017,3330991-1741455H,787.80,DALE CARE LTD.
Adult and Health Services,Head of Adults,Third Party Payments,472101,Purchase of Care,05-Sep-2017,3330991-1741463H,593.34,DALE CARE LTD.
Adult and Health Services,Head of Adults,Third Party Payments,472101,Purchase of Care,05-Sep-2017,3330991-1741472H,"1,280.68",DALE CARE LTD.
Adult and Health Services,Head of Adults,Third Party Payments,472101,Purchase of Care,05-Sep-2017,3330991-1741482H,688.82,DALE CARE LTD.
Adult and Health Services,Head of Adults,Third Party Payments,472101,Purchase of Care,05-Sep-2017,3330991-1741504H,"1,227.60",DALE CARE LTD.
Adult and Health Services,Head of Adults,Third Party Payments,472101,Purchase of Care,05-Sep-2017,3330991-1741505H,672.90,DALE CARE LTD.
Adult and Health Services,Head of Adults,Third Party Payments,472101,Purchase of Care,05-Sep-2017,3330991-1741511H,513.76,DALE CARE LTD.
Adult and Health Services,Head of Adults,Third Party Payments,472101,Purchase of Care,05-Sep-2017,3330991-1741515H,879.78,DALE CARE LTD.
Adult and Health Services,Head of Adults,Third Party Payments,472101,Purchase of Care,05-Sep-2017,3330991-1741521H,739.32,DALE CARE LTD.
Adult and Health Services,Head of Adults,Third Party Payments,472101,Purchase of Care,05-Sep-2017,3330991-1741527H,"1,286.72",DALE CARE LTD.
Adult and Health Services,Head of Adults,Third Party Payments,472101,Purchase of Care,05-Sep-2017,3330991-1741529H,572.88,DALE CARE LTD.
Adult and Health Services,Head of Adults,Third Party Payments,472101,Purchase of Care,05-Sep-2017,3330991-1741531H,663.80,DALE CARE LTD.
Adult and Health Services,Head of Adults,Third Party Payments,472101,Purchase of Care,05-Sep-2017,3330991-1741532H,545.60,DALE CARE LTD.
Adult and Health Services,Head of Adults,Third Party Payments,472101,Purchase of Care,05-Sep-2017,3330991-1741535H,702.46,DALE CARE LTD.
Adult and Health Services,Head of Adults,Third Party Payments,472101,Purchase of Care,05-Sep-2017,3330991-1741554H,795.68,DALE CARE LTD.
Adult and Health Services,Head of Adults,Third Party Payments,472101,Purchase of Care,05-Sep-2017,3330991-1741582H,559.25,DALE CARE LTD.
Adult and Health Services,Head of Adults,Third Party Payments,472101,Purchase of Care,05-Sep-2017,3330991-1741596H,763.84,DALE CARE LTD.
Adult and Health Services,Head of Adults,Third Party Payments,472101,Purchase of Care,05-Sep-2017,3330991-1741620H,509.24,DALE CARE LTD.
Adult and Health Services,Head of Adults,Third Party Payments,472101,Purchase of Care,05-Sep-2017,3330991-1741631H,763.84,DALE CARE LTD.
Adult and Health Services,Head of Adults,Third Party Payments,472101,Purchase of Care,05-Sep-2017,3330991-1741635H,536.52,DALE CARE LTD.
Adult and Health Services,Head of Adults,Third Party Payments,472101,Purchase of Care,05-Sep-2017,3330991-1741638H,593.34,DALE CARE LTD.
Adult and Health Services,Head of Adults,Third Party Payments,472101,Purchase of Care,05-Sep-2017,3330991-1741649H,668.36,DALE CARE LTD.
Adult and Health Services,Head of Adults,Third Party Payments,472101,Purchase of Care,05-Sep-2017,3330991-1741655H,965.56,DALE CARE LTD.
Adult and Health Services,Head of Adults,Third Party Payments,472101,Purchase of Care,05-Sep-2017,3330991-1741660H,516.06,DALE CARE LTD.
Adult and Health Services,Head of Adults,Third Party Payments,472101,Purchase of Care,05-Sep-2017,3330991-1741674H,566.06,DALE CARE LTD.
Adult and Health Services,Head of Adults,Third Party Payments,472101,Purchase of Care,05-Sep-2017,3330991-1741681H,"1,241.24",DALE CARE LTD.
Adult and Health Services,Head of Adults,Third Party Payments,472101,Purchase of Care,05-Sep-2017,3330991-1741691H,509.24,DALE CARE LTD.
Adult and Health Services,Head of Adults,Third Party Payments,472101,Purchase of Care,05-Sep-2017,3330991-1741733H,604.72,DALE CARE LTD.
Adult and Health Services,Head of Adults,Third Party Payments,472101,Purchase of Care,05-Sep-2017,3330991-1741752H,"1,159.40",DALE CARE LTD.
Adult and Health Services,Head of Adults,Third Party Payments,472101,Purchase of Care,05-Sep-2017,3330991-1741760H,763.84,DALE CARE LTD.
Adult and Health Services,Head of Adults,Third Party Payments,472101,Purchase of Care,05-Sep-2017,3330991-1741767H,668.36,DALE CARE LTD.
Adult and Health Services,Head of Adults,Third Party Payments,472101,Purchase of Care,05-Sep-2017,3330991-1741833H,538.78,DALE CARE LTD.
Adult and Health Services,Head of Adults,Third Party Payments,472101,Purchase of Care,05-Sep-2017,3330991-1741876H,929.20,DALE CARE LTD.
Adult and Health Services,Head of Adults,Third Party Payments,472101,Purchase of Care,05-Sep-2017,3330991-1741879H,586.52,DALE CARE LTD.
Adult and Health Services,Head of Adults,Third Party Payments,472101,Purchase of Care,05-Sep-2017,3330991-1741893H,527.40,DALE CARE LTD.
Adult and Health Services,Head of Adults,Third Party Payments,472101,Purchase of Care,05-Sep-2017,3330991-1741926H,668.36,DALE CARE LTD.
Adult and Health Services,Head of Adults,Third Party Payments,472101,Purchase of Care,05-Sep-2017,3330991-1741929H,"2,115.83",DALE CARE LTD.
Adult and Health Services,Head of Adults,Third Party Payments,472101,Purchase of Care,05-Sep-2017,3330991-1741948H,"1,852.78",DALE CARE LTD.
Adult and Health Services,Head of Adults,Third Party Payments,472101,Purchase of Care,05-Sep-2017,3330991-1741959H,566.06,DALE CARE LTD.
Adult and Health Services,Head of Adults,Third Party Payments,472101,Purchase of Care,05-Sep-2017,3330991-1741970H,572.88,DALE CARE LTD.
Adult and Health Services,Head of Adults,Third Party Payments,472101,Purchase of Care,05-Sep-2017,3330991-1741978H,545.60,DALE CARE LTD.
Adult and Health Services,Head of Adults,Third Party Payments,472101,Purchase of Care,05-Sep-2017,3330991-1742004H,791.12,DALE CARE LTD.
Adult and Health Services,Head of Adults,Third Party Payments,472101,Purchase of Care,05-Sep-2017,3330991-1742032H,572.88,DALE CARE LTD.
Adult and Health Services,Head of Adults,Third Party Payments,472101,Purchase of Care,05-Sep-2017,3330991-1742079H,"1,183.27",DALE CARE LTD.
Adult and Health Services,Head of Adults,Third Party Payments,472101,Purchase of Care,05-Sep-2017,3330991-1742082H,531.96,DALE CARE LTD.
Adult and Health Services,Head of Adults,Third Party Payments,472101,Purchase of Care,05-Sep-2017,3330991-1742146H,519.45,DALE CARE LTD.
Adult and Health Services,Head of Adults,Third Party Payments,472101,Purchase of Care,05-Sep-2017,3330991-1742186H,"1,357.44",DALE CARE LTD.
Adult and Health Services,Head of Adults,Third Party Payments,472101,Purchase of Care,05-Sep-2017,3330991-1742194H,895.69,DALE CARE LTD.
Adult and Health Services,Head of Adults,Third Party Payments,473101,Purchase of Care,05-Sep-2017,3331018-1735477D,565.76,DAYBREAK CENTRES.
Adult and Health Services,Head of Adults,Third Party Payments,473101,Purchase of Care,05-Sep-2017,3331018-1735535D,729.60,DAYBREAK CENTRES.
Adult and Health Services,Head of Adults,Third Party Payments,473101,Purchase of Care,05-Sep-2017,3331018-1735760D,816.00,DAYBREAK CENTRES.
Adult and Health Services,Head of Adults,Third Party Payments,473101,Purchase of Care,05-Sep-2017,3331018-1735847D,612.00,DAYBREAK CENTRES.
Adult and Health Services,Head of Adults,Third Party Payments,473101,Purchase of Care,05-Sep-2017,3331018-1735853D,640.00,DAYBREAK CENTRES.
Adult and Health Services,Head of Adults,Third Party Payments,473101,Purchase of Care,05-Sep-2017,3331018-1736188D,789.76,DAYBREAK CENTRES.
Adult and Health Services,Head of Adults,Third Party Payments,473101,Purchase of Care,05-Sep-2017,3331018-1736758D,512.00,DAYBREAK CENTRES.
Adult and Health Services,Head of Adults,Third Party Payments,473101,Purchase of Care,05-Sep-2017,3331018-1737457D,689.92,DAYBREAK CENTRES.
Adult and Health Services,Head of Adults,Third Party Payments,473101,Purchase of Care,05-Sep-2017,3331018-1737788D,843.20,DAYBREAK CENTRES.
Adult and Health Services,Head of Adults,Third Party Payments,473101,Purchase of Care,05-Sep-2017,3331018-1738652D,851.20,DAYBREAK CENTRES.
Adult and Health Services,Head of Adults,Third Party Payments,473101,Purchase of Care,05-Sep-2017,3331018-1738811D,"1,132.16",DAYBREAK CENTRES.
Adult and Health Services,Head of Adults,Third Party Payments,473101,Purchase of Care,05-Sep-2017,3331018-1740374D,791.20,DAYBREAK CENTRES.
Adult and Health Services,Head of Adults,Third Party Payments,473101,Purchase of Care,05-Sep-2017,3331017-1735915D,600.00,DAY-LILY.
Adult and Health Services,Head of Adults,Third Party Payments,473101,Purchase of Care,05-Sep-2017,3331019-1735419D,640.00,DEACONSTAR LTD.
Adult and Health Services,Head of Adults,Third Party Payments,473101,Purchase of Care,05-Sep-2017,3331019-1735493D,640.00,DEACONSTAR LTD.
Adult and Health Services,Head of Adults,Third Party Payments,473101,Purchase of Care,05-Sep-2017,3331019-1735593D,612.00,DEACONSTAR LTD.
Adult and Health Services,Head of Adults,Third Party Payments,473101,Purchase of Care,05-Sep-2017,3331019-1735793D,640.00,DEACONSTAR LTD.
Adult and Health Services,Head of Adults,Third Party Payments,473101,Purchase of Care,05-Sep-2017,3331019-1735800D,640.00,DEACONSTAR LTD.
Adult and Health Services,Head of Adults,Third Party Payments,473101,Purchase of Care,05-Sep-2017,3331019-1735866D,640.00,DEACONSTAR LTD.
Adult and Health Services,Head of Adults,Third Party Payments,473101,Purchase of Care,05-Sep-2017,3331019-1735888D,640.00,DEACONSTAR LTD.
Adult and Health Services,Head of Adults,Third Party Payments,473101,Purchase of Care,05-Sep-2017,3331019-1735889D,512.00,DEACONSTAR LTD.
Adult and Health Services,Head of Adults,Third Party Payments,473101,Purchase of Care,05-Sep-2017,3331019-1735904D,640.00,DEACONSTAR LTD.
Adult and Health Services,Head of Adults,Third Party Payments,473101,Purchase of Care,05-Sep-2017,3331019-1735916D,512.00,DEACONSTAR LTD.
Adult and Health Services,Head of Adults,Third Party Payments,473101,Purchase of Care,05-Sep-2017,3331019-1736042D,"1,020.00",DEACONSTAR LTD.
Adult and Health Services,Head of Adults,Third Party Payments,473101,Purchase of Care,05-Sep-2017,3331019-1736306D,640.00,DEACONSTAR LTD.
Adult and Health Services,Head of Adults,Third Party Payments,473101,Purchase of Care,05-Sep-2017,3331019-1736741D,512.00,DEACONSTAR LTD.
Adult and Health Services,Head of Adults,Third Party Payments,473101,Purchase of Care,05-Sep-2017,3331019-1736773D,640.00,DEACONSTAR LTD.
Adult and Health Services,Head of Adults,Third Party Payments,473101,Purchase of Care,05-Sep-2017,3331019-1736826D,640.00,DEACONSTAR LTD.
Adult and Health Services,Head of Adults,Third Party Payments,473101,Purchase of Care,05-Sep-2017,3331019-1736906D,640.00,DEACONSTAR LTD.
Adult and Health Services,Head of Adults,Third Party Payments,473101,Purchase of Care,05-Sep-2017,3331019-1740784D,640.00,DEACONSTAR LTD.
Adult and Health Services,Head of Adults,Third Party Payments,478101,Purchase of Care,05-Sep-2017,3331019-1735592H,"1,333.88",DEACONSTAR LTD.
Adult and Health Services,Head of Adults,Third Party Payments,478101,Purchase of Care,05-Sep-2017,3331019-1735784H,"1,065.39",DEACONSTAR LTD.
Adult and Health Services,Head of Adults,Third Party Payments,478101,Purchase of Care,05-Sep-2017,3331019-1735794H,"1,374.60",DEACONSTAR LTD.
Adult and Health Services,Head of Adults,Third Party Payments,478101,Purchase of Care,05-Sep-2017,3331019-1735801H,"1,374.60",DEACONSTAR LTD.
Adult and Health Services,Head of Adults,Third Party Payments,478101,Purchase of Care,05-Sep-2017,3331019-1735867H,"1,667.36",DEACONSTAR LTD.
Adult and Health Services,Head of Adults,Third Party Payments,478101,Purchase of Care,05-Sep-2017,3331019-1735890H,"1,667.36",DEACONSTAR LTD.
Adult and Health Services,Head of Adults,Third Party Payments,478101,Purchase of Care,05-Sep-2017,3331019-1735906H,"1,667.36",DEACONSTAR LTD.
Adult and Health Services,Head of Adults,Third Party Payments,478101,Purchase of Care,05-Sep-2017,3331019-1735917H,"2,088.16",DEACONSTAR LTD.
Adult and Health Services,Head of Adults,Third Party Payments,478101,Purchase of Care,05-Sep-2017,3331019-1735982H,"1,667.36",DEACONSTAR LTD.
Adult and Health Services,Head of Adults,Third Party Payments,478101,Purchase of Care,05-Sep-2017,3331019-1736043H,"5,326.52",DEACONSTAR LTD.
Adult and Health Services,Head of Adults,Third Party Payments,478101,Purchase of Care,05-Sep-2017,3331019-1736152H,"2,163.60",DEACONSTAR LTD.
Adult and Health Services,Head of Adults,Third Party Payments,478101,Purchase of Care,05-Sep-2017,3331019-1736179H,"1,667.36",DEACONSTAR LTD.
Adult and Health Services,Head of Adults,Third Party Payments,478101,Purchase of Care,05-Sep-2017,3331019-1736307H,"1,374.60",DEACONSTAR LTD.
Adult and Health Services,Head of Adults,Third Party Payments,478101,Purchase of Care,05-Sep-2017,3331019-1736742H,"1,111.60",DEACONSTAR LTD.
Adult and Health Services,Head of Adults,Third Party Payments,478101,Purchase of Care,05-Sep-2017,3331019-1736751H,"1,702.08",DEACONSTAR LTD.
Adult and Health Services,Head of Adults,Third Party Payments,478101,Purchase of Care,05-Sep-2017,3331019-1736825H,"1,702.08",DEACONSTAR LTD.
Adult and Health Services,Head of Adults,Third Party Payments,478101,Purchase of Care,05-Sep-2017,3331019-1738217H,"1,667.36",DEACONSTAR LTD.
Adult and Health Services,Head of Adults,Third Party Payments,478101,Purchase of Care,05-Sep-2017,3331019-1738747H,"1,111.60",DEACONSTAR LTD.
Adult and Health Services,Head of Adults,Third Party Payments,478101,Purchase of Care,05-Sep-2017,3331019-1739211H,"7,337.40",DEACONSTAR LTD.
Adult and Health Services,Head of Adults,Third Party Payments,478101,Purchase of Care,05-Sep-2017,3331019-1739517H,"1,667.36",DEACONSTAR LTD.
Adult and Health Services,Head of Adults,Third Party Payments,478101,Purchase of Care,05-Sep-2017,3331019-1740783H,"1,333.88",DEACONSTAR LTD.
Resources,Legal & Democratic Services,Supplies and Services,338042,Services,05-Sep-2017,3330312-331515/INVSW508,540.00,DERE STREET BARRISTERS.
Resources,Legal & Democratic Services,Supplies and Services,338042,Services,05-Sep-2017,3330312-332847/INVPM232,540.00,DERE STREET BARRISTERS.
Adult and Health Services,Head of Adults,Third Party Payments,472101,Purchase of Care,05-Sep-2017,3331031-1738851H,"8,924.16",DIMENSIONS (UK) LTD.
Adult and Health Services,Head of Adults,Third Party Payments,473101,Purchase of Care,05-Sep-2017,3331032-1736419D,620.00,DIRECT STEPS.
Adult and Health Services,Head of Adults,Third Party Payments,473101,Purchase of Care,05-Sep-2017,3331032-1736474D,664.79,DIRECT STEPS.
Adult and Health Services,Head of Adults,Third Party Payments,473101,Purchase of Care,05-Sep-2017,3331032-1736519D,589.00,DIRECT STEPS.
Adult and Health Services,Head of Adults,Third Party Payments,473101,Purchase of Care,05-Sep-2017,3331032-1737504D,620.00,DIRECT STEPS.
Adult and Health Services,Head of Adults,Third Party Payments,473101,Purchase of Care,05-Sep-2017,3331033-1736433D,776.00,DISC LTD.
Adult and Health Services,Head of Adults,Third Party Payments,473101,Purchase of Care,05-Sep-2017,3331033-1738923D,610.00,DISC LTD.
Regeneration and Local Services,Direct Services,Third Party Payments,430100,Rendered by Private Contractors,05-Sep-2017,3330315-209,"2,722.50",DPC SCREEDING LTD.
Children and Young Peoples Services,Head of Early Help Assessment and Safeguarding,Supplies and Services,338044,Services,05-Sep-2017,3330321-SC/SA17-1,523.28,DR SUSAN COOPER.
Adult and Health Services,Head of Adults,Third Party Payments,472101,Purchase of Care,05-Sep-2017,3331050-1736285H,896.00,DRAVENS HEALTHCARE.
Transformation and Partnerships,Comms & Information Management,Supplies and Services,384999,Miscellaneous Expenses,05-Sep-2017,3330322-10010428,"7,000.00",DURHAM & DARLINGTON FIRE & RESCUE.
Adult and Health Services,Head of Adults,Third Party Payments,473101,Purchase of Care,05-Sep-2017,3331052-1735923D,640.00,DURHAM ALLIANCE FOR COMMUNITY CARE.
Adult and Health Services,Head of Adults,Third Party Payments,473101,Purchase of Care,05-Sep-2017,3331052-1741787D,643.20,DURHAM ALLIANCE FOR COMMUNITY CARE.
Children and Young Peoples Services,Head of Looked After Provision Permanence and Care Leavers,Third Party Payments,425021,Rendered by Voluntary Organisations,05-Sep-2017,3330325-MP004,"13,285.71",DUTY OF CARE LTD.
Adult and Health Services,Head of Adults,Third Party Payments,473101,Purchase of Care,05-Sep-2017,3331054-1735698D,"1,454.40",EBONEY DAY CARE.
Adult and Health Services,Head of Adults,Third Party Payments,473101,Purchase of Care,05-Sep-2017,3331054-1736258D,575.76,EBONEY DAY CARE.
Adult and Health Services,Head of Adults,Third Party Payments,473101,Purchase of Care,05-Sep-2017,3331054-1736269D,570.40,EBONEY DAY CARE.
Adult and Health Services,Head of Adults,Third Party Payments,473101,Purchase of Care,05-Sep-2017,3331054-1736477D,581.76,EBONEY DAY CARE.
Adult and Health Services,Head of Adults,Third Party Payments,473101,Purchase of Care,05-Sep-2017,3331054-1736949D,785.44,EBONEY DAY CARE.
Adult and Health Services,Head of Adults,Third Party Payments,473101,Purchase of Care,05-Sep-2017,3331054-1736958D,"1,027.84",EBONEY DAY CARE.
Adult and Health Services,Head of Adults,Third Party Payments,473101,Purchase of Care,05-Sep-2017,3331054-1736961D,640.00,EBONEY DAY CARE.
Adult and Health Services,Head of Adults,Third Party Payments,473101,Purchase of Care,05-Sep-2017,3331054-1736969D,640.00,EBONEY DAY CARE.
Adult and Health Services,Head of Adults,Third Party Payments,473101,Purchase of Care,05-Sep-2017,3331054-1737043D,723.28,EBONEY DAY CARE.
Adult and Health Services,Head of Adults,Third Party Payments,473101,Purchase of Care,05-Sep-2017,3331054-1737045D,640.00,EBONEY DAY CARE.
Adult and Health Services,Head of Adults,Third Party Payments,473101,Purchase of Care,05-Sep-2017,3331054-1737057D,640.00,EBONEY DAY CARE.
Adult and Health Services,Head of Adults,Third Party Payments,473101,Purchase of Care,05-Sep-2017,3331054-1737067D,640.00,EBONEY DAY CARE.
Adult and Health Services,Head of Adults,Third Party Payments,473101,Purchase of Care,05-Sep-2017,3331054-1737102D,512.00,EBONEY DAY CARE.
Adult and Health Services,Head of Adults,Third Party Payments,473101,Purchase of Care,05-Sep-2017,3331054-1737696D,"1,020.00",EBONEY DAY CARE.
Adult and Health Services,Head of Adults,Third Party Payments,473101,Purchase of Care,05-Sep-2017,3331054-1738159D,640.00,EBONEY DAY CARE.
Adult and Health Services,Head of Adults,Third Party Payments,473101,Purchase of Care,05-Sep-2017,3331054-1738237D,"1,454.40",EBONEY DAY CARE.
Adult and Health Services,Head of Adults,Third Party Payments,473101,Purchase of Care,05-Sep-2017,3331054-1738593D,"1,480.00",EBONEY DAY CARE.
Adult and Health Services,Head of Adults,Third Party Payments,473101,Purchase of Care,05-Sep-2017,3331054-1738714D,587.04,EBONEY DAY CARE.
Adult and Health Services,Head of Adults,Third Party Payments,473101,Purchase of Care,05-Sep-2017,3331054-1741215D,621.36,EBONEY DAY CARE.
Adult and Health Services,Head of Adults,Third Party Payments,473101,Purchase of Care,05-Sep-2017,3331054-1741468D,644.88,EBONEY DAY CARE.
Adult and Health Services,Head of Adults,Third Party Payments,472101,Purchase of Care,05-Sep-2017,3331055-1736943H,"2,537.04",EBONEY HOME CARE LTD.
Adult and Health Services,Head of Adults,Third Party Payments,472101,Purchase of Care,05-Sep-2017,3331055-1736956H,"1,554.96",EBONEY HOME CARE LTD.
Adult and Health Services,Head of Adults,Third Party Payments,472101,Purchase of Care,05-Sep-2017,3331055-1737054H,600.16,EBONEY HOME CARE LTD.
Adult and Health Services,Head of Adults,Third Party Payments,472101,Purchase of Care,05-Sep-2017,3331055-1737070H,600.16,EBONEY HOME CARE LTD.
Adult and Health Services,Head of Adults,Third Party Payments,472101,Purchase of Care,05-Sep-2017,3331055-1737130H,600.16,EBONEY HOME CARE LTD.
Adult and Health Services,Head of Adults,Third Party Payments,472101,Purchase of Care,05-Sep-2017,3331055-1737248H,709.28,EBONEY HOME CARE LTD.
Adult and Health Services,Head of Adults,Third Party Payments,472101,Purchase of Care,05-Sep-2017,3331055-1737453H,709.28,EBONEY HOME CARE LTD.
Adult and Health Services,Head of Adults,Third Party Payments,472101,Purchase of Care,05-Sep-2017,3331055-1737827H,531.96,EBONEY HOME CARE LTD.
Adult and Health Services,Head of Adults,Third Party Payments,472101,Purchase of Care,05-Sep-2017,3331055-1738505H,572.88,EBONEY HOME CARE LTD.
Adult and Health Services,Head of Adults,Third Party Payments,472101,Purchase of Care,05-Sep-2017,3331055-1738594H,562.66,EBONEY HOME CARE LTD.
Adult and Health Services,Head of Adults,Third Party Payments,472101,Purchase of Care,05-Sep-2017,3331055-1741365H,763.84,EBONEY HOME CARE LTD.
Adult and Health Services,Head of Adults,Third Party Payments,472101,Purchase of Care,05-Sep-2017,3331055-1741495H,722.92,EBONEY HOME CARE LTD.
Adult and Health Services,Head of Adults,Third Party Payments,472101,Purchase of Care,05-Sep-2017,3331055-1741642H,"1,159.40",EBONEY HOME CARE LTD.
Adult and Health Services,Head of Adults,Third Party Payments,472101,Purchase of Care,05-Sep-2017,3331055-1741954H,763.84,EBONEY HOME CARE LTD.
Adult and Health Services,Head of Adults,Third Party Payments,472101,Purchase of Care,05-Sep-2017,3331055-1742153H,859.32,EBONEY HOME CARE LTD.
Adult and Health Services,Head of Adults,Third Party Payments,472101,Purchase of Care,05-Sep-2017,3331056-1739753H,728.00,EBS INSTANT CARE LTD.
Children and Young Peoples Services,Head of Early Help Assessment and Safeguarding,Third Party Payments,440062,Other Third Party Payments,05-Sep-2017,3331079-1739632H,525.14,EMBRACING CARE.
Children and Young Peoples Services,Head of Early Help Assessment and Safeguarding,Third Party Payments,440062,Other Third Party Payments,05-Sep-2017,3331079-1740881H,520.59,EMBRACING CARE.
Adult and Health Services,Head of Adults,Third Party Payments,472101,Purchase of Care,05-Sep-2017,3331079-1735581H,"1,145.76",EMBRACING CARE.
Adult and Health Services,Head of Adults,Third Party Payments,472101,Purchase of Care,05-Sep-2017,3331079-1735736H,"1,527.68",EMBRACING CARE.
Adult and Health Services,Head of Adults,Third Party Payments,472101,Purchase of Care,05-Sep-2017,3331079-1735767H,672.92,EMBRACING CARE.
Adult and Health Services,Head of Adults,Third Party Payments,472101,Purchase of Care,05-Sep-2017,3331079-1736089H,686.56,EMBRACING CARE.
Adult and Health Services,Head of Adults,Third Party Payments,472101,Purchase of Care,05-Sep-2017,3331079-1736106H,571.74,EMBRACING CARE.
Adult and Health Services,Head of Adults,Third Party Payments,472101,Purchase of Care,05-Sep-2017,3331079-1736111H,586.52,EMBRACING CARE.
Adult and Health Services,Head of Adults,Third Party Payments,472101,Purchase of Care,05-Sep-2017,3331079-1736206H,636.52,EMBRACING CARE.
Adult and Health Services,Head of Adults,Third Party Payments,472101,Purchase of Care,05-Sep-2017,3331079-1736328H,"1,268.52",EMBRACING CARE.
Adult and Health Services,Head of Adults,Third Party Payments,472101,Purchase of Care,05-Sep-2017,3331079-1736332H,763.84,EMBRACING CARE.
Adult and Health Services,Head of Adults,Third Party Payments,472101,Purchase of Care,05-Sep-2017,3331079-1736409H,"1,173.04",EMBRACING CARE.
Adult and Health Services,Head of Adults,Third Party Payments,472101,Purchase of Care,05-Sep-2017,3331079-1736455H,"1,691.36",EMBRACING CARE.
Adult and Health Services,Head of Adults,Third Party Payments,472101,Purchase of Care,05-Sep-2017,3331079-1736614H,"1,315.13",EMBRACING CARE.
Adult and Health Services,Head of Adults,Third Party Payments,472101,Purchase of Care,05-Sep-2017,3331079-1736635H,768.40,EMBRACING CARE.
Adult and Health Services,Head of Adults,Third Party Payments,472101,Purchase of Care,05-Sep-2017,3331079-1736642H,700.20,EMBRACING CARE.
Adult and Health Services,Head of Adults,Third Party Payments,472101,Purchase of Care,05-Sep-2017,3331079-1736693H,531.96,EMBRACING CARE.
Adult and Health Services,Head of Adults,Third Party Payments,472101,Purchase of Care,05-Sep-2017,3331079-1736905H,656.99,EMBRACING CARE.
Adult and Health Services,Head of Adults,Third Party Payments,472101,Purchase of Care,05-Sep-2017,3331079-1737233H,538.78,EMBRACING CARE.
Adult and Health Services,Head of Adults,Third Party Payments,472101,Purchase of Care,05-Sep-2017,3331079-1737334H,"1,514.04",EMBRACING CARE.
Adult and Health Services,Head of Adults,Third Party Payments,472101,Purchase of Care,05-Sep-2017,3331079-1737445H,991.16,EMBRACING CARE.
Adult and Health Services,Head of Adults,Third Party Payments,472101,Purchase of Care,05-Sep-2017,3331079-1737473H,527.40,EMBRACING CARE.
Adult and Health Services,Head of Adults,Third Party Payments,472101,Purchase of Care,05-Sep-2017,3331079-1737478H,"1,377.64",EMBRACING CARE.
Adult and Health Services,Head of Adults,Third Party Payments,472101,Purchase of Care,05-Sep-2017,3331079-1737481H,509.24,EMBRACING CARE.
Adult and Health Services,Head of Adults,Third Party Payments,472101,Purchase of Care,05-Sep-2017,3331079-1737503H,"1,945.96",EMBRACING CARE.
Adult and Health Services,Head of Adults,Third Party Payments,472101,Purchase of Care,05-Sep-2017,3331079-1737511H,"1,964.16",EMBRACING CARE.
Adult and Health Services,Head of Adults,Third Party Payments,472101,Purchase of Care,05-Sep-2017,3331079-1737526H,663.80,EMBRACING CARE.
Adult and Health Services,Head of Adults,Third Party Payments,472101,Purchase of Care,05-Sep-2017,3331079-1737533H,852.50,EMBRACING CARE.
Adult and Health Services,Head of Adults,Third Party Payments,472101,Purchase of Care,05-Sep-2017,3331079-1737535H,"1,209.40",EMBRACING CARE.
Adult and Health Services,Head of Adults,Third Party Payments,472101,Purchase of Care,05-Sep-2017,3331079-1737548H,572.88,EMBRACING CARE.
Adult and Health Services,Head of Adults,Third Party Payments,472101,Purchase of Care,05-Sep-2017,3331079-1737561H,"1,382.20",EMBRACING CARE.
Adult and Health Services,Head of Adults,Third Party Payments,472101,Purchase of Care,05-Sep-2017,3331079-1737595H,791.12,EMBRACING CARE.
Adult and Health Services,Head of Adults,Third Party Payments,472101,Purchase of Care,05-Sep-2017,3331079-1737636H,600.16,EMBRACING CARE.
Adult and Health Services,Head of Adults,Third Party Payments,472101,Purchase of Care,05-Sep-2017,3331079-1737642H,859.32,EMBRACING CARE.
Adult and Health Services,Head of Adults,Third Party Payments,472101,Purchase of Care,05-Sep-2017,3331079-1737656H,722.92,EMBRACING CARE.
Adult and Health Services,Head of Adults,Third Party Payments,472101,Purchase of Care,05-Sep-2017,3331079-1737677H,627.44,EMBRACING CARE.
Adult and Health Services,Head of Adults,Third Party Payments,472101,Purchase of Care,05-Sep-2017,3331079-1737691H,791.12,EMBRACING CARE.
Adult and Health Services,Head of Adults,Third Party Payments,472101,Purchase of Care,05-Sep-2017,3331079-1737736H,"1,016.18",EMBRACING CARE.
Adult and Health Services,Head of Adults,Third Party Payments,472101,Purchase of Care,05-Sep-2017,3331079-1737782H,863.88,EMBRACING CARE.
Adult and Health Services,Head of Adults,Third Party Payments,472101,Purchase of Care,05-Sep-2017,3331079-1737854H,"1,714.10",EMBRACING CARE.
Adult and Health Services,Head of Adults,Third Party Payments,472101,Purchase of Care,05-Sep-2017,3331079-1737912H,"2,837.12",EMBRACING CARE.
Adult and Health Services,Head of Adults,Third Party Payments,472101,Purchase of Care,05-Sep-2017,3331079-1737913H,"1,200.32",EMBRACING CARE.
Adult and Health Services,Head of Adults,Third Party Payments,472101,Purchase of Care,05-Sep-2017,3331079-1737941H,763.84,EMBRACING CARE.
Adult and Health Services,Head of Adults,Third Party Payments,472101,Purchase of Care,05-Sep-2017,3331079-1738025H,645.64,EMBRACING CARE.
Adult and Health Services,Head of Adults,Third Party Payments,472101,Purchase of Care,05-Sep-2017,3331079-1738027H,604.72,EMBRACING CARE.
Adult and Health Services,Head of Adults,Third Party Payments,472101,Purchase of Care,05-Sep-2017,3331079-1738046H,"1,636.80",EMBRACING CARE.
Adult and Health Services,Head of Adults,Third Party Payments,472101,Purchase of Care,05-Sep-2017,3331079-1738109H,859.32,EMBRACING CARE.
Adult and Health Services,Head of Adults,Third Party Payments,472101,Purchase of Care,05-Sep-2017,3331079-1738112H,"1,261.70",EMBRACING CARE.
Adult and Health Services,Head of Adults,Third Party Payments,472101,Purchase of Care,05-Sep-2017,3331079-1738120H,663.80,EMBRACING CARE.
Adult and Health Services,Head of Adults,Third Party Payments,472101,Purchase of Care,05-Sep-2017,3331079-1738133H,576.29,EMBRACING CARE.
Adult and Health Services,Head of Adults,Third Party Payments,472101,Purchase of Care,05-Sep-2017,3331079-1738239H,"1,186.68",EMBRACING CARE.
Adult and Health Services,Head of Adults,Third Party Payments,472101,Purchase of Care,05-Sep-2017,3331079-1738243H,"1,009.36",EMBRACING CARE.
Adult and Health Services,Head of Adults,Third Party Payments,472101,Purchase of Care,05-Sep-2017,3331079-1738310H,"1,118.48",EMBRACING CARE.
Adult and Health Services,Head of Adults,Third Party Payments,472101,Purchase of Care,05-Sep-2017,3331079-1738324H,"1,273.08",EMBRACING CARE.
Adult and Health Services,Head of Adults,Third Party Payments,472101,Purchase of Care,05-Sep-2017,3331079-1738336H,763.84,EMBRACING CARE.
Adult and Health Services,Head of Adults,Third Party Payments,472101,Purchase of Care,05-Sep-2017,3331079-1738342H,654.72,EMBRACING CARE.
Adult and Health Services,Head of Adults,Third Party Payments,472101,Purchase of Care,05-Sep-2017,3331079-1738399H,791.12,EMBRACING CARE.
Adult and Health Services,Head of Adults,Third Party Payments,472101,Purchase of Care,05-Sep-2017,3331079-1738426H,502.42,EMBRACING CARE.
Adult and Health Services,Head of Adults,Third Party Payments,472101,Purchase of Care,05-Sep-2017,3331079-1738445H,541.05,EMBRACING CARE.
Adult and Health Services,Head of Adults,Third Party Payments,472101,Purchase of Care,05-Sep-2017,3331079-1738485H,571.74,EMBRACING CARE.
Adult and Health Services,Head of Adults,Third Party Payments,472101,Purchase of Care,05-Sep-2017,3331079-1738493H,651.31,EMBRACING CARE.
Adult and Health Services,Head of Adults,Third Party Payments,472101,Purchase of Care,05-Sep-2017,3331079-1738515H,862.73,EMBRACING CARE.
Adult and Health Services,Head of Adults,Third Party Payments,472101,Purchase of Care,05-Sep-2017,3331079-1738535H,763.84,EMBRACING CARE.
Adult and Health Services,Head of Adults,Third Party Payments,472101,Purchase of Care,05-Sep-2017,3331079-1738554H,518.31,EMBRACING CARE.
Adult and Health Services,Head of Adults,Third Party Payments,472101,Purchase of Care,05-Sep-2017,3331079-1738648H,695.64,EMBRACING CARE.
Adult and Health Services,Head of Adults,Third Party Payments,472101,Purchase of Care,05-Sep-2017,3331079-1738698H,852.49,EMBRACING CARE.
Adult and Health Services,Head of Adults,Third Party Payments,472101,Purchase of Care,05-Sep-2017,3331079-1738703H,"2,455.20",EMBRACING CARE.
Adult and Health Services,Head of Adults,Third Party Payments,472101,Purchase of Care,05-Sep-2017,3331079-1738751H,882.04,EMBRACING CARE.
Adult and Health Services,Head of Adults,Third Party Payments,472101,Purchase of Care,05-Sep-2017,3331079-1738879H,727.48,EMBRACING CARE.
Adult and Health Services,Head of Adults,Third Party Payments,472101,Purchase of Care,05-Sep-2017,3331079-1738899H,536.52,EMBRACING CARE.
Adult and Health Services,Head of Adults,Third Party Payments,472101,Purchase of Care,05-Sep-2017,3331079-1738925H,750.19,EMBRACING CARE.
Adult and Health Services,Head of Adults,Third Party Payments,472101,Purchase of Care,05-Sep-2017,3331079-1738951H,531.96,EMBRACING CARE.
Adult and Health Services,Head of Adults,Third Party Payments,472101,Purchase of Care,05-Sep-2017,3331079-1739196H,586.52,EMBRACING CARE.
Adult and Health Services,Head of Adults,Third Party Payments,472101,Purchase of Care,05-Sep-2017,3331079-1739245H,"1,145.76",EMBRACING CARE.
Adult and Health Services,Head of Adults,Third Party Payments,472101,Purchase of Care,05-Sep-2017,3331079-1739279H,574.02,EMBRACING CARE.
Adult and Health Services,Head of Adults,Third Party Payments,472101,Purchase of Care,05-Sep-2017,3331079-1739310H,943.42,EMBRACING CARE.
Adult and Health Services,Head of Adults,Third Party Payments,472101,Purchase of Care,05-Sep-2017,3331079-1739337H,877.52,EMBRACING CARE.
Adult and Health Services,Head of Adults,Third Party Payments,472101,Purchase of Care,05-Sep-2017,3331079-1739357H,647.91,EMBRACING CARE.
Adult and Health Services,Head of Adults,Third Party Payments,472101,Purchase of Care,05-Sep-2017,3331079-1739367H,622.88,EMBRACING CARE.
Adult and Health Services,Head of Adults,Third Party Payments,472101,Purchase of Care,05-Sep-2017,3331079-1739391H,530.82,EMBRACING CARE.
Adult and Health Services,Head of Adults,Third Party Payments,472101,Purchase of Care,05-Sep-2017,3331079-1739450H,732.00,EMBRACING CARE.
Adult and Health Services,Head of Adults,Third Party Payments,472101,Purchase of Care,05-Sep-2017,3331079-1739453H,686.54,EMBRACING CARE.
Adult and Health Services,Head of Adults,Third Party Payments,472101,Purchase of Care,05-Sep-2017,3331079-1739459H,852.50,EMBRACING CARE.
Adult and Health Services,Head of Adults,Third Party Payments,472101,Purchase of Care,05-Sep-2017,3331079-1739460H,531.96,EMBRACING CARE.
Adult and Health Services,Head of Adults,Third Party Payments,472101,Purchase of Care,05-Sep-2017,3331079-1739494H,545.60,EMBRACING CARE.
Adult and Health Services,Head of Adults,Third Party Payments,472101,Purchase of Care,05-Sep-2017,3331079-1739504H,591.08,EMBRACING CARE.
Adult and Health Services,Head of Adults,Third Party Payments,472101,Purchase of Care,05-Sep-2017,3331079-1739506H,641.09,EMBRACING CARE.
Adult and Health Services,Head of Adults,Third Party Payments,472101,Purchase of Care,05-Sep-2017,3331079-1739640H,586.52,EMBRACING CARE.
Adult and Health Services,Head of Adults,Third Party Payments,472101,Purchase of Care,05-Sep-2017,3331079-1739656H,"1,101.42",EMBRACING CARE.
Adult and Health Services,Head of Adults,Third Party Payments,472101,Purchase of Care,05-Sep-2017,3331079-1739717H,"1,664.08",EMBRACING CARE.
Adult and Health Services,Head of Adults,Third Party Payments,472101,Purchase of Care,05-Sep-2017,3331079-1739725H,804.77,EMBRACING CARE.
Adult and Health Services,Head of Adults,Third Party Payments,472101,Purchase of Care,05-Sep-2017,3331079-1739784H,641.08,EMBRACING CARE.
Adult and Health Services,Head of Adults,Third Party Payments,472101,Purchase of Care,05-Sep-2017,3331079-1739802H,"1,009.36",EMBRACING CARE.
Adult and Health Services,Head of Adults,Third Party Payments,472101,Purchase of Care,05-Sep-2017,3331079-1739857H,643.34,EMBRACING CARE.
Adult and Health Services,Head of Adults,Third Party Payments,472101,Purchase of Care,05-Sep-2017,3331079-1739859H,572.88,EMBRACING CARE.
Adult and Health Services,Head of Adults,Third Party Payments,472101,Purchase of Care,05-Sep-2017,3331079-1739898H,763.84,EMBRACING CARE.
Adult and Health Services,Head of Adults,Third Party Payments,472101,Purchase of Care,05-Sep-2017,3331079-1739917H,"1,527.68",EMBRACING CARE.
Adult and Health Services,Head of Adults,Third Party Payments,472101,Purchase of Care,05-Sep-2017,3331079-1739918H,"1,518.60",EMBRACING CARE.
Adult and Health Services,Head of Adults,Third Party Payments,472101,Purchase of Care,05-Sep-2017,3331079-1739962H,"1,514.04",EMBRACING CARE.
Adult and Health Services,Head of Adults,Third Party Payments,472101,Purchase of Care,05-Sep-2017,3331079-1739968H,527.40,EMBRACING CARE.
Adult and Health Services,Head of Adults,Third Party Payments,472101,Purchase of Care,05-Sep-2017,3331079-1739986H,"1,327.64",EMBRACING CARE.
Adult and Health Services,Head of Adults,Third Party Payments,472101,Purchase of Care,05-Sep-2017,3331079-1739998H,852.50,EMBRACING CARE.
Adult and Health Services,Head of Adults,Third Party Payments,472101,Purchase of Care,05-Sep-2017,3331079-1740027H,900.25,EMBRACING CARE.
Adult and Health Services,Head of Adults,Third Party Payments,472101,Purchase of Care,05-Sep-2017,3331079-1740186H,554.68,EMBRACING CARE.
Adult and Health Services,Head of Adults,Third Party Payments,472101,Purchase of Care,05-Sep-2017,3331079-1740242H,807.03,EMBRACING CARE.
Adult and Health Services,Head of Adults,Third Party Payments,472101,Purchase of Care,05-Sep-2017,3331079-1740351H,572.88,EMBRACING CARE.
Adult and Health Services,Head of Adults,Third Party Payments,472101,Purchase of Care,05-Sep-2017,3331079-1740388H,"1,227.60",EMBRACING CARE.
Adult and Health Services,Head of Adults,Third Party Payments,472101,Purchase of Care,05-Sep-2017,3331079-1740432H,593.34,EMBRACING CARE.
Adult and Health Services,Head of Adults,Third Party Payments,472101,Purchase of Care,05-Sep-2017,3331079-1740553H,759.28,EMBRACING CARE.
Adult and Health Services,Head of Adults,Third Party Payments,472101,Purchase of Care,05-Sep-2017,3331079-1740568H,"1,745.92",EMBRACING CARE.
Adult and Health Services,Head of Adults,Third Party Payments,472101,Purchase of Care,05-Sep-2017,3331079-1740652H,"1,018.44",EMBRACING CARE.
Adult and Health Services,Head of Adults,Third Party Payments,472101,Purchase of Care,05-Sep-2017,3331079-1740700H,"1,595.88",EMBRACING CARE.
Adult and Health Services,Head of Adults,Third Party Payments,472101,Purchase of Care,05-Sep-2017,3331079-1740754H,988.90,EMBRACING CARE.
Adult and Health Services,Head of Adults,Third Party Payments,472101,Purchase of Care,05-Sep-2017,3331079-1740799H,"1,577.70",EMBRACING CARE.
Adult and Health Services,Head of Adults,Third Party Payments,472101,Purchase of Care,05-Sep-2017,3331079-1740802H,560.38,EMBRACING CARE.
Adult and Health Services,Head of Adults,Third Party Payments,472101,Purchase of Care,05-Sep-2017,3331079-1740810H,904.80,EMBRACING CARE.
Adult and Health Services,Head of Adults,Third Party Payments,472101,Purchase of Care,05-Sep-2017,3331079-1740829H,604.72,EMBRACING CARE.
Adult and Health Services,Head of Adults,Third Party Payments,472101,Purchase of Care,05-Sep-2017,3331079-1740862H,600.16,EMBRACING CARE.
Adult and Health Services,Head of Adults,Third Party Payments,472101,Purchase of Care,05-Sep-2017,3331079-1740868H,"1,800.48",EMBRACING CARE.
Adult and Health Services,Head of Adults,Third Party Payments,472101,Purchase of Care,05-Sep-2017,3331079-1740874H,"1,718.64",EMBRACING CARE.
Adult and Health Services,Head of Adults,Third Party Payments,472101,Purchase of Care,05-Sep-2017,3331079-1740961H,586.52,EMBRACING CARE.
Adult and Health Services,Head of Adults,Third Party Payments,472101,Purchase of Care,05-Sep-2017,3331079-1741043H,"1,163.96",EMBRACING CARE.
Adult and Health Services,Head of Adults,Third Party Payments,472101,Purchase of Care,05-Sep-2017,3331079-1741088H,504.68,EMBRACING CARE.
Adult and Health Services,Head of Adults,Third Party Payments,472101,Purchase of Care,05-Sep-2017,3331079-1741147H,"1,682.28",EMBRACING CARE.
Adult and Health Services,Head of Adults,Third Party Payments,472101,Purchase of Care,05-Sep-2017,3331079-1741199H,732.00,EMBRACING CARE.
Adult and Health Services,Head of Adults,Third Party Payments,472101,Purchase of Care,05-Sep-2017,3331079-1741232H,811.58,EMBRACING CARE.
Adult and Health Services,Head of Adults,Third Party Payments,472101,Purchase of Care,05-Sep-2017,3331079-1741274H,763.84,EMBRACING CARE.
Adult and Health Services,Head of Adults,Third Party Payments,472101,Purchase of Care,05-Sep-2017,3331079-1741314H,791.12,EMBRACING CARE.
Adult and Health Services,Head of Adults,Third Party Payments,472101,Purchase of Care,05-Sep-2017,3331079-1741331H,777.48,EMBRACING CARE.
Adult and Health Services,Head of Adults,Third Party Payments,472101,Purchase of Care,05-Sep-2017,3331079-1741340H,900.24,EMBRACING CARE.
Adult and Health Services,Head of Adults,Third Party Payments,472101,Purchase of Care,05-Sep-2017,3331079-1741398H,572.88,EMBRACING CARE.
Adult and Health Services,Head of Adults,Third Party Payments,472101,Purchase of Care,05-Sep-2017,3331079-1741458H,754.76,EMBRACING CARE.
Adult and Health Services,Head of Adults,Third Party Payments,472101,Purchase of Care,05-Sep-2017,3331079-1741493H,509.24,EMBRACING CARE.
Adult and Health Services,Head of Adults,Third Party Payments,472101,Purchase of Care,05-Sep-2017,3331079-1741499H,500.14,EMBRACING CARE.
Adult and Health Services,Head of Adults,Third Party Payments,472101,Purchase of Care,05-Sep-2017,3331079-1741537H,954.80,EMBRACING CARE.
Adult and Health Services,Head of Adults,Third Party Payments,472101,Purchase of Care,05-Sep-2017,3331079-1741632H,591.08,EMBRACING CARE.
Adult and Health Services,Head of Adults,Third Party Payments,472101,Purchase of Care,05-Sep-2017,3331079-1741676H,663.80,EMBRACING CARE.
Adult and Health Services,Head of Adults,Third Party Payments,472101,Purchase of Care,05-Sep-2017,3331079-1741742H,600.16,EMBRACING CARE.
Adult and Health Services,Head of Adults,Third Party Payments,472101,Purchase of Care,05-Sep-2017,3331079-1741780H,"1,527.68",EMBRACING CARE.
Adult and Health Services,Head of Adults,Third Party Payments,472101,Purchase of Care,05-Sep-2017,3331079-1741788H,572.88,EMBRACING CARE.
Adult and Health Services,Head of Adults,Third Party Payments,472101,Purchase of Care,05-Sep-2017,3331079-1741791H,859.32,EMBRACING CARE.
Adult and Health Services,Head of Adults,Third Party Payments,472101,Purchase of Care,05-Sep-2017,3331079-1741807H,559.24,EMBRACING CARE.
Adult and Health Services,Head of Adults,Third Party Payments,472101,Purchase of Care,05-Sep-2017,3331079-1741827H,763.84,EMBRACING CARE.
Adult and Health Services,Head of Adults,Third Party Payments,472101,Purchase of Care,05-Sep-2017,3331079-1741847H,568.32,EMBRACING CARE.
Adult and Health Services,Head of Adults,Third Party Payments,472101,Purchase of Care,05-Sep-2017,3331079-1741886H,691.08,EMBRACING CARE.
Adult and Health Services,Head of Adults,Third Party Payments,472101,Purchase of Care,05-Sep-2017,3331079-1741894H,552.42,EMBRACING CARE.
Adult and Health Services,Head of Adults,Third Party Payments,472101,Purchase of Care,05-Sep-2017,3331079-1741925H,732.02,EMBRACING CARE.
Adult and Health Services,Head of Adults,Third Party Payments,472101,Purchase of Care,05-Sep-2017,3331079-1741969H,"1,718.64",EMBRACING CARE.
Adult and Health Services,Head of Adults,Third Party Payments,472101,Purchase of Care,05-Sep-2017,3331079-1741977H,516.04,EMBRACING CARE.
Adult and Health Services,Head of Adults,Third Party Payments,472101,Purchase of Care,05-Sep-2017,3331079-1741994H,531.96,EMBRACING CARE.
Adult and Health Services,Head of Adults,Third Party Payments,472101,Purchase of Care,05-Sep-2017,3331079-1741996H,763.84,EMBRACING CARE.
Adult and Health Services,Head of Adults,Third Party Payments,472101,Purchase of Care,05-Sep-2017,3331079-1742002H,891.16,EMBRACING CARE.
Adult and Health Services,Head of Adults,Third Party Payments,472101,Purchase of Care,05-Sep-2017,3331079-1742227H,622.90,EMBRACING CARE.
Adult and Health Services,Head of Adults,Third Party Payments,478101,Purchase of Care,05-Sep-2017,3331078-1735547H,"1,170.36",EMBRACING CARE.
Adult and Health Services,Head of Adults,Third Party Payments,478101,Purchase of Care,05-Sep-2017,3331078-1735777H,"2,761.52",EMBRACING CARE.
Adult and Health Services,Head of Adults,Third Party Payments,478101,Purchase of Care,05-Sep-2017,3331078-1735830H,"1,196.68",EMBRACING CARE.
Adult and Health Services,Head of Adults,Third Party Payments,478101,Purchase of Care,05-Sep-2017,3331078-1735865H,802.16,EMBRACING CARE.
Adult and Health Services,Head of Adults,Third Party Payments,478101,Purchase of Care,05-Sep-2017,3331078-1735873H,"1,906.76",EMBRACING CARE.
Adult and Health Services,Head of Adults,Third Party Payments,478101,Purchase of Care,05-Sep-2017,3331078-1735896H,802.16,EMBRACING CARE.
Adult and Health Services,Head of Adults,Third Party Payments,478101,Purchase of Care,05-Sep-2017,3331078-1735921H,802.16,EMBRACING CARE.
Adult and Health Services,Head of Adults,Third Party Payments,478101,Purchase of Care,05-Sep-2017,3331078-1735937H,802.16,EMBRACING CARE.
Adult and Health Services,Head of Adults,Third Party Payments,478101,Purchase of Care,05-Sep-2017,3331078-1735987H,802.16,EMBRACING CARE.
Adult and Health Services,Head of Adults,Third Party Payments,478101,Purchase of Care,05-Sep-2017,3331078-1736034H,802.16,EMBRACING CARE.
Adult and Health Services,Head of Adults,Third Party Payments,478101,Purchase of Care,05-Sep-2017,3331078-1736095H,802.16,EMBRACING CARE.
Adult and Health Services,Head of Adults,Third Party Payments,478101,Purchase of Care,05-Sep-2017,3331078-1736618H,802.16,EMBRACING CARE.
Adult and Health Services,Head of Adults,Third Party Payments,478101,Purchase of Care,05-Sep-2017,3331078-1736738H,631.20,EMBRACING CARE.
Adult and Health Services,Head of Adults,Third Party Payments,478101,Purchase of Care,05-Sep-2017,3331078-1736740H,802.16,EMBRACING CARE.
Adult and Health Services,Head of Adults,Third Party Payments,478101,Purchase of Care,05-Sep-2017,3331078-1736822H,"1,117.76",EMBRACING CARE.
Adult and Health Services,Head of Adults,Third Party Payments,478101,Purchase of Care,05-Sep-2017,3331078-1736832H,802.16,EMBRACING CARE.
Adult and Health Services,Head of Adults,Third Party Payments,478101,Purchase of Care,05-Sep-2017,3331078-1736850H,802.16,EMBRACING CARE.
Adult and Health Services,Head of Adults,Third Party Payments,478101,Purchase of Care,05-Sep-2017,3331078-1737889H,802.16,EMBRACING CARE.
Adult and Health Services,Head of Adults,Third Party Payments,478101,Purchase of Care,05-Sep-2017,3331078-1737997H,802.16,EMBRACING CARE.
Adult and Health Services,Head of Adults,Third Party Payments,478101,Purchase of Care,05-Sep-2017,3331078-1738041H,802.16,EMBRACING CARE.
Adult and Health Services,Head of Adults,Third Party Payments,478101,Purchase of Care,05-Sep-2017,3331078-1738739H,802.16,EMBRACING CARE.
Adult and Health Services,Head of Adults,Third Party Payments,478101,Purchase of Care,05-Sep-2017,3331078-1739066H,802.16,EMBRACING CARE.
Adult and Health Services,Head of Adults,Third Party Payments,478101,Purchase of Care,05-Sep-2017,3331078-1740250H,764.59,EMBRACING CARE.
Adult and Health Services,Head of Adults,Third Party Payments,478101,Purchase of Care,05-Sep-2017,3331078-1741186H,802.16,EMBRACING CARE.
Adult and Health Services,Head of Adults,Third Party Payments,478101,Purchase of Care,05-Sep-2017,3331078-1742198H,"4,211.34",EMBRACING CARE.
Adult and Health Services,Head of Adults,Third Party Payments,478101,Purchase of Care,05-Sep-2017,3331079-1735960H,"10,232.60",EMBRACING CARE.
